Department Family,Entity,Date of Payment,Expense Type,Expense Area,Supplier,Voluntary & Community Sector,SME Class,Sole Trader,D-U-N-S Number,Transaction number,PSPES Level 2,Narrative,Postal Code,Amount in Sterling,Grant?
"Housing, Communities & Local Government",MHCLG,01/09/2020,Agency Staff,Corporate and GOLD Secretariat Cells,ALEXANDER MANN SOLUTIONS LTD,,Large,,,5106263226,Contingent Labour,Interim Staff,EC2N 3AQ,"2,136.54",
"Housing, Communities & Local Government",MHCLG,01/09/2020,Agency Staff,Corporate and GOLD Secretariat Cells,ALEXANDER MANN SOLUTIONS LTD,,Large,,,5106263231,Contingent Labour,Interim Staff,EC2N 3AQ,"1,855.85",
"Housing, Communities & Local Government",MHCLG,01/09/2020,Agency Staff,Corporate and GOLD Secretariat Cells,ALEXANDER MANN SOLUTIONS LTD,,Large,,,5106263232,Contingent Labour,Interim Staff,EC2N 3AQ,"8,862.55",
"Housing, Communities & Local Government",MHCLG,01/09/2020,Agency Staff,Corporate and GOLD Secretariat Cells,ALEXANDER MANN SOLUTIONS LTD,,Large,,,5106263233,Contingent Labour,Interim Staff,EC2N 3AQ,"2,677.74",
"Housing, Communities & Local Government",MHCLG,01/09/2020,Agency Staff,Corporate and GOLD Secretariat Cells,ALEXANDER MANN SOLUTIONS LTD,,Large,,,5106263234,Contingent Labour,Interim Staff,EC2N 3AQ,"2,520.24",
"Housing, Communities & Local Government",MHCLG,01/09/2020,Agency Staff,Corporate and GOLD Secretariat Cells,ALEXANDER MANN SOLUTIONS LTD,,Large,,,5106263235,Contingent Labour,Interim Staff,EC2N 3AQ,"1,968.96",
"Housing, Communities & Local Government",MHCLG,01/09/2020,Agency Staff,Corporate and GOLD Secretariat Cells,ALEXANDER MANN SOLUTIONS LTD,,Large,,,5106263238,Contingent Labour,Interim Staff,EC2N 3AQ,"5,851.38",
"Housing, Communities & Local Government",MHCLG,01/09/2020,Agency Staff,Corporate and GOLD Secretariat Cells,ALEXANDER MANN SOLUTIONS LTD,,Large,,,5106263239,Contingent Labour,Interim Staff,EC2N 3AQ,"4,652.04",
"Housing, Communities & Local Government",MHCLG,01/09/2020,Agency Staff,Corporate and GOLD Secretariat Cells,ALEXANDER MANN SOLUTIONS LTD,,Large,,,5106263241,Contingent Labour,Interim Staff,EC2N 3AQ,"2,340.54",
"Housing, Communities & Local Government",MHCLG,01/09/2020,Agency Staff,Corporate and GOLD Secretariat Cells,ALEXANDER MANN SOLUTIONS LTD,,Large,,,5106263243,Contingent Labour,Interim Staff,EC2N 3AQ,"1,385.83",
"Housing, Communities & Local Government",MHCLG,01/09/2020,Agency Staff,Corporate and GOLD Secretariat Cells,ALEXANDER MANN SOLUTIONS LTD,,Large,,,5106263244,Contingent Labour,Interim Staff,EC2N 3AQ,"3,118.80",
"Housing, Communities & Local Government",MHCLG,01/09/2020,Agency Staff,Corporate and GOLD Secretariat Cells,ALEXANDER MANN SOLUTIONS LTD,,Large,,,5106263245,Contingent Labour,Interim Staff,EC2N 3AQ,985.49,
"Housing, Communities & Local Government",MHCLG,01/09/2020,Agency Staff,Corporate and GOLD Secretariat Cells,ALEXANDER MANN SOLUTIONS LTD,,Large,,,5106263248,Contingent Labour,Interim Staff,EC2N 3AQ,"2,217.35",
"Housing, Communities & Local Government",MHCLG,01/09/2020,Agency Staff,Corporate and GOLD Secretariat Cells,ALEXANDER MANN SOLUTIONS LTD,,Large,,,5106263250,Contingent Labour,Interim Staff,EC2N 3AQ,"2,205.18",
"Housing, Communities & Local Government",MHCLG,01/09/2020,Agency Staff,Corporate and GOLD Secretariat Cells,ALEXANDER MANN SOLUTIONS LTD,,Large,,,5106263251,Contingent Labour,Interim Staff,EC2N 3AQ,"5,389.38",
"Housing, Communities & Local Government",MHCLG,01/09/2020,Agency Staff,Corporate and GOLD Secretariat Cells,ALEXANDER MANN SOLUTIONS LTD,,Large,,,5106263252,Contingent Labour,Interim Staff,EC2N 3AQ,"3,347.16",
"Housing, Communities & Local Government",MHCLG,01/09/2020,Agency Staff,Corporate and GOLD Secretariat Cells,ALEXANDER MANN SOLUTIONS LTD,,Large,,,5106263253,Contingent Labour,Interim Staff,EC2N 3AQ,"3,067.86",
"Housing, Communities & Local Government",MHCLG,01/09/2020,Agency Staff,Corporate and GOLD Secretariat Cells,ALEXANDER MANN SOLUTIONS LTD,,Large,,,5106263254,Contingent Labour,Interim Staff,EC2N 3AQ,"2,771.66",
"Housing, Communities & Local Government",MHCLG,01/09/2020,Agency Staff,Corporate and GOLD Secretariat Cells,ALEXANDER MANN SOLUTIONS LTD,,Large,,,5106263256,Contingent Labour,Interim Staff,EC2N 3AQ,"3,323.52",
"Housing, Communities & Local Government",MHCLG,01/09/2020,Agency Staff,Economic and Business Response,ALEXANDER MANN SOLUTIONS LTD,,Large,,,5106263229,Contingent Labour,contingent labour,EC2N 3AQ,"1,025.53",
"Housing, Communities & Local Government",MHCLG,01/09/2020,Agency Staff,Economic and Business Response,ALEXANDER MANN SOLUTIONS LTD,,Large,,,5106263236,Contingent Labour,contingent labour,EC2N 3AQ,586.66,
"Housing, Communities & Local Government",MHCLG,01/09/2020,Agency Staff,Economic and Business Response,ALEXANDER MANN SOLUTIONS LTD,,Large,,,5106263257,Contingent Labour,contingent labour,EC2N 3AQ,879.98,
"Housing, Communities & Local Government",MHCLG,01/09/2020,Agency Staff,Emergency Response,ALEXANDER MANN SOLUTIONS LTD,,Large,,,5106263228,Contingent Labour,Interim Staff,EC2N 3AQ,"1,016.28",
"Housing, Communities & Local Government",MHCLG,01/09/2020,Agency Staff,Emergency Response,ALEXANDER MANN SOLUTIONS LTD,,Large,,,5106263259,Contingent Labour,Interim Staff,EC2N 3AQ,"4,379.04",
"Housing, Communities & Local Government",MHCLG,01/09/2020,Agency Staff,Housing and Vulnerable People Responses,ALEXANDER MANN SOLUTIONS LTD,,Large,,,5106263227,Contingent Labour,Short term programme backfill contractor,EC2N 3AQ,"2,835.24",
"Housing, Communities & Local Government",MHCLG,01/09/2020,Agency Staff,Housing and Vulnerable People Responses,ALEXANDER MANN SOLUTIONS LTD,,Large,,,5106263230,Contingent Labour,Planning Consultant fees,EC2N 3AQ,"1,340.20",
"Housing, Communities & Local Government",MHCLG,01/09/2020,Agency Staff,Housing and Vulnerable People Responses,ALEXANDER MANN SOLUTIONS LTD,,Large,,,5106263237,Contingent Labour,interim manager,EC2N 3AQ,"2,956.46",
"Housing, Communities & Local Government",MHCLG,01/09/2020,Agency Staff,Housing and Vulnerable People Responses,ALEXANDER MANN SOLUTIONS LTD,,Large,,,5106263240,Contingent Labour,Short term programme backfill contractor,EC2N 3AQ,"3,597.07",
"Housing, Communities & Local Government",MHCLG,01/09/2020,Agency Staff,Housing and Vulnerable People Responses,ALEXANDER MANN SOLUTIONS LTD,,Large,,,5106263242,Contingent Labour,Short term programme backfill contractor,EC2N 3AQ,"3,049.49",
"Housing, Communities & Local Government",MHCLG,01/09/2020,Agency Staff,Housing and Vulnerable People Responses,ALEXANDER MANN SOLUTIONS LTD,,Large,,,5106263246,Contingent Labour,Short term programme backfill contractor,EC2N 3AQ,"2,835.24",
"Housing, Communities & Local Government",MHCLG,01/09/2020,Agency Staff,Housing and Vulnerable People Responses,ALEXANDER MANN SOLUTIONS LTD,,Large,,,5106263247,Contingent Labour,Planning Consultant fees,EC2N 3AQ,280.26,
"Housing, Communities & Local Government",MHCLG,01/09/2020,Agency Staff,Housing and Vulnerable People Responses,ALEXANDER MANN SOLUTIONS LTD,,Large,,,5106263249,Contingent Labour,Short term programme backfill contractor,EC2N 3AQ,"4,003.56",
"Housing, Communities & Local Government",MHCLG,01/09/2020,Agency Staff,Housing and Vulnerable People Responses,ALEXANDER MANN SOLUTIONS LTD,,Large,,,5106263255,Contingent Labour,Interim Staff,EC2N 3AQ,"1,323.12",
"Housing, Communities & Local Government",MHCLG,01/09/2020,Agency Staff,Housing and Vulnerable People Responses,ALEXANDER MANN SOLUTIONS LTD,,Large,,,5106263258,Not Addressable,Short term programme backfill contractor,EC2N 3AQ,"3,233.64",
"Housing, Communities & Local Government",MHCLG,01/09/2020,Current (non AEF) Grants to Local Authorities,Housing and Vulnerable People Responses,SANCTUARY SUPPORTED LIVING,,,,,3700069588,,Grant payable by the Exchequer,WR1 3ZQ,"52,659.00",Yes
"Housing, Communities & Local Government",MHCLG,01/09/2020,Current (non AEF) Grants to Local Authorities,Housing and Vulnerable People Responses,WEAR VALLEY WOMEN'S AID,,,,,3700069589,,Grant payable by the Exchequer,DL14 7QR,"5,894.00",Yes
"Housing, Communities & Local Government",MHCLG,01/09/2020,Current Grants to Non Profit Bodies,Housing and Vulnerable People Responses,IMPROVEMENT & DEVELOPMENT AGENCY,Yes,Public Bodies,,236810359,2100307190,,Grant-cover costs of admininstering Planning Advisory Service ,SW1P 3HZ,"200,501.30",Yes
"Housing, Communities & Local Government",MHCLG,01/09/2020,ERDF Work in Progress � Capital,Economic and Business Response,EAST RIDING OF YORKSHIRE COUNCIL,,,,,7700007164,,ERDF grant payment,HU17 9BA,"156,715.90",Yes
"Housing, Communities & Local Government",MHCLG,01/09/2020,ERDF Work in Progress � Capital,Economic and Business Response,UNI HOSP B'HAM NHS FOUNDATION TRUST,,Large,,222651193,7700007160,,ERDF grant payment,B16 2GW,"9,473.48",Yes
"Housing, Communities & Local Government",MHCLG,01/09/2020,ERDF Work in Progress � Capital,Economic and Business Response,UNIVERSITY OF HULL,,Large,,,7700007155,,ERDF grant payment,HU6 7RX,"129,130.54",Yes
"Housing, Communities & Local Government",MHCLG,01/09/2020,ERDF Work in Progress � Capital,Economic and Business Response,UNIVERSITY OF YORK,,,,,7700007161,,ERDF grant payment,YO10 5DD,"94,442.73",Yes
"Housing, Communities & Local Government",MHCLG,01/09/2020,ERDF Work in Progress � Capital,Economic and Business Response,WORCESTERSHIRE COUNTY COUNCIL,,,,,7700007153,,ERDF grant payment,WR5 2NP,"84,790.83",Yes
"Housing, Communities & Local Government",MHCLG,01/09/2020,ERDF Work in Progress � Resource,Economic and Business Response,CHESTER UNIVERSITY,,Large,,,7700007166,,ERDF grant payment,CH1 4BJ,"44,165.90",Yes
"Housing, Communities & Local Government",MHCLG,01/09/2020,ERDF Work in Progress � Resource,Economic and Business Response,CITY OF BRADFORD MC,,,,,7700007162,,ERDF grant payment,BD1 1NN,"12,367.03",Yes
"Housing, Communities & Local Government",MHCLG,01/09/2020,ERDF Work in Progress � Resource,Economic and Business Response,DURHAM COUNTY COUNCIL,,,,,7700007158,,ERDF grant payment,DH1 5UF,"39,459.20",Yes
"Housing, Communities & Local Government",MHCLG,01/09/2020,ERDF Work in Progress � Resource,Economic and Business Response,EAST MIDLANDS CHAMBER(DNL),,,,,7700007167,,ERDF grant payment,S41 8ND,"144,107.81",Yes
"Housing, Communities & Local Government",MHCLG,01/09/2020,ERDF Work in Progress � Resource,Economic and Business Response,KINGSTON UPON HULL CITY COUNCIL,,Large,,,7700007156,,ERDF grant payment,HU1 2AA,"96,983.07",Yes
"Housing, Communities & Local Government",MHCLG,01/09/2020,ERDF Work in Progress � Resource,Economic and Business Response,LEEDS CITY COUNCIL,,Large,,,7700007159,,ERDF grant payment,LS2 8HD,"1,660.06",Yes
"Housing, Communities & Local Government",MHCLG,01/09/2020,ERDF Work in Progress � Resource,Economic and Business Response,LONDON AND PARTNERS LTD,,,,,7700007151,,ERDF grant payment,SE1 2RR,"167,018.19",Yes
"Housing, Communities & Local Government",MHCLG,01/09/2020,ERDF Work in Progress � Resource,Economic and Business Response,NORTHERN FILM & MEDIA LIMITED,,Micro,,,7700007152,,ERDF grant payment,NE8 3BA,"37,221.22",Yes
"Housing, Communities & Local Government",MHCLG,01/09/2020,ERDF Work in Progress � Resource,Economic and Business Response,NORTHUMBERLAND BUSINESS SERVICE LTD,,Small,,,7700007165,,ERDF grant payment,NE63 8AP,"47,514.58",Yes
"Housing, Communities & Local Government",MHCLG,01/09/2020,ERDF Work in Progress � Resource,Economic and Business Response,NORTHUMBERLAND COUNTY COUNCIL,,,,,7700007163,,ERDF grant payment,NE61 2EF,"63,063.31",Yes
"Housing, Communities & Local Government",MHCLG,01/09/2020,ERDF Work in Progress � Resource,Economic and Business Response,THURROCK BOROUGH COUNCIL,,,,,7700007168,,ERDF grant payment,RM17 6SL,"208,158.70",Yes
"Housing, Communities & Local Government",MHCLG,01/09/2020,ERDF Work in Progress � Resource,Economic and Business Response,UNI HOSP B'HAM NHS FOUNDATION TRUST,,Large,,222651193,7700007160,,ERDF grant payment,B16 2GW,"87,744.70",Yes
"Housing, Communities & Local Government",MHCLG,01/09/2020,ERDF Work in Progress � Resource,Economic and Business Response,UNIVERSITY OF HULL,,Large,,,7700007155,,ERDF grant payment,HU6 7RX,"144,884.22",Yes
"Housing, Communities & Local Government",MHCLG,01/09/2020,ERDF Work in Progress � Resource,Economic and Business Response,UNIVERSITY OF NOTTINGHAM,,,,,7700007157,,ERDF grant payment,NG7 2TU,"159,009.43",Yes
"Housing, Communities & Local Government",MHCLG,01/09/2020,ERDF Work in Progress � Resource,Economic and Business Response,UNIVERSITY OF WOLVERHAMPTON,,,,,7700007154,,ERDF grant payment,WV1 1LY,"61,180.29",Yes
"Housing, Communities & Local Government",MHCLG,01/09/2020,ERDF Work in Progress � Resource,Economic and Business Response,UNIVERSITY OF YORK,,,,,7700007161,,ERDF grant payment,YO10 5DD,"64,248.75",Yes
"Housing, Communities & Local Government",MHCLG,01/09/2020,ERDF Work in Progress � Resource,Economic and Business Response,WORCESTERSHIRE COUNTY COUNCIL,,,,,7700007153,,ERDF grant payment,WR5 2NP,"88,153.88",Yes
"Housing, Communities & Local Government",MHCLG,01/09/2020,EXP � PURCHASE OF GOODS /SERVICES R & D,Economic and Business Response,NATIONAL CENTRE FOR SOCIAL RESEARCH,,Large,,424047426,5106263268,Research,Research - English Housing Survey,EC1V 0AX,"40,708.31",
"Housing, Communities & Local Government",MHCLG,01/09/2020,EXP � PURCHASE OF GOODS /SERVICES R & D,Economic and Business Response,NATIONAL CENTRE FOR SOCIAL RESEARCH,,Large,,424047426,5106263269,Research,Research - English Housing Survey,EC1V 0AX,"284,810.65",
"Housing, Communities & Local Government",MHCLG,01/09/2020,Fixed Maintenance,Corporate and GOLD Secretariat Cells,DERISK (UK) LTD,,Small,,220390649,5106263220,Consultancy,Appointment of Principal Designer,WC2N 6DU,"7,459.99",
"Housing, Communities & Local Government",MHCLG,01/09/2020,Fixed Maintenance,Corporate and GOLD Secretariat Cells,DERISK (UK) LTD,,Small,,220390649,5106263264,Consultancy,Appointment of Principal Designer,WC2N 6DU,"7,459.99",
"Housing, Communities & Local Government",MHCLG,01/09/2020,IT - Service Contracts,Economic and Business Response,STORM ID LTD,,Medium,,,5106263168,IT Managed / Outsourced Services,High Streets Task Force Website,EH7 6BG,"3,510.00",
"Housing, Communities & Local Government",MHCLG,01/09/2020,Printing,Economic and Business Response,APS GROUP,,Micro,,212228001,5106263267,Printing Services,Corporate Publishing   Command & House,SK3 02P,"1,434.57",
"Housing, Communities & Local Government",MHCLG,01/09/2020,Translations,Emergency Response,MANCHESTER CITY COUNCIL,,Large,,238004407,5106263219,Interpretation and Translation,Translation of material for the ESOL for,M60 2LA,"4,830.00",
"Housing, Communities & Local Government",MHCLG,02/09/2020,"IT - PC, Network & Hardware",Corporate and GOLD Secretariat Cells,21st CENTURY OFFICE CONCEPTS LTD,,Small,,,5106263315,ICT Hardware,CV-19 Home Working Requirements,SG12 0SS,"6,244.32",
"Housing, Communities & Local Government",MHCLG,02/09/2020,IT - Service Contracts,Corporate and GOLD Secretariat Cells,GOVERNMENT LEGAL DEPARTMENT,,Public Bodies,,215580680,5106263305,IT Managed / Outsourced Services,Government Legal Department Litigation Fees,SW1H 9GL,"87,171.20",
"Housing, Communities & Local Government",MHCLG,02/09/2020,Management Consultancy,Housing and Vulnerable People Responses,FAITHFUL&GOULD LTD,,Large,,,5106263087,Consultancy,PMO Support,KT18 5BW,"156,737.84",
"Housing, Communities & Local Government",MHCLG,02/09/2020,Management Consultancy,Housing and Vulnerable People Responses,FAITHFUL&GOULD LTD,,Large,,,5106263088,Consultancy,PMO Support,KT18 5BW,"330,648.58",
"Housing, Communities & Local Government",MHCLG,02/09/2020,Management Consultancy,Housing and Vulnerable People Responses,Ignite Consulting Limited,,Micro,,,5106263195,Consultancy,Support to First Homes,SE1 2BB,"14,550.00",
"Housing, Communities & Local Government",MHCLG,02/09/2020,Professional services,Corporate and GOLD Secretariat Cells,ATKINS LTD,,Large,,293650339,5106263173,Financial,Support to Holocaust Memorial,KT18 5BW,"29,560.08",
"Housing, Communities & Local Government",MHCLG,02/09/2020,Professional services,Housing and Vulnerable People Responses,HAMPSHIRE COUNTY COUNCIL,,,,506774652,5106263311,Research,Secretariat Services - London Aggregates Working Party 20/21,SO23 8UD,"2,664.50",
"Housing, Communities & Local Government",MHCLG,02/09/2020,Professional services,Housing and Vulnerable People Responses,HAMPSHIRE COUNTY COUNCIL,,,,506774652,5106263312,Research,Secretariat Services - London Aggregates Working Party 20/21,SO23 8UD,"1,788.50",
"Housing, Communities & Local Government",MHCLG,02/09/2020,Professional services,Housing and Vulnerable People Responses,VALUATION OFFICE AGENCY,,Public Bodies,,215253886,5106263189,Financial,Community Infrastructure Levy,W1D 5BU,"4,434.99",
"Housing, Communities & Local Government",MHCLG,02/09/2020,Professional services,Housing and Vulnerable People Responses,VALUATION OFFICE AGENCY,,Public Bodies,,215253886,5106263190,Financial,Community Infrastructure Levy,W1D 5BU,"2,014.18",
"Housing, Communities & Local Government",MHCLG,02/09/2020,Professional services,Housing and Vulnerable People Responses,VALUATION OFFICE AGENCY,,Public Bodies,,215253886,5106263191,Financial,Community Infrastructure Levy,W1D 5BU,603.46,
"Housing, Communities & Local Government",MHCLG,02/09/2020,Professional services,Housing and Vulnerable People Responses,VALUATION OFFICE AGENCY,,Public Bodies,,215253886,5106263192,Financial,Community Infrastructure Levy,W1D 5BU,"2,243.09",
"Housing, Communities & Local Government",MHCLG,02/09/2020,Professional services,Housing and Vulnerable People Responses,VALUATION OFFICE AGENCY,,Public Bodies,,215253886,5106263193,Financial,Community Infrastructure Levy,W1D 5BU,973.12,
"Housing, Communities & Local Government",MHCLG,02/09/2020,Professional services,Housing and Vulnerable People Responses,VALUATION OFFICE AGENCY,,Public Bodies,,215253886,5106263194,Financial,Community Infrastructure Levy,W1D 5BU,"1,528.83",
"Housing, Communities & Local Government",MHCLG,02/09/2020,Property/Estates Consultancy,Housing and Vulnerable People Responses,PRP ARCHITECTS LLP,,Large,,,5106263282,Research,A D B Research Project,KT7 0QJ,"15,044.00",
"Housing, Communities & Local Government",MHCLG,02/09/2020,Publications,Economic and Business Response,PRESS DATA LTD,,Small,,,5106263290,Learning and Development Materials,Media Monitoring - Press Cuttings,SE1 1JA,"1,643.63",
"Housing, Communities & Local Government",MHCLG,02/09/2020,Steady State Service Provision,Corporate and GOLD Secretariat Cells,CGI IT UK LIMITED,,Large,,239881618,5106263221,Business Process Outsourcing Services,Payroll Services and Licences 2020-21,EC3M 3BY,"13,173.00",
"Housing, Communities & Local Government",MHCLG,02/09/2020,Steady State Service Provision,Corporate and GOLD Secretariat Cells,CGI IT UK LIMITED,,Large,,239881618,5106263304,Business Process Outsourcing Services,Payroll Services and Licences 2019-20,EC3M 3BY,311.38,
"Housing, Communities & Local Government",MHCLG,03/09/2020,Current Grants to Non Profit Bodies,Emergency Response,STH YORKSHIRE COMMUNITY FOUNDATION,,,,,2100307210,,Match-funding grant to South Yorks CF for Floods,S9 2RX,"80,000.00",Yes
"Housing, Communities & Local Government",MHCLG,03/09/2020,Current Grants to Non Profit Bodies,Emergency Response,THE LINKING NETWORK,,Micro,,,2100307219,,Schools Linking project,BD1 1NN,"195,744.09",Yes
"Housing, Communities & Local Government",MHCLG,03/09/2020,ERDF Work in Progress � Capital,Economic and Business Response,Krowji Ltd,,,,,7700007169,,ERDF grant payment,TR15 3AJ,"35,174.99",Yes
"Housing, Communities & Local Government",MHCLG,03/09/2020,ERDF Work in Progress � Resource,Economic and Business Response,GFIRST LEP CIC,,Small,,,7700007171,,ERDF grant payment,GL2 9HW,"32,370.37",Yes
"Housing, Communities & Local Government",MHCLG,03/09/2020,ERDF Work in Progress � Resource,Economic and Business Response,Krowji Ltd,,,,,7700007169,,ERDF grant payment,TR15 3AJ,"2,113.45",Yes
"Housing, Communities & Local Government",MHCLG,03/09/2020,ERDF Work in Progress � Resource,Economic and Business Response,LEICESTER CITY COUNCIL,,,,,7700007170,,ERDF grant payment,LE1 1FZ,"10,624.23",Yes
"Housing, Communities & Local Government",MHCLG,03/09/2020,Professional services,Housing and Vulnerable People Responses,CAPITA SYMONDS LTD(USE429583),,,,,5106263335,Research,Secretariat Services - London Aggregates Working Party 20/21,RH19 1UU,"3,773.10",
"Housing, Communities & Local Government",MHCLG,03/09/2020,Professional services,Housing and Vulnerable People Responses,CAPITA SYMONDS LTD(USE429583),,,,,5106263335,Research,Secretariat Services - West Mid Aggregates Working Party 20/21,RH19 1UU,"3,359.79",
"Housing, Communities & Local Government",MHCLG,03/09/2020,Professional services,Housing and Vulnerable People Responses,CAPITA SYMONDS LTD(USE429583),,,,,5106263335,Research,Secretariat Services - East Mid Aggregates Working Party 20/21,RH19 1UU,"3,079.81",
"Housing, Communities & Local Government",MHCLG,03/09/2020,Professional services,Housing and Vulnerable People Responses,CAPITA SYMONDS LTD(USE429583),,,,,5106263335,Research,Secretariat Services-York/Humb Aggregates Working Party 20/21,RH19 1UU,"2,973.15",
"Housing, Communities & Local Government",MHCLG,03/09/2020,Professional services,Housing and Vulnerable People Responses,NORTHUMBERLAND CC,,Large,,228141644,5106263327,Research,Secretariat Services - North East Aggregates Working Party 20/21,NE61 2EF,640.00,
"Housing, Communities & Local Government",MHCLG,03/09/2020,Professional services,Housing and Vulnerable People Responses,NORTHUMBERLAND CC,,Large,,228141644,5106263328,Research,Secretariat Services - North East Aggregates Working Party 20/21,NE61 2EF,"2,720.00",
"Housing, Communities & Local Government",MHCLG,03/09/2020,Professional services,Housing and Vulnerable People Responses,On-Pole Limited,,Micro,,,5106263279,Technical Services,BSP Technical Guidance Author,BS40 6LB,"3,600.00",
"Housing, Communities & Local Government",MHCLG,03/09/2020,Publications,Economic and Business Response,JONES YARRELL LEADENHALL LTD,,Large,,505670265,5106263333,Learning and Development Materials,Newspaper & Magazine Subscription 20/21,E3 3JH,273.64,
"Housing, Communities & Local Government",MHCLG,03/09/2020,Repayments of Private Sect Grant (Cap),Economic and Business Response,Venator Materials UK Ltd,,Large,,,2300003156,,RGF Grant Recovery - 32C August 2020,TS25 2DD,"-3,276.00",
"Housing, Communities & Local Government",MHCLG,03/09/2020,Software Licences,Corporate and GOLD Secretariat Cells,CORE STREAM LTD,,Small,,,5106263297,Software,Year 2 Subscription costs 2020/21,W1K 7AX,"3,738.00",
"Housing, Communities & Local Government",MHCLG,03/09/2020,Steady State Service Provision,Corporate and GOLD Secretariat Cells,FACULTY SCIENCE LTD,,Medium,,,5106263289,Business Process Outsourcing Services,Additional analytical work - Covid 19,W1G 9XS,"3,553.68",
"Housing, Communities & Local Government",MHCLG,03/09/2020,Steady State Service Provision,Corporate and GOLD Secretariat Cells,MYCSP LIMITED,,Large,,217279092,5106263330,Business Process Outsourcing Services,Pensions Interface Improvements,SK3 0XN,574.85,
"Housing, Communities & Local Government",MHCLG,03/09/2020,Vehicle hire,Corporate and GOLD Secretariat Cells,EDENRED (UK GROUP) LTD,,Large,,210186342,5106263321,Vehicle Hire and Lease,Cycle to Work 20/21,SW1V 2RS,"1,560.00",
"Housing, Communities & Local Government",MHCLG,03/09/2020,Web Services,Economic and Business Response,DEXTROUS WEB LTD,,Micro,,211267270,5106263283,ICT Services,Own your home website hosting and suppor,N1 7NG,"1,746.60",
"Housing, Communities & Local Government",MHCLG,04/09/2020,Conferences and Meeting Facilities,Economic and Business Response,PASSAGE TRADING SERVICES LTD,Yes,Micro,,,5106260742,Business Travel Accommodation,SLT Awayday Day,SW1P 1NL,-637.44,
"Housing, Communities & Local Government",MHCLG,04/09/2020,ERDF Work in Progress � Capital,Economic and Business Response,GM BUSINESS SUPPORT LTD,,,,,7700007181,,ERDF grant payment,M1 5JW,"16,478.00",Yes
"Housing, Communities & Local Government",MHCLG,04/09/2020,ERDF Work in Progress � Capital,Economic and Business Response,Krowji Ltd,,,,,7700007175,,ERDF grant payment,TR15 3AJ,"105,886.19",Yes
"Housing, Communities & Local Government",MHCLG,04/09/2020,ERDF Work in Progress � Capital,Economic and Business Response,OXFORD INNOVATION SERVICES LTD(MGP2,,,,,7700007180,,ERDF grant payment,OX1 1BY,"97,003.10",Yes
"Housing, Communities & Local Government",MHCLG,04/09/2020,ERDF Work in Progress � Capital,Economic and Business Response,SOUTH HOLLAND DISTRICT COUNCIL,,,,,7700007173,,ERDF grant payment,PE11 2XE,"91,906.16",Yes
"Housing, Communities & Local Government",MHCLG,04/09/2020,ERDF Work in Progress � Resource,Economic and Business Response,GM BUSINESS SUPPORT LTD,,,,,7700007174,,ERDF grant payment,M1 5JW,"178,037.55",Yes
"Housing, Communities & Local Government",MHCLG,04/09/2020,ERDF Work in Progress � Resource,Economic and Business Response,GM BUSINESS SUPPORT LTD,,,,,7700007181,,ERDF grant payment,M1 5JW,"117,011.17",Yes
"Housing, Communities & Local Government",MHCLG,04/09/2020,ERDF Work in Progress � Resource,Economic and Business Response,Krowji Ltd,,,,,7700007175,,ERDF grant payment,TR15 3AJ,"1,131.47",Yes
"Housing, Communities & Local Government",MHCLG,04/09/2020,ERDF Work in Progress � Resource,Economic and Business Response,LEICESTER CITY COUNCIL,,,,,7700007176,,ERDF grant payment,LE1 1FZ,"10,869.66",Yes
"Housing, Communities & Local Government",MHCLG,04/09/2020,ERDF Work in Progress � Resource,Economic and Business Response,LIVERPOOL CITY REGION COMB AUTH,,,,,7700007172,,ERDF grant payment,L3 1FZ,"181,413.83",Yes
"Housing, Communities & Local Government",MHCLG,04/09/2020,ERDF Work in Progress � Resource,Economic and Business Response,OXFORD INNOVATION SERVICES LTD,,Medium,,,7700007178,,ERDF grant payment,OX1 1BY,"36,502.40",Yes
"Housing, Communities & Local Government",MHCLG,04/09/2020,ERDF Work in Progress � Resource,Economic and Business Response,OXFORD INNOVATION SERVICES LTD(MGP2,,,,,7700007180,,ERDF grant payment,OX1 1BY,"327,634.35",Yes
"Housing, Communities & Local Government",MHCLG,04/09/2020,ERDF Work in Progress � Resource,Economic and Business Response,Ribble Rivers Trust,,Small,,,7700007177,,ERDF grant payment,BB7 4QF,"6,318.35",Yes
"Housing, Communities & Local Government",MHCLG,04/09/2020,ERDF Work in Progress � Resource,Economic and Business Response,SHROPSHIRE COUNCIL,,,,,7700007179,,ERDF grant payment,SY2 6ND,"8,658.40",Yes
"Housing, Communities & Local Government",MHCLG,04/09/2020,ERDF Work in Progress � Resource,Economic and Business Response,SOUTH HOLLAND DISTRICT COUNCIL,,,,,7700007173,,ERDF grant payment,PE11 2XE,"28,687.88",Yes
"Housing, Communities & Local Government",MHCLG,04/09/2020,EXP � PURCHASE OF GOODS /SERVICES R & D,Economic and Business Response,POPULUS,,Medium,,,5106263322,Research,Research - Tracker Survey,EC1V 0AT,550.00,
"Housing, Communities & Local Government",MHCLG,04/09/2020,EXP � PURCHASE OF GOODS /SERVICES R & D,Housing and Vulnerable People Responses,ADROIT ECONOMICS LTD,,Micro,,347660925,5106263362,Social and Economic Research,Economic Analysis on Building safety,WA15 9RE,"144,361.51",
"Housing, Communities & Local Government",MHCLG,04/09/2020,Legal Fees,Corporate and GOLD Secretariat Cells,PINSENT MASONS LLP,,Large,,215580626,5106263389,Legal,Legal Advice,EC2A 4ES,499.20,
"Housing, Communities & Local Government",MHCLG,04/09/2020,Legal Fees,Economic and Business Response,EVERSHEDS,,,,,5106263378,Legal,Legal Advice,CF10 5BT,"14,400.00",
"Housing, Communities & Local Government",MHCLG,04/09/2020,Physical Storage,Corporate and GOLD Secretariat Cells,IRON MOUNTAIN (UK) LIMITED,,Large,,501338354,5106263373,Warehousing and Storage,off-site tapes 2018-2019,EH54 7DF,723.48,
"Housing, Communities & Local Government",MHCLG,04/09/2020,Professional services,Corporate and GOLD Secretariat Cells,WSP UK LTD,,Large,,,5106263351,Financial,Design engineer services,WC2A 1AF,"24,000.00",
"Housing, Communities & Local Government",MHCLG,04/09/2020,Professional services,Housing and Vulnerable People Responses,HAMPSHIRE COUNTY COUNCIL,,,,506774652,5106263384,Research,Secretariat Services - South East Aggregates Working Party 20/21,SO23 8UD,"4,672.00",
"Housing, Communities & Local Government",MHCLG,04/09/2020,Software Licences,Corporate and GOLD Secretariat Cells,SLACK TECHNOLOGIES LTD,,Large,,,5106263387,Software,1 Year Slacks Subscription,D02 FD79,"8,001.00",
"Housing, Communities & Local Government",MHCLG,04/09/2020,Steady State Service Provision,Corporate and GOLD Secretariat Cells,EDENRED (UK GROUP) LTD,,Large,,210186342,5106263346,Business Process Outsourcing Services,EPS Voucher 20/21,SW1V 2RS,"7,470.00",
"Housing, Communities & Local Government",MHCLG,04/09/2020,Steady State Service Provision,Housing and Vulnerable People Responses,SERCO LTD,,Large,,216308056,5106263374,Business Process Outsourcing Services,Right to buy agent,RG27 9UY,"30,836.17",
"Housing, Communities & Local Government",MHCLG,07/09/2020,Agency Staff,Corporate and GOLD Secretariat Cells,ALEXANDER MANN SOLUTIONS LTD,,Large,,,5106263397,Contingent Labour,Interim Staff,EC2N 3AQ,"2,611.32",
"Housing, Communities & Local Government",MHCLG,07/09/2020,Agency Staff,Corporate and GOLD Secretariat Cells,ALEXANDER MANN SOLUTIONS LTD,,Large,,,5106263399,Contingent Labour,Interim Staff,EC2N 3AQ,"2,677.73",
"Housing, Communities & Local Government",MHCLG,07/09/2020,Agency Staff,Corporate and GOLD Secretariat Cells,ALEXANDER MANN SOLUTIONS LTD,,Large,,,5106263402,Contingent Labour,Interim Staff,EC2N 3AQ,"2,677.74",
"Housing, Communities & Local Government",MHCLG,07/09/2020,Agency Staff,Corporate and GOLD Secretariat Cells,ALEXANDER MANN SOLUTIONS LTD,,Large,,,5106263404,Contingent Labour,Interim Staff,EC2N 3AQ,"2,340.54",
"Housing, Communities & Local Government",MHCLG,07/09/2020,Agency Staff,Corporate and GOLD Secretariat Cells,ALEXANDER MANN SOLUTIONS LTD,,Large,,,5106263409,Contingent Labour,Interim Staff,EC2N 3AQ,"4,652.04",
"Housing, Communities & Local Government",MHCLG,07/09/2020,Agency Staff,Corporate and GOLD Secretariat Cells,ALEXANDER MANN SOLUTIONS LTD,,Large,,,5106263413,Contingent Labour,Interim Staff,EC2N 3AQ,742.34,
"Housing, Communities & Local Government",MHCLG,07/09/2020,Agency Staff,Corporate and GOLD Secretariat Cells,ALEXANDER MANN SOLUTIONS LTD,,Large,,,5106263425,Contingent Labour,Interim Staff,EC2N 3AQ,"3,165.24",
"Housing, Communities & Local Government",MHCLG,07/09/2020,Agency Staff,Corporate and GOLD Secretariat Cells,ALEXANDER MANN SOLUTIONS LTD,,Large,,,5106263428,Contingent Labour,Interim Staff,EC2N 3AQ,"3,323.52",
"Housing, Communities & Local Government",MHCLG,07/09/2020,Agency Staff,Corporate and GOLD Secretariat Cells,ALEXANDER MANN SOLUTIONS LTD,,Large,,,5106263429,Contingent Labour,Interim Staff,EC2N 3AQ,"3,067.86",
"Housing, Communities & Local Government",MHCLG,07/09/2020,Agency Staff,Corporate and GOLD Secretariat Cells,ALEXANDER MANN SOLUTIONS LTD,,Large,,,5106263430,Contingent Labour,Interim Staff,EC2N 3AQ,"5,851.38",
"Housing, Communities & Local Government",MHCLG,07/09/2020,Agency Staff,Corporate and GOLD Secretariat Cells,ALEXANDER MANN SOLUTIONS LTD,,Large,,,5106263432,Contingent Labour,Interim Staff,EC2N 3AQ,"2,205.18",
"Housing, Communities & Local Government",MHCLG,07/09/2020,Agency Staff,Corporate and GOLD Secretariat Cells,ALEXANDER MANN SOLUTIONS LTD,,Large,,,5106263434,Contingent Labour,Interim Staff,EC2N 3AQ,"4,003.56",
"Housing, Communities & Local Government",MHCLG,07/09/2020,Agency Staff,Corporate and GOLD Secretariat Cells,ALEXANDER MANN SOLUTIONS LTD,,Large,,,5106263435,Contingent Labour,Interim Staff,EC2N 3AQ,"1,968.96",
"Housing, Communities & Local Government",MHCLG,07/09/2020,Agency Staff,Corporate and GOLD Secretariat Cells,ALEXANDER MANN SOLUTIONS LTD,,Large,,,5106263440,Contingent Labour,Interim Staff,EC2N 3AQ,"3,464.58",
"Housing, Communities & Local Government",MHCLG,07/09/2020,Agency Staff,Corporate and GOLD Secretariat Cells,ALEXANDER MANN SOLUTIONS LTD,,Large,,,5106263441,Contingent Labour,Interim Staff,EC2N 3AQ,"5,389.38",
"Housing, Communities & Local Government",MHCLG,07/09/2020,Agency Staff,Economic and Business Response,ALEXANDER MANN SOLUTIONS LTD,,Large,,,5106263416,Contingent Labour,contingent labour,EC2N 3AQ,586.66,
"Housing, Communities & Local Government",MHCLG,07/09/2020,Agency Staff,Economic and Business Response,ALEXANDER MANN SOLUTIONS LTD,,Large,,,5106263426,Contingent Labour,contingent labour,EC2N 3AQ,"1,025.53",
"Housing, Communities & Local Government",MHCLG,07/09/2020,Agency Staff,Emergency Response,ALEXANDER MANN SOLUTIONS LTD,,Large,,,5106263419,Contingent Labour,Interim Staff,EC2N 3AQ,"1,016.28",
"Housing, Communities & Local Government",MHCLG,07/09/2020,Agency Staff,Emergency Response,ALEXANDER MANN SOLUTIONS LTD,,Large,,,5106263436,Contingent Labour,Interim Staff,EC2N 3AQ,"2,189.52",
"Housing, Communities & Local Government",MHCLG,07/09/2020,Agency Staff,Housing and Vulnerable People Responses,ALEXANDER MANN SOLUTIONS LTD,,Large,,,5106263401,Contingent Labour,Short term programme backfill contractor,EC2N 3AQ,"2,956.46",
"Housing, Communities & Local Government",MHCLG,07/09/2020,Agency Staff,Housing and Vulnerable People Responses,ALEXANDER MANN SOLUTIONS LTD,,Large,,,5106263408,Contingent Labour,Short term programme backfill contractor,EC2N 3AQ,"2,835.24",
"Housing, Communities & Local Government",MHCLG,07/09/2020,Agency Staff,Housing and Vulnerable People Responses,ALEXANDER MANN SOLUTIONS LTD,,Large,,,5106263410,Contingent Labour,Short term programme backfill contractor,EC2N 3AQ,"3,049.49",
"Housing, Communities & Local Government",MHCLG,07/09/2020,Agency Staff,Housing and Vulnerable People Responses,ALEXANDER MANN SOLUTIONS LTD,,Large,,,5106263411,Contingent Labour,Planning Consultant fees,EC2N 3AQ,"18,160.85",
"Housing, Communities & Local Government",MHCLG,07/09/2020,Agency Staff,Housing and Vulnerable People Responses,ALEXANDER MANN SOLUTIONS LTD,,Large,,,5106263418,Contingent Labour,Planning Consultant fees,EC2N 3AQ,"2,910.22",
"Housing, Communities & Local Government",MHCLG,07/09/2020,Agency Staff,Housing and Vulnerable People Responses,ALEXANDER MANN SOLUTIONS LTD,,Large,,,5106263423,Contingent Labour,Interim Staff,EC2N 3AQ,"1,058.50",
"Housing, Communities & Local Government",MHCLG,07/09/2020,Agency Staff,Housing and Vulnerable People Responses,ALEXANDER MANN SOLUTIONS LTD,,Large,,,5106263424,Not Addressable,Short term programme backfill contractor,EC2N 3AQ,"3,233.64",
"Housing, Communities & Local Government",MHCLG,07/09/2020,Agency Staff,Housing and Vulnerable People Responses,ALEXANDER MANN SOLUTIONS LTD,,Large,,,5106263439,Contingent Labour,Short term programme backfill contractor,EC2N 3AQ,"4,003.56",
"Housing, Communities & Local Government",MHCLG,07/09/2020,Agency Staff,Housing and Vulnerable People Responses,ALEXANDER MANN SOLUTIONS LTD,,Large,,,5106263445,Contingent Labour,Refund  - Planning Consultant  fees,EC2N 3AQ,"-15,582.46",
"Housing, Communities & Local Government",MHCLG,07/09/2020,Cap Grants to Local Authorities (DEL),Economic and Business Response,GREATER LONDON AUTHORITY,,Large,,225353416,2100307207,,Housing Infrastructure Programme ,SE10 1AP,"3,280,000.00",Yes
"Housing, Communities & Local Government",MHCLG,07/09/2020,Catering,Corporate and GOLD Secretariat Cells,BENUGO LTD,,Large,,235064685,5106263199,Business Support,Catering for MC Reps meetings,EC1V 2PT,316.00,
"Housing, Communities & Local Government",MHCLG,07/09/2020,Catering,Housing and Vulnerable People Responses,ST MATTHEW'S CONFERENCE CENTRE LTD,,Small,,,5106263393,Business Support,Catering for London Focus Group seminar,SW1P 2BU,79.90,
"Housing, Communities & Local Government",MHCLG,07/09/2020,Conferences and Meeting Facilities,Housing and Vulnerable People Responses,ST MATTHEW'S CONFERENCE CENTRE LTD,,Small,,,5106263393,Business Travel Accommodation,Room Hire for London Focus Group Seminar,SW1P 2BU,600.00,
"Housing, Communities & Local Government",MHCLG,07/09/2020,Current (non AEF) Grants to Local Authorities,Housing and Vulnerable People Responses,Bexley Women�s Aid,,,,,2300003150,,Reimbursement of grant over payment to Bexley Women Aid,DA7 4BS,"-31,816.00",Yes
"Housing, Communities & Local Government",MHCLG,07/09/2020,ERDF Work in Progress � Capital,Economic and Business Response,HALTON BOROUGH COUNCIL,,Large,,,7700007184,,ERDF grant payment,WA8 7QF,"141,764.60",Yes
"Housing, Communities & Local Government",MHCLG,07/09/2020,ERDF Work in Progress � Resource,Economic and Business Response,BIRMINGHAM CITY COUNCIL,,,,,7700007190,,ERDF grant payment,B2 2AJ,"69,906.96",Yes
"Housing, Communities & Local Government",MHCLG,07/09/2020,ERDF Work in Progress � Resource,Economic and Business Response,EDGE HILL UNIVERSITY,,Large,,,7700007188,,ERDF grant payment,L39 4QP,"4,577.23",Yes
"Housing, Communities & Local Government",MHCLG,07/09/2020,ERDF Work in Progress � Resource,Economic and Business Response,HALTON BOROUGH COUNCIL,,Large,,,7700007184,,ERDF grant payment,WA8 7QF,"1,326.94",Yes
"Housing, Communities & Local Government",MHCLG,07/09/2020,ERDF Work in Progress � Resource,Economic and Business Response,MANCHESTER UNIVERSITY,,Large,,,7700007189,,ERDF grant payment,M13 9PL,"32,179.25",Yes
"Housing, Communities & Local Government",MHCLG,07/09/2020,ERDF Work in Progress � Resource,Economic and Business Response,NEWHAM COLLEGE OF FURTHER EDUCATION,,,,,7700007186,,ERDF grant payment,E6 6ER,"70,809.08",Yes
"Housing, Communities & Local Government",MHCLG,07/09/2020,ERDF Work in Progress � Resource,Economic and Business Response,NORTH WEST UNI EUROP UNIT LTD,,Micro,,,7700007185,,ERDF grant payment,M1 3HZ,"143,003.63",Yes
"Housing, Communities & Local Government",MHCLG,07/09/2020,ERDF Work in Progress � Resource,Economic and Business Response,UNIVERSITY OF CENTRAL LANCASHIRE,,Large,,,7700007182,,ERDF grant payment,PR7 7DL,"94,279.07",Yes
"Housing, Communities & Local Government",MHCLG,07/09/2020,ERDF Work in Progress � Resource,Economic and Business Response,UNIVERSITY OF WOLVERHAMPTON,,,,,7700007183,,ERDF grant payment,WV1 1LY,"26,787.46",Yes
"Housing, Communities & Local Government",MHCLG,07/09/2020,ERDF Work in Progress � Resource,Economic and Business Response,UNIVERSITY OF WOLVERHAMPTON,,,,,7700007187,,ERDF grant payment,WV1 1LY,"33,557.69",Yes
"Housing, Communities & Local Government",MHCLG,07/09/2020,EXP � PURCHASE OF GOODS /SERVICES R & D,Economic and Business Response,POPULUS,,Medium,,,5106263451,Research,Research - Tracker Survey,EC1V 0AT,550.00,
"Housing, Communities & Local Government",MHCLG,07/09/2020,Grant in Aid to NDPBs (non budget),Emergency Response,COMMISSION LOCAL ADMINISTRATION,,,,215271508,2100307215,,DCLG DEL 20/21 budget contribution for the CLAE,CV1 3BH,"950,000.00",Yes
"Housing, Communities & Local Government",MHCLG,07/09/2020,Grant in Aid to NDPBs (non budget),Emergency Response,VALUATION TRIBUNAL SERVICE,,,,211218366,2100307237,,GIA to VTS,E1 8EU,"500,000.00",Yes
"Housing, Communities & Local Government",MHCLG,07/09/2020,IT - Service Contracts,Economic and Business Response,RISUAL LIMITED,,Medium,,,5106263275,IT Managed / Outsourced Services,Open Data Communities Development work,ST18 0WP,"5,100.00",
"Housing, Communities & Local Government",MHCLG,07/09/2020,IT - Service Contracts,Economic and Business Response,RISUAL LIMITED,,Medium,,,5106263276,IT Managed / Outsourced Services,Open Data Communities Development work,ST18 0WP,"18,360.00",
"Housing, Communities & Local Government",MHCLG,07/09/2020,Management Consultancy,Emergency Response,PA CONSULTING SERVICES LIMITED,,Large,,211000617,5106263145,Consultancy,Consultancy Support to RED,SW1W 9SR,"238,448.40",
"Housing, Communities & Local Government",MHCLG,07/09/2020,Management Consultancy,Housing and Vulnerable People Responses,KOSI CORPORATION LIMITED,,Small,,,5106263407,Consultancy,Due Diligence Duties,BT34 2DH,"34,620.00",
"Housing, Communities & Local Government",MHCLG,07/09/2020,Professional services,Corporate and GOLD Secretariat Cells,ADJAYE ASSOCIATES LTD,,Large,,,5106263458,Financial,Design of Holocaust Memorial,NW1 5QT,"42,429.60",
"Housing, Communities & Local Government",MHCLG,07/09/2020,Professional services,Corporate and GOLD Secretariat Cells,ADJAYE ASSOCIATES LTD,,Large,,,5106263459,Financial,Design of Holocaust Memorial,NW1 5QT,"20,700.00",
"Housing, Communities & Local Government",MHCLG,07/09/2020,Professional services,Housing and Vulnerable People Responses,LOCALITY,,Medium,,347998312,5106263447,Technical Services,DMHP 20/21 Technical Support,N1 6DR,"145,907.18",
"Housing, Communities & Local Government",MHCLG,07/09/2020,Professional services,Housing and Vulnerable People Responses,VALUATION OFFICE AGENCY,,Public Bodies,,215253886,5106263396,Financial,Community Infrastructure Levy,W1D 5BU,"1,087.73",
"Housing, Communities & Local Government",MHCLG,07/09/2020,Professional services,Housing and Vulnerable People Responses,VALUATION OFFICE AGENCY,,Public Bodies,,215253886,5106263398,Financial,Community Infrastructure Levy,W1D 5BU,659.93,
"Housing, Communities & Local Government",MHCLG,07/09/2020,Steady State Service Provision,Housing and Vulnerable People Responses,LOCALITY,,Medium,,347998312,5106263448,Business Process Outsourcing Services,Neighourhood Planning Contract 2020/21-Technical Support,N1 6DR,"165,877.00",
"Housing, Communities & Local Government",MHCLG,07/09/2020,Utilisation of Unfunded Pension Scheme,Corporate and GOLD Secretariat Cells,LONDON PENSIONS FUND AUTHORITY,,Public Bodies,,236915880,5106263431,Financial,Pension fund management,SE1 0LL,403.89,
"Housing, Communities & Local Government",MHCLG,07/09/2020,Web Services,Corporate and GOLD Secretariat Cells,BIG BLUE DOOR,,Micro,,,5106263169,IT Managed / Outsourced Services,Website or Grenfell Tower Memori,SE1 2PZ,"1,800.00",
"Housing, Communities & Local Government",MHCLG,08/09/2020,Cap Grants to Private Sector Companies,Corporate and GOLD Secretariat Cells,CANTILLON LIMITED,,Medium,,,5106263482,Business Process Outsourcing Services,Grenfell Tower site costs,WD25 8HH,"35,628.00",Yes
"Housing, Communities & Local Government",MHCLG,08/09/2020,ERDF Work in Progress � Capital,Economic and Business Response,BRADFORD UNIVERSITY,,,,,7700007215,,ERDF grant payment,BD7 1DP,"256,924.29",Yes
"Housing, Communities & Local Government",MHCLG,08/09/2020,ERDF Work in Progress � Capital,Economic and Business Response,DARLINGTON BOROUGH COUNCIL,,,,,7700007191,,ERDF grant payment,DL1 5QT,"1,249,068.32",Yes
"Housing, Communities & Local Government",MHCLG,08/09/2020,ERDF Work in Progress � Capital,Economic and Business Response,EAST RIDING OF YORKSHIRE COUNCIL,,,,,7700007203,,ERDF grant payment,HU17 9BA,"1,312,403.84",Yes
"Housing, Communities & Local Government",MHCLG,08/09/2020,ERDF Work in Progress � Capital,Economic and Business Response,NOTTINGHAM CITY COUNCIL,,Large,,,7700007216,,ERDF grant payment,NG2 3NG,"18,783.40",Yes
"Housing, Communities & Local Government",MHCLG,08/09/2020,ERDF Work in Progress � Resource,Economic and Business Response,ASTON UNIVERSITY,,Large,,227749751,7700007210,,ERDF grant payment,B4 7ET,"57,457.25",Yes
"Housing, Communities & Local Government",MHCLG,08/09/2020,ERDF Work in Progress � Resource,Economic and Business Response,BRADFORD UNIVERSITY,,,,,7700007215,,ERDF grant payment,BD7 1DP,"16,885.04",Yes
"Housing, Communities & Local Government",MHCLG,08/09/2020,ERDF Work in Progress � Resource,Economic and Business Response,BRISTOL CITY COUNCIL,,,,,7700007196,,ERDF grant payment,BS3 9FS,"26,686.02",Yes
"Housing, Communities & Local Government",MHCLG,08/09/2020,ERDF Work in Progress � Resource,Economic and Business Response,COVENTRY UNIVERSITY ENTERPRISES LTD,,,,,7700007200,,ERDF grant payment,CV1 2TT,"38,556.82",Yes
"Housing, Communities & Local Government",MHCLG,08/09/2020,ERDF Work in Progress � Resource,Economic and Business Response,COVENTRY UNIVERSITY ENTERPRISES LTD,,,,,7700007213,,ERDF grant payment,CV1 2TT,"75,587.44",Yes
"Housing, Communities & Local Government",MHCLG,08/09/2020,ERDF Work in Progress � Resource,Economic and Business Response,DURHAM COUNTY COUNCIL,,,,,7700007192,,ERDF grant payment,DH1 5UF,"1,844,331.12",Yes
"Housing, Communities & Local Government",MHCLG,08/09/2020,ERDF Work in Progress � Resource,Economic and Business Response,E-Factor Group Ltd,,,,,7700007208,,ERDF grant payment,DN31 3AT,"77,756.19",Yes
"Housing, Communities & Local Government",MHCLG,08/09/2020,ERDF Work in Progress � Resource,Economic and Business Response,ESSEX COUNTY COUNCIL,,Large,,,7700007217,,ERDF grant payment,CM1 1LX,"127,631.13",Yes
"Housing, Communities & Local Government",MHCLG,08/09/2020,ERDF Work in Progress � Resource,Economic and Business Response,EXEMPLAS LIMITED,,Medium,,,7700007195,,ERDF grant payment,AL10 9NE,"117,581.54",Yes
"Housing, Communities & Local Government",MHCLG,08/09/2020,ERDF Work in Progress � Resource,Economic and Business Response,HASTINGS BOROUGH COUNCIL,,,,,7700007205,,ERDF grant payment,TN34 3UY,"135,711.84",Yes
"Housing, Communities & Local Government",MHCLG,08/09/2020,ERDF Work in Progress � Resource,Economic and Business Response,HEREFORDSHIRE COUNCIL,,,,,7700007211,,ERDF grant payment,HR1 0LE,"21,085.56",Yes
"Housing, Communities & Local Government",MHCLG,08/09/2020,ERDF Work in Progress � Resource,Economic and Business Response,LEEDS CITY COUNCIL,,Large,,,7700007207,,ERDF grant payment,LS2 8HD,"349,276.11",Yes
"Housing, Communities & Local Government",MHCLG,08/09/2020,ERDF Work in Progress � Resource,Economic and Business Response,NEWCASTLE CITY COUNCIL,,,,,7700007209,,ERDF grant payment,NE1 8QH,"49,299.55",Yes
"Housing, Communities & Local Government",MHCLG,08/09/2020,ERDF Work in Progress � Resource,Economic and Business Response,NEWCASTLE GATESHEAD INITIATIVE LTD,,,,,7700007204,,ERDF grant offset,NE8 3AE,"-3,378.42",Yes
"Housing, Communities & Local Government",MHCLG,08/09/2020,ERDF Work in Progress � Resource,Economic and Business Response,NEWCASTLE GATESHEAD INITIATIVE LTD,,,,,7700007214,,ERDF grant payment,NE8 3AE,"52,787.78",Yes
"Housing, Communities & Local Government",MHCLG,08/09/2020,ERDF Work in Progress � Resource,Economic and Business Response,NORTHUMBERLAND BUSINESS SERVICE LTD,,Small,,,7700007194,,ERDF grant payment,NE63 8AP,"91,335.29",Yes
"Housing, Communities & Local Government",MHCLG,08/09/2020,ERDF Work in Progress � Resource,Economic and Business Response,NORTHUMBERLAND BUSINESS SERVICE LTD,,Small,,,7700007202,,ERDF grant payment,NE63 8AP,"71,871.43",Yes
"Housing, Communities & Local Government",MHCLG,08/09/2020,ERDF Work in Progress � Resource,Economic and Business Response,NOTTINGHAM CITY COUNCIL,,Large,,,7700007216,,ERDF grant payment,NG2 3NG,"244,454.26",Yes
"Housing, Communities & Local Government",MHCLG,08/09/2020,ERDF Work in Progress � Resource,Economic and Business Response,UNIVERSITY OF EXETER,,,,,7700007193,,ERDF grant payment,EX4 4QJ,"312,009.19",Yes
"Housing, Communities & Local Government",MHCLG,08/09/2020,ERDF Work in Progress � Resource,Economic and Business Response,UNIVERSITY OF EXETER,,,,,7700007198,,ERDF grant offset,EX4 4QJ,"-6,875.59",Yes
"Housing, Communities & Local Government",MHCLG,08/09/2020,ERDF Work in Progress � Resource,Economic and Business Response,UNIVERSITY OF SUNDERLAND,,,,,7700007206,,ERDF grant payment,SR1 3SD,"179,788.05",Yes
"Housing, Communities & Local Government",MHCLG,08/09/2020,ERDF Work in Progress � Resource,Economic and Business Response,UNIVERSITY OF WOLVERHAMPTON,,,,,7700007212,,ERDF grant payment,WV1 1LY,"28,180.35",Yes
"Housing, Communities & Local Government",MHCLG,08/09/2020,ERDF Work in Progress � Resource,Economic and Business Response,WARWICKSHIRE COUNTY COUNCIL,,,,,7700007197,,ERDF grant payment,CV34 4SX,"71,468.74",Yes
"Housing, Communities & Local Government",MHCLG,08/09/2020,ERDF Work in Progress � Resource,Economic and Business Response,WORCESTERSHIRE COUNTY COUNCIL,,,,,7700007201,,ERDF grant payment,WR5 2NP,"22,900.92",Yes
"Housing, Communities & Local Government",MHCLG,08/09/2020,EXP � PURCHASE OF GOODS /SERVICES R & D,Economic and Business Response,BEHAVIOURAL INSIGHTS LTD,,Large,,,5106263344,Research,Review to deliver CO2� Net0 & sustainability ,SW1H 9NP,"15,000.00",
"Housing, Communities & Local Government",MHCLG,08/09/2020,EXP � PURCHASE OF GOODS /SERVICES R & D,Housing and Vulnerable People Responses,ICF CONSULTING LTD,,Large,,,5106263433,Research,Housing First Evaluation,EC4M 5SB,"12,254.00",
"Housing, Communities & Local Government",MHCLG,08/09/2020,EXP � PURCHASE OF GOODS /SERVICES R & D,Housing and Vulnerable People Responses,ICF CONSULTING LTD,,Large,,,5106263443,Research,Housing First Evaluation,EC4M 5SB,"-16,022.00",
"Housing, Communities & Local Government",MHCLG,08/09/2020,Management Consultancy,Housing and Vulnerable People Responses,DELOITTE MCS LTD,,Large,,213050169,5106263375,Social and Economic Research,Statistical and Economic Analysis,EC4A 4TR,"131,493.37",
"Housing, Communities & Local Government",MHCLG,08/09/2020,Professional services,Corporate and GOLD Secretariat Cells,TURNER&TOWNSEND PROJECT MAN LTD,,Large,,,5106262416,Financial,Project and Cost Management services,LS18 4GH,"9,960.00",
"Housing, Communities & Local Government",MHCLG,08/09/2020,Professional services,Corporate and GOLD Secretariat Cells,TURNER&TOWNSEND PROJECT MAN LTD,,Large,,,5106262418,Financial,Project and Cost Management services,LS18 4GH,"6,600.00",
"Housing, Communities & Local Government",MHCLG,08/09/2020,Professional services,Housing and Vulnerable People Responses,HEALTH & SAFETY EXECUTIVE,,Public Bodies,,215576425,5106263478,Financial,Payment of HSE Charges,FY5 3TA,"718,569.60",
"Housing, Communities & Local Government",MHCLG,08/09/2020,Steady State Service Provision,Corporate and GOLD Secretariat Cells,ALLPAY LIMITED,,Medium,,738359918,5106263353,Business Process Outsourcing Services,BACS processing service,HR1 3SE,797.76,
"Housing, Communities & Local Government",MHCLG,08/09/2020,Training,Housing and Vulnerable People Responses,HOMELESS LINK,,Medium,,,5106263486,Development and Training,Civil Service Training,EC3N 1BJ,"3,531.00",
"Housing, Communities & Local Government",MHCLG,08/09/2020,Training,Housing and Vulnerable People Responses,HOMELESS LINK,,Medium,,,5106263486,Development and Training,Civil Service Training,EC3N 1BJ,"4,269.00",
"Housing, Communities & Local Government",MHCLG,09/09/2020,Cap Grants to Local Authorities (DEL),Housing and Vulnerable People Responses,HOMES ENGLAND,,Public Bodies,,215576860,2100307296,,Reimbursing Homes England for cladding payment July 2020,NE11 0NA,"91,539.00",Yes
"Housing, Communities & Local Government",MHCLG,09/09/2020,Cap Grants to Private Sector Companies,Corporate and GOLD Secretariat Cells,ACADEMY CONSULTING SOLUTIONS LTD,,Small,,423486641,5106263492,Business Process Outsourcing Services,Specialist Contractors for Grenfell,TN2 5AL,"10,080.00",Yes
"Housing, Communities & Local Government",MHCLG,09/09/2020,Cap Grants to Private Sector Companies,Corporate and GOLD Secretariat Cells,ACADEMY CONSULTING SOLUTIONS LTD,,Small,,423486641,5106263493,Business Process Outsourcing Services,Specialist Contractors for Grenfell,TN2 5AL,"4,410.00",Yes
"Housing, Communities & Local Government",MHCLG,09/09/2020,Current Grants to Non Profit Bodies,Housing and Vulnerable People Responses,CEL GROUP,,Medium,,394794614,5106263510,Technical Services,Home Improvement Agency - 01.04.18 - 30.09.20,WA2 0YL,"78,609.92",Yes
"Housing, Communities & Local Government",MHCLG,09/09/2020,Electronic Data Storage,Corporate and GOLD Secretariat Cells,RESTORE PLC,,Large,,,5106263506,Warehousing and Storage,Visions digital storage,RH1 3DY,"4,695.39",
"Housing, Communities & Local Government",MHCLG,09/09/2020,ERDF Work in Progress � Resource,Economic and Business Response,UNIVERSITY OF PLYMOUTH,,,,,7700007218,,ERDF grant payment,PL4 8AA,"117,708.92",Yes
"Housing, Communities & Local Government",MHCLG,09/09/2020,"IT - PC, Network & Hardware",Corporate and GOLD Secretariat Cells,21st CENTURY OFFICE CONCEPTS LTD,,Small,,,5106263481,ICT Hardware,CV-19 Home Working Requirements,SG12 0SS,"4,221.60",
"Housing, Communities & Local Government",MHCLG,09/09/2020,IT - Service Contracts,Corporate and GOLD Secretariat Cells,ARCUS CLOUD SERVICES LTD,,Medium,,,5106263476,IT Managed / Outsourced Services,Datamart/MCIS/TESA AWS Hosting,CB4 2HY,"15,892.50",
"Housing, Communities & Local Government",MHCLG,09/09/2020,IT - Service Contracts,Corporate and GOLD Secretariat Cells,IAME LTD,,Small,,,5106263475,IT Managed / Outsourced Services,Identity Management Integration,N14 6LD,"2,062.50",
"Housing, Communities & Local Government",MHCLG,09/09/2020,IT - Service Contracts,Corporate and GOLD Secretariat Cells,LITTLE FISH(UK)T/A LITTLE FISH,,Medium,,,5106263536,IT Managed / Outsourced Services,Servicedesk / Tier2 provision,NG1 1LS,"69,234.55",
"Housing, Communities & Local Government",MHCLG,09/09/2020,IT - Service Contracts,Corporate and GOLD Secretariat Cells,VELOCITII DIGITAL SOLUTIONS LTD,,Micro,,,5106263518,IT Managed / Outsourced Services,Digital Land Team Support,SE1 9LB,"61,050.00",
"Housing, Communities & Local Government",MHCLG,09/09/2020,IT - Service Contracts,Corporate and GOLD Secretariat Cells,VELOCITII DIGITAL SOLUTIONS LTD,,Micro,,,5106263527,IT Managed / Outsourced Services,Digital Design Support,SE1 9LB,"51,250.00",
"Housing, Communities & Local Government",MHCLG,09/09/2020,IT - Service Contracts,Economic and Business Response,ARCUS CLOUD SERVICES LTD,,Medium,,,5106263471,IT Managed / Outsourced Services,Data Analytics Platform,CB4 2HY,"2,737.50",
"Housing, Communities & Local Government",MHCLG,09/09/2020,IT - Service Contracts,Economic and Business Response,ARCUS CLOUD SERVICES LTD,,Medium,,,5106263495,IT Managed / Outsourced Services,Data Analytics Platform,CB4 2HY,"45,254.12",
"Housing, Communities & Local Government",MHCLG,09/09/2020,IT - Service Contracts,Emergency Response,RISUAL LIMITED,,Medium,,,5106263529,Consultancy,MHCLG Dashboard Support Services,ST18 0WP,"38,040.00",
"Housing, Communities & Local Government",MHCLG,09/09/2020,IT - Software Maintenance,Corporate and GOLD Secretariat Cells,INTERQUEST GROUP UK LIMITED,,Large,,423935241,5106263341,IT Managed / Outsourced Services,SAP Support Services Var12,EC4R 0AN,"6,600.00",
"Housing, Communities & Local Government",MHCLG,09/09/2020,IT - Software Maintenance,Corporate and GOLD Secretariat Cells,INTERQUEST GROUP UK LIMITED,,Large,,423935241,5106263364,IT Managed / Outsourced Services,SAP Support Services Var12,EC4R 0AN,"14,820.00",
"Housing, Communities & Local Government",MHCLG,09/09/2020,IT - Software Maintenance,Corporate and GOLD Secretariat Cells,INTERQUEST GROUP UK LIMITED,,Large,,423935241,5106263366,IT Managed / Outsourced Services,SAP Specialist Var08,EC4R 0AN,"12,840.00",
"Housing, Communities & Local Government",MHCLG,09/09/2020,IT - Software Maintenance,Corporate and GOLD Secretariat Cells,INTERQUEST GROUP UK LIMITED,,Large,,423935241,5106263367,IT Managed / Outsourced Services,SAP Support Services Var12,EC4R 0AN,"12,000.00",
"Housing, Communities & Local Government",MHCLG,09/09/2020,Legal Fees,Corporate and GOLD Secretariat Cells,PINSENT MASONS LLP,,Large,,215580626,5106263340,Legal,Legal Advice,EC2A 4ES,"17,613.12",
"Housing, Communities & Local Government",MHCLG,09/09/2020,Legal Fees,Emergency Response,GOVERNMENT LEGAL DEPARTMENT,,Public Bodies,,215580680,5106263489,Legal,Legal Advice,SW1H 9GL,"14,781.44",
"Housing, Communities & Local Government",MHCLG,09/09/2020,Online Database Information Retrieval,Corporate and GOLD Secretariat Cells,DEHAVILLAND INFORMATION SERVICES LT,,Medium,,,5106263496,ICT Services,Parliamentary information resource 20-21,W1B 5AP,"6,480.00",
"Housing, Communities & Local Government",MHCLG,09/09/2020,Physical Storage,Corporate and GOLD Secretariat Cells,RESTORE PLC,,Large,,,5106263498,Warehousing and Storage,Storage Costs 20/21,RH1 3DY,"4,015.97",
"Housing, Communities & Local Government",MHCLG,09/09/2020,Physical Storage,Corporate and GOLD Secretariat Cells,RESTORE PLC,,Large,,,5106263502,Warehousing and Storage,Storage Costs 20/21,RH1 3DY,875.65,
"Housing, Communities & Local Government",MHCLG,09/09/2020,Physical Storage,Corporate and GOLD Secretariat Cells,RESTORE PLC,,Large,,,5106263506,Warehousing and Storage,Storage Costs 20/21,RH1 3DY,"21,397.60",
"Housing, Communities & Local Government",MHCLG,09/09/2020,Physical Storage,Corporate and GOLD Secretariat Cells,RESTORE PLC,,Large,,,5106263507,Warehousing and Storage,Storage Costs 20/21,RH1 3DY,212.48,
"Housing, Communities & Local Government",MHCLG,09/09/2020,Physical Storage,Corporate and GOLD Secretariat Cells,RESTORE PLC,,Large,,,5106263515,Warehousing and Storage,Storage Costs 20/21,RH1 3DY,"1,534.89",
"Housing, Communities & Local Government",MHCLG,09/09/2020,Rent,Corporate and GOLD Secretariat Cells,GOVERNMENT PROPERTY AGENCY,,Medium,,,5106263530,Business Support,Portland House,B2 5LS,"10,412.89",
"Housing, Communities & Local Government",MHCLG,09/09/2020,Rent,Corporate and GOLD Secretariat Cells,GOVERNMENT PROPERTY AGENCY,,Medium,,,5106263531,Business Support,Portland House,B2 5LS,"11,815.97",
"Housing, Communities & Local Government",MHCLG,09/09/2020,Rent,Corporate and GOLD Secretariat Cells,GOVERNMENT PROPERTY AGENCY,,Medium,,,5106263532,Business Support,Portland House,B2 5LS,"2,524.73",
"Housing, Communities & Local Government",MHCLG,09/09/2020,Rent,Corporate and GOLD Secretariat Cells,GOVERNMENT PROPERTY AGENCY,,Medium,,,5106263533,Business Support,Portland House,B2 5LS,647.04,
"Housing, Communities & Local Government",MHCLG,09/09/2020,Rent,Corporate and GOLD Secretariat Cells,GOVERNMENT PROPERTY AGENCY,,Medium,,,5106263534,Business Support,Portland House,B2 5LS,"2,286.34",
"Housing, Communities & Local Government",MHCLG,09/09/2020,Steady State Service Provision,Corporate and GOLD Secretariat Cells,CABINET OFFICE,,Public Bodies,,232159186,5106263523,Business Process Outsourcing Services,Employment Costs 20/21,FY5 3TA,"21,960.00",
"Housing, Communities & Local Government",MHCLG,09/09/2020,Steady State Service Provision,Corporate and GOLD Secretariat Cells,CABINET OFFICE,,Public Bodies,,232159186,5106263524,Business Process Outsourcing Services,Employment Costs 20/21,FY5 3TA,"417,102.68",
"Housing, Communities & Local Government",MHCLG,09/09/2020,Steady State Service Provision,Corporate and GOLD Secretariat Cells,GREEN PARK INTERIM & EXECUTIVE,,Small,,348738829,5106263474,Business Process Outsourcing Services,Contingent Labour,W1K 4EG,998.40,
"Housing, Communities & Local Government",MHCLG,09/09/2020,Training,Corporate and GOLD Secretariat Cells,CABINET OFFICE,,Public Bodies,,232159186,2300003157,Development and Training,Civil Service Training,FY5 3TA,"-74,100.00",
"Housing, Communities & Local Government",MHCLG,09/09/2020,Training,Corporate and GOLD Secretariat Cells,CABINET OFFICE,,Public Bodies,,232159186,2300003158,Development and Training,Civil Service Training,FY5 3TA,"-7,020.00",
"Housing, Communities & Local Government",MHCLG,09/09/2020,Training,Corporate and GOLD Secretariat Cells,CABINET OFFICE,,Public Bodies,,232159186,5106263176,Development and Training,Civil Service Training,FY5 3TA,"-12,650.00",
"Housing, Communities & Local Government",MHCLG,10/09/2020,Agency Staff,Corporate and GOLD Secretariat Cells,GREEN PARK INTERIM & EXECUTIVE,,Small,,348738829,5106263566,Business Process Outsourcing Services,UKHMF Curator Salary,W1K 4EG,"19,869.72",
"Housing, Communities & Local Government",MHCLG,10/09/2020,Current (non AEF) Grants to Local Authorities,Emergency Response,AVON & SOMERSET POLICE AUTHORITY,,,,211229406,2100307285,,LRF Funding - Covid 19,TA1 4DY,"200,000.00",Yes
"Housing, Communities & Local Government",MHCLG,10/09/2020,Current (non AEF) Grants to Local Authorities,Emergency Response,BARNSLEY MBC,,Public Bodies,,211178595,2100307264,,LRF Funding - Covid 19,S70 9GG,"200,000.00",Yes
"Housing, Communities & Local Government",MHCLG,10/09/2020,Current (non AEF) Grants to Local Authorities,Emergency Response,CAMBRIDGESHIRE COUNTY COUNCIL,,Public Bodies,,210311121,2100307266,,LRF Funding - Covid 19,CB3 0AP,"200,000.00",Yes
"Housing, Communities & Local Government",MHCLG,10/09/2020,Current (non AEF) Grants to Local Authorities,Emergency Response,CENTRAL BEDFORDSHIRE COUNCIL,,Public Bodies,,,2100307252,,LRF Funding - Covid 19,MK42 9BD,"200,000.00",Yes
"Housing, Communities & Local Government",MHCLG,10/09/2020,Current (non AEF) Grants to Local Authorities,Emergency Response,CITY OF LONDON,,Large,,217471460,2100307269,,LRF Funding - Covid 19,EC2P 2EJ,"200,000.00",Yes
"Housing, Communities & Local Government",MHCLG,10/09/2020,Current (non AEF) Grants to Local Authorities,Emergency Response,CO DURHAM & DARLINGTON FIRE RESCUE,,Public Bodies,,211684266,2100307247,,LRF Funding - Covid 19,DH1 1TW,"200,000.00",Yes
"Housing, Communities & Local Government",MHCLG,10/09/2020,Current (non AEF) Grants to Local Authorities,Emergency Response,CUMBRIA COUNTY COUNCIL,,Public Bodies,,211316542,2100307272,,LRF Funding - Covid 19,CA3 8NA,"200,000.00",Yes
"Housing, Communities & Local Government",MHCLG,10/09/2020,Current (non AEF) Grants to Local Authorities,Emergency Response,DERBYSHIRE COUNTY COUNCIL,,,,232152967,2100307263,,LRF Funding - Covid 19,DE4 3AH,"200,000.00",Yes
"Housing, Communities & Local Government",MHCLG,10/09/2020,Current (non AEF) Grants to Local Authorities,Emergency Response,DEVON & CORNWALL POLICE AUTHORITY,,,,,2100307284,,LRF Funding - Covid 19,EX2 5YT,"200,000.00",Yes
"Housing, Communities & Local Government",MHCLG,10/09/2020,Current (non AEF) Grants to Local Authorities,Emergency Response,DORSET & WILTSHIRE FIRE & RESCUE SE,,,,,2100307257,,LRF Funding - Covid 19,SP1 3NR,"200,000.00",Yes
"Housing, Communities & Local Government",MHCLG,10/09/2020,Current (non AEF) Grants to Local Authorities,Emergency Response,EAST RIDING OF YORKSHIRE COUNCIL,,,,,2100307245,,LRF Funding - Covid 19,HU17 5BE,"200,000.00",Yes
"Housing, Communities & Local Government",MHCLG,10/09/2020,Current (non AEF) Grants to Local Authorities,Emergency Response,EAST SUSSEX CC,,,,,2100307261,,LRF Funding - Covid 19,BN7 1UE,"200,000.00",Yes
"Housing, Communities & Local Government",MHCLG,10/09/2020,Current (non AEF) Grants to Local Authorities,Emergency Response,ESSEX COUNTY FIRE & RESCUE SERVICE,,Public Bodies,,211914291,2100307248,,LRF Funding - Covid 19,CM8 3HB,"200,000.00",Yes
"Housing, Communities & Local Government",MHCLG,10/09/2020,Current (non AEF) Grants to Local Authorities,Emergency Response,GLOUCESTERSHIRE COUNTY COUNCIL,,Public Bodies,,211272067,2100307265,,LRF Funding - Covid 19,GL2 2AX,"200,000.00",Yes
"Housing, Communities & Local Government",MHCLG,10/09/2020,Current (non AEF) Grants to Local Authorities,Emergency Response,HAMPSHIRE COUNTY COUNCIL,,,,506774652,2100307243,,LRF Funding - Covid 19,SO23 8UD,"200,000.00",Yes
"Housing, Communities & Local Government",MHCLG,10/09/2020,Current (non AEF) Grants to Local Authorities,Emergency Response,HARTLEPOOL BOROUGH COUNCIL,,Large,,424291797,2100307244,,LRF Funding - Covid 19,TS24 7BT,"200,000.00",Yes
"Housing, Communities & Local Government",MHCLG,10/09/2020,Current (non AEF) Grants to Local Authorities,Emergency Response,HERTFORDSHIRE CC,,Large,,211218291,2100307249,,LRF Funding - Covid 19,SG13 8TN,"200,000.00",Yes
"Housing, Communities & Local Government",MHCLG,10/09/2020,Current (non AEF) Grants to Local Authorities,Emergency Response,KENT & MEDWAY TOWNS FIRE AUTHORITY,,Large,,423679414,2100307286,,LRF Funding - Covid 19,ME15 6XB,"200,000.00",Yes
"Housing, Communities & Local Government",MHCLG,10/09/2020,Current (non AEF) Grants to Local Authorities,Emergency Response,LANCASHIRE COUNTY COUNCIL,,Large,,233047435,2100307274,,LRF Funding - Covid 19,PR1 8XJ,"200,000.00",Yes
"Housing, Communities & Local Government",MHCLG,10/09/2020,Current (non AEF) Grants to Local Authorities,Emergency Response,LEICESTERSHIRE COUNTY COUNCIL,,Large,,236419693,2100307241,,LRF Funding - Covid 19,LE3 8RB,"200,000.00",Yes
"Housing, Communities & Local Government",MHCLG,10/09/2020,Current (non AEF) Grants to Local Authorities,Emergency Response,LINCOLNSHIRE CC,,,,,2100307246,,LRF Funding - Covid 19,LN2 1DY,"200,000.00",Yes
"Housing, Communities & Local Government",MHCLG,10/09/2020,Current (non AEF) Grants to Local Authorities,Emergency Response,LIVERPOOL CITY COUNCIL,,Public Bodies,,228646113,2100307242,,LRF Funding - Covid 19,L2 2DH,"200,000.00",Yes
"Housing, Communities & Local Government",MHCLG,10/09/2020,Current (non AEF) Grants to Local Authorities,Emergency Response,MANCHESTER CITY COUNCIL,,,,211241393,2100307256,,LRF Funding - Covid 19,M60 2JR,"200,000.00",Yes
"Housing, Communities & Local Government",MHCLG,10/09/2020,Current (non AEF) Grants to Local Authorities,Emergency Response,NEWCASTLE CITY COUNCIL,,,,,2100307259,,LRF Funding - Covid 19,NE1 8QH,"200,000.00",Yes
"Housing, Communities & Local Government",MHCLG,10/09/2020,Current (non AEF) Grants to Local Authorities,Emergency Response,NORFOLK COUNTY COUNCIL,,Public Bodies,,232602789,2100307253,,LRF Funding - Covid 19,NR1 2DH,"200,000.00",Yes
"Housing, Communities & Local Government",MHCLG,10/09/2020,Current (non AEF) Grants to Local Authorities,Emergency Response,NORTH YORKSHIRE COUNTY COUNCIL,,Large,,,2100307273,,LRF Funding - Covid 19,DL7 8AH,"200,000.00",Yes
"Housing, Communities & Local Government",MHCLG,10/09/2020,Current (non AEF) Grants to Local Authorities,Emergency Response,NORTHAMPTONSHIRE POLICE,,Large,,,2100307250,,LRF Funding - Covid 19,NN4 8BH,"200,000.00",Yes
"Housing, Communities & Local Government",MHCLG,10/09/2020,Current (non AEF) Grants to Local Authorities,Emergency Response,NOTTINGHAMSHIRE CC,,,,214657947,2100307271,,LRF Funding - Covid 19,NG2 7QZ,"200,000.00",Yes
"Housing, Communities & Local Government",MHCLG,10/09/2020,Current (non AEF) Grants to Local Authorities,Emergency Response,POLICE & CRIME COMM'R FOR CHESHIRE,,Public Bodies,,211207737,2100307258,,LRF Funding - Covid 19,CH1 2PP,"200,000.00",Yes
"Housing, Communities & Local Government",MHCLG,10/09/2020,Current (non AEF) Grants to Local Authorities,Emergency Response,STAFFORDSHIRE COUNTY COUNCIL,,Public Bodies,,213450609,2100307254,,LRF Funding - Covid 19,ST16 2DH,"200,000.00",Yes
"Housing, Communities & Local Government",MHCLG,10/09/2020,Current (non AEF) Grants to Local Authorities,Emergency Response,SUFFOLK COUNTY COUNCIL,,Large,,236445243,2100307251,,LRF Funding - Covid 19,IP1 2BX,"200,000.00",Yes
"Housing, Communities & Local Government",MHCLG,10/09/2020,Current (non AEF) Grants to Local Authorities,Emergency Response,SURREY COUNTY COUNCIL,,Public Bodies,,211036447,2100307260,,LRF Funding - Covid 19,KT1 1AB,"200,000.00",Yes
"Housing, Communities & Local Government",MHCLG,10/09/2020,Current (non AEF) Grants to Local Authorities,Emergency Response,THAMES VALLEY POLICE,,,,232914853,2100307255,,LRF Funding - Covid 19,OX5 2NX,"200,000.00",Yes
"Housing, Communities & Local Government",MHCLG,10/09/2020,Current (non AEF) Grants to Local Authorities,Emergency Response,WARWICKSHIRE CC,,,,210396290,2100307262,,LRF Funding - Covid 19,CV34 4RH,"200,000.00",Yes
"Housing, Communities & Local Government",MHCLG,10/09/2020,Current (non AEF) Grants to Local Authorities,Emergency Response,West Midlands Police Authority,,Large,,365219653,2100307267,,LRF Funding - Covid 19,B4 6NQ,"200,000.00",Yes
"Housing, Communities & Local Government",MHCLG,10/09/2020,Current (non AEF) Grants to Local Authorities,Emergency Response,West Yorkshire Fire and Rescue Auth,,Large,,236428595,2100307268,,LRF Funding - Covid 19,BD11 2DY,"200,000.00",Yes
"Housing, Communities & Local Government",MHCLG,10/09/2020,Current (non AEF) Grants to Local Authorities,Emergency Response,WILTSHIRE POLICE AUTHORITY,,Large,,,2100307289,,LRF Funding - Covid 19,SN10 2DN,"200,000.00",Yes
"Housing, Communities & Local Government",MHCLG,10/09/2020,Current (non AEF) Grants to Local Authorities,Emergency Response,WORCESTERSHIRE COUNTY COUNCIL,,Public Bodies,,230359643,2100307270,,LRF Funding - Covid 19,WR5 2NP,"200,000.00",Yes
"Housing, Communities & Local Government",MHCLG,10/09/2020,ERDF Work in Progress � Capital,Economic and Business Response,STOKE-ON-TRENT CITY COUNCIL,,,,,7700007226,,ERDF grant payment,ST4 1HH,"88,193.64",Yes
"Housing, Communities & Local Government",MHCLG,10/09/2020,ERDF Work in Progress � Capital,Economic and Business Response,WORCESTERSHIRE COUNTY COUNCIL,,,,,7700007227,,ERDF grant payment,WR5 2NP,"12,702.06",Yes
"Housing, Communities & Local Government",MHCLG,10/09/2020,ERDF Work in Progress � Resource,Economic and Business Response,ASTON UNIVERSITY,,Large,,227749751,7700007223,,ERDF grant payment,B4 7ET,"78,083.22",Yes
"Housing, Communities & Local Government",MHCLG,10/09/2020,ERDF Work in Progress � Resource,Economic and Business Response,EXEMPLAS TRADE SERVICES LTD,,,,,7700007224,,ERDF grant payment,AL7 3AX,"243,590.54",Yes
"Housing, Communities & Local Government",MHCLG,10/09/2020,ERDF Work in Progress � Resource,Economic and Business Response,GM BUSINESS SUPPORT LTD,,,,,7700007225,,ERDF grant payment,M1 5JW,"212,824.17",Yes
"Housing, Communities & Local Government",MHCLG,10/09/2020,ERDF Work in Progress � Resource,Economic and Business Response,GREATER LONDON AUTHORITY,,Large,,,7700007229,,ERDF grant payment,SE1 2AA,"94,080.73",Yes
"Housing, Communities & Local Government",MHCLG,10/09/2020,ERDF Work in Progress � Resource,Economic and Business Response,LIVERPOOL UNIVERSITY,,,,,7700007228,,ERDF grant payment,L69 3BX,"149,555.40",Yes
"Housing, Communities & Local Government",MHCLG,10/09/2020,ERDF Work in Progress � Resource,Economic and Business Response,MANCHESTER METROPOLITAN UNIVERSITY,,,,,7700007221,,ERDF grant payment,M15 6BH,"188,202.57",Yes
"Housing, Communities & Local Government",MHCLG,10/09/2020,ERDF Work in Progress � Resource,Economic and Business Response,SATELLITE APPLICATIONS CATAPULT LTD,,,,,7700007219,,ERDF grant payment,OX11 0QR,"72,830.69",Yes
"Housing, Communities & Local Government",MHCLG,10/09/2020,ERDF Work in Progress � Resource,Economic and Business Response,STOKE-ON-TRENT CITY COUNCIL,,,,,7700007226,,ERDF grant payment,ST4 1HH,"34,552.93",Yes
"Housing, Communities & Local Government",MHCLG,10/09/2020,ERDF Work in Progress � Resource,Economic and Business Response,UNIVERSITY OF BIRMINGHAM,,Large,,,7700007222,,ERDF grant payment,B15 2TT,"126,941.47",Yes
"Housing, Communities & Local Government",MHCLG,10/09/2020,ERDF Work in Progress � Resource,Economic and Business Response,WORCESTERSHIRE COUNTY COUNCIL,,,,,7700007227,,ERDF grant payment,WR5 2NP,"6,068.49",Yes
"Housing, Communities & Local Government",MHCLG,10/09/2020,EXP � PURCHASE OF GOODS /SERVICES R & D,Economic and Business Response,I F F RESEARCH LTD,,,,211574041,5106263565,Research,Research into impact of Open Doors,N1 6DD,"2,155.00",
"Housing, Communities & Local Government",MHCLG,10/09/2020,EXP � PURCHASE OF GOODS /SERVICES R & D,Economic and Business Response,I F F RESEARCH LTD,,,,211574041,5106263565,Research,Research into impact of Open Doors,N1 6DD,"7,306.20",
"Housing, Communities & Local Government",MHCLG,10/09/2020,Grant in Aid to NDPBs (non budget),Housing and Vulnerable People Responses,HOMES ENGLAND,,Public Bodies,,215576860,2100307301,,Homes England September 2020 Grant in Aid payment,NE11 0NA,"287,086,253.00",Yes
"Housing, Communities & Local Government",MHCLG,10/09/2020,IT - Service Contracts,Corporate and GOLD Secretariat Cells,AMAZON WEB SERVICES EMEA SARL,,Large,,,5106263553,IT Managed / Outsourced Services,Datamart Cloud Web Hosting - est costs,1885,"2,700.75",
"Housing, Communities & Local Government",MHCLG,10/09/2020,IT - Service Contracts,Corporate and GOLD Secretariat Cells,DAISY CORPORATE SERVICES TRADING LT,,Large,,,5106263571,IT Managed / Outsourced Services,Managed IP Telephony Service 1 year,BB9 5SR,"24,261.76",
"Housing, Communities & Local Government",MHCLG,10/09/2020,Professional services,Housing and Vulnerable People Responses,VALUATION OFFICE AGENCY,,Public Bodies,,215253886,5106263473,Financial,Community Infrastructure Levy,W1D 5BU,"1,799.27",
"Housing, Communities & Local Government",MHCLG,10/09/2020,Professional services,Housing and Vulnerable People Responses,VALUATION OFFICE AGENCY,,Public Bodies,,215253886,5106263543,Technical Services,Valuation Office Agency - Right to Buy Programme,W1D 5BU,"19,087.82",
"Housing, Communities & Local Government",MHCLG,10/09/2020,Training,Corporate and GOLD Secretariat Cells,SAP (UK) LTD,,Large,,396951675,5106263559,Development and Training,Civil Service Training,TW14 8HD,350.10,
"Housing, Communities & Local Government",MHCLG,10/09/2020,Training,Economic and Business Response,BIRKBECK COLLEGE,,Large,,424849024,5106263550,Development and Training,Civil Service Training,WC1E 7HX,"4,320.00",
"Housing, Communities & Local Government",MHCLG,10/09/2020,Travel and Subsistence Account,Economic and Business Response,NETWORK EXECUTIVE CHAUFFEURS UK LTD,,Small,,217495152,5106263572,Business Travel,Ministerial Car Services,B7 4HJ,648.00,
"Housing, Communities & Local Government",MHCLG,11/09/2020,Cap Grants to Local Authorities (DEL),Corporate and GOLD Secretariat Cells,WATES PROPERTY SERVICES LTD,,Large,,,5106263504,Business Process Outsourcing Services,Specialist Contractors for Grenfell,EN1 3XA,"300,000.00",Yes
"Housing, Communities & Local Government",MHCLG,11/09/2020,Cap Grants to Local Authorities (DEL),Corporate and GOLD Secretariat Cells,WATES PROPERTY SERVICES LTD,,Large,,,5106263508,Business Process Outsourcing Services,Specialist Contractors for Grenfell,EN1 3XA,"357,679.49",Yes
"Housing, Communities & Local Government",MHCLG,11/09/2020,Cap Grants to Private Sector Companies,Corporate and GOLD Secretariat Cells,UK Power Networks,,Large,,,5106263587,Energy,UK Power Network - Grenfell,SE1 6NP,"18,055.68",Yes
"Housing, Communities & Local Government",MHCLG,11/09/2020,ERDF Work in Progress � Resource,Economic and Business Response,ASTON UNIVERSITY,,Large,,227749751,7700007234,,ERDF grant payment,B4 7ET,"49,219.69",Yes
"Housing, Communities & Local Government",MHCLG,11/09/2020,ERDF Work in Progress � Resource,Economic and Business Response,CHESHIRE EAST COUNCIL,,,,,7700007233,,ERDF grant payment,CH1 9PP,"28,853.92",Yes
"Housing, Communities & Local Government",MHCLG,11/09/2020,ERDF Work in Progress � Resource,Economic and Business Response,DURHAM COUNTY COUNCIL,,,,,7700007231,,ERDF grant payment,DH1 5UF,"21,485.96",Yes
"Housing, Communities & Local Government",MHCLG,11/09/2020,ERDF Work in Progress � Resource,Economic and Business Response,DURHAM COUNTY COUNCIL,,,,,7700007232,,ERDF grant payment,DH1 5UF,"50,736.00",Yes
"Housing, Communities & Local Government",MHCLG,11/09/2020,ERDF Work in Progress � Resource,Economic and Business Response,DURHAM COUNTY COUNCIL,,,,,7700007236,,ERDF grant payment,DH1 5UF,"112,534.32",Yes
"Housing, Communities & Local Government",MHCLG,11/09/2020,ERDF Work in Progress � Resource,Economic and Business Response,GM BUSINESS SUPPORT LTD,,,,,7700007230,,ERDF grant payment,M1 5JW,"115,526.49",Yes
"Housing, Communities & Local Government",MHCLG,11/09/2020,ERDF Work in Progress � Resource,Economic and Business Response,THURROCK BOROUGH COUNCIL,,,,,7700007235,,ERDF grant payment,RM17 6SL,"60,327.63",Yes
"Housing, Communities & Local Government",MHCLG,11/09/2020,Finance Consultancy,Corporate and GOLD Secretariat Cells,CABINET OFFICE,,Public Bodies,,232159186,5106263427,Consultancy,Gold Contract Audit,FY5 3TA,"56,342.40",
"Housing, Communities & Local Government",MHCLG,11/09/2020,"Furniture, Fittings and carpets",Corporate and GOLD Secretariat Cells,WAGSTAFF BROS LTD,,,,210307773,5106263608,"Furniture, Fixtures and Fittings",Reasonable Adjustments 20/21,EC1V 4JR,359.86,
"Housing, Communities & Local Government",MHCLG,11/09/2020,IT - Software Maintenance,Corporate and GOLD Secretariat Cells,DATAVID LIMITED,,Micro,,223819458,5106263598,IT Managed / Outsourced Services,E-Claims Technical Support & Development,RG4 6NZ,"21,850.00",
"Housing, Communities & Local Government",MHCLG,11/09/2020,IT - Software Maintenance,Corporate and GOLD Secretariat Cells,DATAVID LIMITED,,Micro,,223819458,5106263599,IT Managed / Outsourced Services,E-Claims Technical Support & Development,RG4 6NZ,"22,775.00",
"Housing, Communities & Local Government",MHCLG,11/09/2020,Legal Fees,Housing and Vulnerable People Responses,BRYAN CAVE LEIGHTON PAISNER LLP,,Large,,,5106263584,Legal,Legal Advice,EC4R 9HA,"4,976.64",
"Housing, Communities & Local Government",MHCLG,11/09/2020,Legal Fees,Housing and Vulnerable People Responses,BRYAN CAVE LEIGHTON PAISNER LLP,,Large,,,5106263586,Legal,Legal Advice,EC4R 9HA,"28,837.56",
"Housing, Communities & Local Government",MHCLG,11/09/2020,Mobile phone costs,Corporate and GOLD Secretariat Cells,GAMMA TELECOM LTD,,Large,,,5106263609,Telecoms,Running costs Non-VAT,EC4M 7RD,7.50,
"Housing, Communities & Local Government",MHCLG,11/09/2020,Mobile phone costs,Corporate and GOLD Secretariat Cells,GAMMA TELECOM LTD,,Large,,,5106263609,Telecoms,SO12178 - Contract Running Costs 18/19,EC4M 7RD,"12,854.89",
"Housing, Communities & Local Government",MHCLG,11/09/2020,Printing,Economic and Business Response,STATIONERY OFFICE LTD,,Large,,779375633,5106263558,Printing Services,Statutory Instru NON VAT(20-21),NR3 1PD,610.00,
"Housing, Communities & Local Government",MHCLG,11/09/2020,Printing,Economic and Business Response,STATIONERY OFFICE LTD,,Large,,779375633,5106263558,Printing Services,Statutory Instruments Print - VAT(20-21),NR3 1PD,348.00,
"Housing, Communities & Local Government",MHCLG,11/09/2020,Printing,Economic and Business Response,STATIONERY OFFICE LTD,,Large,,779375633,5106263601,Printing Services,Statutory Instru NON VAT(20-21),NR3 1PD,305.00,
"Housing, Communities & Local Government",MHCLG,11/09/2020,Printing,Economic and Business Response,STATIONERY OFFICE LTD,,Large,,779375633,5106263601,Printing Services,Statutory Instruments Print - VAT(20-21),NR3 1PD,174.00,
"Housing, Communities & Local Government",MHCLG,11/09/2020,Printing,Economic and Business Response,STATIONERY OFFICE LTD,,Large,,779375633,5106263602,Printing Services,Statutory Instru NON VAT(20-21),NR3 1PD,610.00,
"Housing, Communities & Local Government",MHCLG,11/09/2020,Printing,Economic and Business Response,STATIONERY OFFICE LTD,,Large,,779375633,5106263602,Printing Services,Statutory Instruments Print - VAT(20-21),NR3 1PD,348.00,
"Housing, Communities & Local Government",MHCLG,11/09/2020,Printing,Economic and Business Response,STATIONERY OFFICE LTD,,Large,,779375633,5106263604,Printing Services,Statutory Instru NON VAT(20-21),NR3 1PD,610.00,
"Housing, Communities & Local Government",MHCLG,11/09/2020,Printing,Economic and Business Response,STATIONERY OFFICE LTD,,Large,,779375633,5106263604,Printing Services,Statutory Instruments Print - VAT(20-21),NR3 1PD,348.00,
"Housing, Communities & Local Government",MHCLG,11/09/2020,Printing,Economic and Business Response,STATIONERY OFFICE LTD,,Large,,779375633,5106263605,Printing Services,Statutory Instru NON VAT(20-21),NR3 1PD,915.00,
"Housing, Communities & Local Government",MHCLG,11/09/2020,Printing,Economic and Business Response,STATIONERY OFFICE LTD,,Large,,779375633,5106263605,Printing Services,Statutory Instruments Print - VAT(20-21),NR3 1PD,522.00,
"Housing, Communities & Local Government",MHCLG,11/09/2020,Printing,Economic and Business Response,STATIONERY OFFICE LTD,,Large,,779375633,5106263606,Printing Services,Statutory Instru NON VAT(20-21),NR3 1PD,305.00,
"Housing, Communities & Local Government",MHCLG,11/09/2020,Printing,Economic and Business Response,STATIONERY OFFICE LTD,,Large,,779375633,5106263606,Printing Services,Statutory Instruments Print - VAT(20-21),NR3 1PD,174.00,
"Housing, Communities & Local Government",MHCLG,11/09/2020,Printing,Economic and Business Response,STATIONERY OFFICE LTD,,Large,,779375633,5106263607,Printing Services,Statutory Instru NON VAT(20-21),NR3 1PD,305.00,
"Housing, Communities & Local Government",MHCLG,11/09/2020,Printing,Economic and Business Response,STATIONERY OFFICE LTD,,Large,,779375633,5106263607,Printing Services,Statutory Instruments Print - VAT(20-21),NR3 1PD,174.00,
"Housing, Communities & Local Government",MHCLG,11/09/2020,Publicity,Economic and Business Response,PRESS ASSOCIATION,,Large,,217191704,5106262350,Advertising,Press Association News Wire 20/21,DN14 7YH,"4,939.99",
"Housing, Communities & Local Government",MHCLG,11/09/2020,Publicity,Economic and Business Response,PRESS ASSOCIATION,,Large,,217191704,5106262359,Advertising,PA Mediapoint Embargo Add-on,DN14 7YH,-715.60,
"Housing, Communities & Local Government",MHCLG,11/09/2020,Publicity,Economic and Business Response,PRESS ASSOCIATION,,Large,,217191704,5106262360,Advertising,PA Mediapoint - Mar 20,DN14 7YH,"-1,291.67",
"Housing, Communities & Local Government",MHCLG,11/09/2020,Publicity,Economic and Business Response,PRESS ASSOCIATION,,Large,,217191704,5106262360,Advertising,PA Mediapoint - Nov 19-Mar 20,DN14 7YH,"-1,550.00",
"Housing, Communities & Local Government",MHCLG,11/09/2020,Publicity,Economic and Business Response,PRESS ASSOCIATION,,Large,,217191704,5106262678,Advertising,Press Association News Wire 20/21,DN14 7YH,"2,470.00",
"Housing, Communities & Local Government",MHCLG,11/09/2020,Publicity,Economic and Business Response,PRESS ASSOCIATION,,Large,,217191704,5106263437,Advertising,Press Association News Wire 20/21,DN14 7YH,"2,470.00",
"Housing, Communities & Local Government",MHCLG,11/09/2020,Steady State Service Provision,Housing and Vulnerable People Responses,GROUNDWORK UK,Yes,,,739193758,5106263368,Business Process Outsourcing Services,Grant admin costs,B1 2RR,"3,000.00",
"Housing, Communities & Local Government",MHCLG,11/09/2020,Travel and Subsistence Account,Economic and Business Response,NETWORK EXECUTIVE CHAUFFEURS UK LTD,,Small,,217495152,5106263614,Business Travel,Official Travel & Subsistence,B7 4HJ,396.00,
"Housing, Communities & Local Government",MHCLG,14/09/2020,Agency Staff,Corporate and GOLD Secretariat Cells,ALEXANDER MANN SOLUTIONS LTD,,Large,,,5106263627,Contingent Labour,Interim Staff,EC2N 3AQ,"4,003.56",
"Housing, Communities & Local Government",MHCLG,14/09/2020,Agency Staff,Corporate and GOLD Secretariat Cells,ALEXANDER MANN SOLUTIONS LTD,,Large,,,5106263628,Contingent Labour,Interim Staff,EC2N 3AQ,"1,575.17",
"Housing, Communities & Local Government",MHCLG,14/09/2020,Agency Staff,Corporate and GOLD Secretariat Cells,ALEXANDER MANN SOLUTIONS LTD,,Large,,,5106263629,Contingent Labour,Interim Staff,EC2N 3AQ,"2,454.29",
"Housing, Communities & Local Government",MHCLG,14/09/2020,Agency Staff,Corporate and GOLD Secretariat Cells,ALEXANDER MANN SOLUTIONS LTD,,Large,,,5106263631,Contingent Labour,Interim Staff,EC2N 3AQ,"4,985.26",
"Housing, Communities & Local Government",MHCLG,14/09/2020,Agency Staff,Corporate and GOLD Secretariat Cells,ALEXANDER MANN SOLUTIONS LTD,,Large,,,5106263632,Contingent Labour,Interim Staff,EC2N 3AQ,"1,385.83",
"Housing, Communities & Local Government",MHCLG,14/09/2020,Agency Staff,Corporate and GOLD Secretariat Cells,ALEXANDER MANN SOLUTIONS LTD,,Large,,,5106263634,Contingent Labour,Interim Staff,EC2N 3AQ,"3,721.63",
"Housing, Communities & Local Government",MHCLG,14/09/2020,Agency Staff,Corporate and GOLD Secretariat Cells,ALEXANDER MANN SOLUTIONS LTD,,Large,,,5106263636,Contingent Labour,Temporary Adminstrative Support,EC2N 3AQ,"8,379.84",
"Housing, Communities & Local Government",MHCLG,14/09/2020,Agency Staff,Corporate and GOLD Secretariat Cells,ALEXANDER MANN SOLUTIONS LTD,,Large,,,5106263637,Contingent Labour,Interim Staff,EC2N 3AQ,"2,658.82",
"Housing, Communities & Local Government",MHCLG,14/09/2020,Agency Staff,Corporate and GOLD Secretariat Cells,ALEXANDER MANN SOLUTIONS LTD,,Large,,,5106263638,Contingent Labour,Interim Staff,EC2N 3AQ,"1,872.43",
"Housing, Communities & Local Government",MHCLG,14/09/2020,Agency Staff,Corporate and GOLD Secretariat Cells,ALEXANDER MANN SOLUTIONS LTD,,Large,,,5106263640,Contingent Labour,Interim Staff,EC2N 3AQ,"4,681.10",
"Housing, Communities & Local Government",MHCLG,14/09/2020,Agency Staff,Corporate and GOLD Secretariat Cells,ALEXANDER MANN SOLUTIONS LTD,,Large,,,5106263642,Contingent Labour,Interim Staff,EC2N 3AQ,"1,543.63",
"Housing, Communities & Local Government",MHCLG,14/09/2020,Agency Staff,Corporate and GOLD Secretariat Cells,ALEXANDER MANN SOLUTIONS LTD,,Large,,,5106263643,Contingent Labour,Interim Staff,EC2N 3AQ,"2,142.19",
"Housing, Communities & Local Government",MHCLG,14/09/2020,Agency Staff,Corporate and GOLD Secretariat Cells,ALEXANDER MANN SOLUTIONS LTD,,Large,,,5106263645,Contingent Labour,Interim Staff,EC2N 3AQ,"5,613.84",
"Housing, Communities & Local Government",MHCLG,14/09/2020,Agency Staff,Corporate and GOLD Secretariat Cells,ALEXANDER MANN SOLUTIONS LTD,,Large,,,5106263646,Contingent Labour,Interim Staff,EC2N 3AQ,"4,434.70",
"Housing, Communities & Local Government",MHCLG,14/09/2020,Agency Staff,Corporate and GOLD Secretariat Cells,ALEXANDER MANN SOLUTIONS LTD,,Large,,,5106263648,Contingent Labour,Interim Staff,EC2N 3AQ,618.61,
"Housing, Communities & Local Government",MHCLG,14/09/2020,Agency Staff,Corporate and GOLD Secretariat Cells,ALEXANDER MANN SOLUTIONS LTD,,Large,,,5106263649,Contingent Labour,Interim Staff,EC2N 3AQ,"2,078.75",
"Housing, Communities & Local Government",MHCLG,14/09/2020,Agency Staff,Corporate and GOLD Secretariat Cells,ALEXANDER MANN SOLUTIONS LTD,,Large,,,5106263652,Contingent Labour,Interim Staff,EC2N 3AQ,"4,311.50",
"Housing, Communities & Local Government",MHCLG,14/09/2020,Agency Staff,Corporate and GOLD Secretariat Cells,ALEXANDER MANN SOLUTIONS LTD,,Large,,,5106263653,Contingent Labour,Interim Staff,EC2N 3AQ,"4,536.43",
"Housing, Communities & Local Government",MHCLG,14/09/2020,Agency Staff,Corporate and GOLD Secretariat Cells,ALEXANDER MANN SOLUTIONS LTD,,Large,,,5106263667,Contingent Labour,Interim Staff,EC2N 3AQ,"1,732.65",
"Housing, Communities & Local Government",MHCLG,14/09/2020,Agency Staff,Corporate and GOLD Secretariat Cells,ALEXANDER MANN SOLUTIONS LTD,,Large,,,5106263667,Contingent Labour,Interim Staff,EC2N 3AQ,"1,732.66",
"Housing, Communities & Local Government",MHCLG,14/09/2020,Agency Staff,Corporate and GOLD Secretariat Cells,ALEXANDER MANN SOLUTIONS LTD,,Large,,,5106263673,Contingent Labour,Interim Staff,EC2N 3AQ,"1,386.12",
"Housing, Communities & Local Government",MHCLG,14/09/2020,Agency Staff,Corporate and GOLD Secretariat Cells,ALEXANDER MANN SOLUTIONS LTD,,Large,,,5106263673,Contingent Labour,Interim Staff,EC2N 3AQ,"1,386.12",
"Housing, Communities & Local Government",MHCLG,14/09/2020,Agency Staff,Economic and Business Response,ALEXANDER MANN SOLUTIONS LTD,,Large,,,5106263635,Contingent Labour,Interim Staff,EC2N 3AQ,35.69,
"Housing, Communities & Local Government",MHCLG,14/09/2020,Agency Staff,Economic and Business Response,ALEXANDER MANN SOLUTIONS LTD,,Large,,,5106263635,Contingent Labour,contingent labour,EC2N 3AQ,"1,367.37",
"Housing, Communities & Local Government",MHCLG,14/09/2020,Agency Staff,Economic and Business Response,ALEXANDER MANN SOLUTIONS LTD,,Large,,,5106263656,Contingent Labour,contingent labour,EC2N 3AQ,391.10,
"Housing, Communities & Local Government",MHCLG,14/09/2020,Agency Staff,Emergency Response,ALEXANDER MANN SOLUTIONS LTD,,Large,,,5106263625,Contingent Labour,Interim Staff,EC2N 3AQ,"1,016.28",
"Housing, Communities & Local Government",MHCLG,14/09/2020,Agency Staff,Emergency Response,ALEXANDER MANN SOLUTIONS LTD,,Large,,,5106263647,Contingent Labour,Interim Staff,EC2N 3AQ,"1,751.62",
"Housing, Communities & Local Government",MHCLG,14/09/2020,Agency Staff,Housing and Vulnerable People Responses,ALEXANDER MANN SOLUTIONS LTD,,Large,,,5106263626,Contingent Labour,Short term programme backfill contractor,EC2N 3AQ,"3,202.85",
"Housing, Communities & Local Government",MHCLG,14/09/2020,Agency Staff,Housing and Vulnerable People Responses,ALEXANDER MANN SOLUTIONS LTD,,Large,,,5106263630,Contingent Labour,Short term programme backfill contractor,EC2N 3AQ,"2,268.19",
"Housing, Communities & Local Government",MHCLG,14/09/2020,Agency Staff,Housing and Vulnerable People Responses,ALEXANDER MANN SOLUTIONS LTD,,Large,,,5106263650,Contingent Labour,Short term programme backfill contractor,EC2N 3AQ,"1,524.74",
"Housing, Communities & Local Government",MHCLG,14/09/2020,Agency Staff,Housing and Vulnerable People Responses,ALEXANDER MANN SOLUTIONS LTD,,Large,,,5106263658,Not Addressable,Short term programme backfill contractor,EC2N 3AQ,"2,586.91",
"Housing, Communities & Local Government",MHCLG,14/09/2020,Agency Staff,Housing and Vulnerable People Responses,ALEXANDER MANN SOLUTIONS LTD,,Large,,,5106263659,Contingent Labour,Interim Staff,EC2N 3AQ,"1,058.50",
"Housing, Communities & Local Government",MHCLG,14/09/2020,Capital Grants to People Non Profit,Economic and Business Response,SUFFOLK COASTAL& WAVENEY DC,,,,,2100307320,,Coastal Communities Fund,IP12 1RT,"19,364.00",Yes
"Housing, Communities & Local Government",MHCLG,14/09/2020,Capital Grants to People Non Profit,Economic and Business Response,WYRE BC,,,,424695609,2100307319,,Coastal Communities Fund,FY6 7PU,"20,000.00",Yes
"Housing, Communities & Local Government",MHCLG,14/09/2020,ERDF Work in Progress � Capital,Economic and Business Response,COVENTRY CITY COUNCIL,,Large,,,7700007237,,ERDF grant payment,CV1 2GN,"45,591.29",Yes
"Housing, Communities & Local Government",MHCLG,14/09/2020,ERDF Work in Progress � Capital,Economic and Business Response,HEREFORDSHIRE COUNCIL,,,,,7700007239,,ERDF grant payment,HR1 0LE,"239,340.02",Yes
"Housing, Communities & Local Government",MHCLG,14/09/2020,ERDF Work in Progress � Capital,Economic and Business Response,NORTH EAST COMBINED AUTHORITY,,,,,7700007238,,ERDF grant payment,NE27 0BY,"60,278.90",Yes
"Housing, Communities & Local Government",MHCLG,14/09/2020,ERDF Work in Progress � Resource,Economic and Business Response,BRITISH FASHION COUNCIL,,,,,7700007240,,ERDF grant payment,WC2R 1LA,"564,059.75",Yes
"Housing, Communities & Local Government",MHCLG,14/09/2020,ERDF Work in Progress � Resource,Economic and Business Response,COVENTRY CITY COUNCIL,,Large,,,7700007237,,ERDF grant payment,CV1 2GN,"117,221.98",Yes
"Housing, Communities & Local Government",MHCLG,14/09/2020,ERDF Work in Progress � Resource,Economic and Business Response,NORTH EAST COMBINED AUTHORITY,,,,,7700007238,,ERDF grant payment,NE27 0BY,"37,551.91",Yes
"Housing, Communities & Local Government",MHCLG,14/09/2020,EXP � PURCHASE OF GOODS /SERVICES R & D,Economic and Business Response,DELTAPOLL LTD,,Micro,,,5106262974,Research,Windrush Day polling,SE1 9PD,"2,100.00",
"Housing, Communities & Local Government",MHCLG,14/09/2020,"IT - PC, Network & Hardware",Corporate and GOLD Secretariat Cells,DCLG GOVERNMENT PROCUREMENT CARD,,,,,1000004823,ICT Hardware,Google GSuite accounts,TN37 7GA,306.74,
"Housing, Communities & Local Government",MHCLG,14/09/2020,IT - Service Contracts,Corporate and GOLD Secretariat Cells,ARCUS CLOUD SERVICES LTD,,Medium,,,5106263509,IT Managed / Outsourced Services,Datamart/MCIS/TESA AWS Hosting,CB4 2HY,"10,611.54",
"Housing, Communities & Local Government",MHCLG,14/09/2020,IT - Service Contracts,Corporate and GOLD Secretariat Cells,ARCUS CLOUD SERVICES LTD,,Medium,,,5106263519,IT Managed / Outsourced Services,Datamart/MCIS/TESA AWS Hosting,CB4 2HY,"70,291.20",
"Housing, Communities & Local Government",MHCLG,14/09/2020,IT - Service Contracts,Corporate and GOLD Secretariat Cells,STATIONERY OFFICE LTD,,Large,,779375633,5106263621,IT Managed / Outsourced Services,datamart support,NR3 1PD,"11,600.00",
"Housing, Communities & Local Government",MHCLG,14/09/2020,IT - Software Maintenance,Corporate and GOLD Secretariat Cells,STATIONERY OFFICE LTD,,Large,,779375633,5106263512,IT Managed / Outsourced Services,Delta Capital 20/21,NR3 1PD,"145,561.00",
"Housing, Communities & Local Government",MHCLG,14/09/2020,IT - Software Maintenance,Corporate and GOLD Secretariat Cells,STATIONERY OFFICE LTD,,Large,,779375633,5106263624,IT Managed / Outsourced Services,DELTA SUPPORT UNTIL MARCH 2021,NR3 1PD,"22,000.00",
"Housing, Communities & Local Government",MHCLG,14/09/2020,Legal Fees,Corporate and GOLD Secretariat Cells,LANDMARK CHAMBERS,,Medium,,732521732,5106263579,Legal,Legal Advice,EC4A 2HG,600.00,
"Housing, Communities & Local Government",MHCLG,14/09/2020,Management Consultancy,Housing and Vulnerable People Responses,FAITHFUL&GOULD LTD,,Large,,,5106263323,Consultancy,PMO Support,KT18 5BW,"330,648.58",
"Housing, Communities & Local Government",MHCLG,14/09/2020,Management Consultancy,Housing and Vulnerable People Responses,VERACITY OSI UK LTD,,Medium,,,5106263666,Consultancy,Building Safety Programme � Project Management Services,EC3R 8LJ,"15,288.00",
"Housing, Communities & Local Government",MHCLG,14/09/2020,Office Supplies,Economic and Business Response,BARROW HEPBURN & GALE,,Micro,,,5106263668,Office Supplies,Carriage,SO53 3AL,40.00,
"Housing, Communities & Local Government",MHCLG,14/09/2020,Office Supplies,Economic and Business Response,BARROW HEPBURN & GALE,,Micro,,,5106263668,Office Supplies,Despatch Box,SO53 3AL,"1,980.00",
"Housing, Communities & Local Government",MHCLG,14/09/2020,Office Supplies,Economic and Business Response,BARROW HEPBURN & GALE,,Micro,,,5106263668,Office Supplies,Ministerial Folder,SO53 3AL,720.00,
"Housing, Communities & Local Government",MHCLG,14/09/2020,Recruitment,Economic and Business Response,OFFICE FOR NATIONAL STATISTICS,,Public Bodies,,232101196,5106263595,Business Process Outsourcing Services,Recruitment charges,NP10 8XG,"2,400.00",
"Housing, Communities & Local Government",MHCLG,14/09/2020,Steady State Service Provision,Housing and Vulnerable People Responses,ATKINS LTD,,Large,,293650339,5106263594,Business Process Outsourcing Services,ccreditaion Scheme Audit Contract,KT18 5BW,"35,400.00",
"Housing, Communities & Local Government",MHCLG,14/09/2020,Steady State Service Provision,Housing and Vulnerable People Responses,GROUNDWORK UK,Yes,,,739193758,5106263681,Business Process Outsourcing Services,Grant admin costs,B1 2RR,"6,522.00",
"Housing, Communities & Local Government",MHCLG,15/09/2020,Agency Staff,Housing and Vulnerable People Responses,ALEXANDER MANN SOLUTIONS LTD,,Large,,,5106263696,Contingent Labour,Short term programme backfill contractor,EC2N 3AQ,"4,804.27",
"Housing, Communities & Local Government",MHCLG,15/09/2020,Agency Staff,Housing and Vulnerable People Responses,ALEXANDER MANN SOLUTIONS LTD,,Large,,,5106263696,Contingent Labour,Short term programme backfill contractor,EC2N 3AQ,40.80,
"Housing, Communities & Local Government",MHCLG,15/09/2020,Cap Grants to Local Authorities (DEL),Economic and Business Response,SHEFFIELD COMBINED AUTHORITY,,,,,2100307303,,Annual Investment Fund (CDEL),S1 2BQ,"18,000,000.00",Yes
"Housing, Communities & Local Government",MHCLG,15/09/2020,Current (non AEF) Grants to Local Authorities,Economic and Business Response,BASSETLAW DC (HSG),,,,,3700069602,,Grant payable by the Exchequer,S80 2AH,"38,655.00",Yes
"Housing, Communities & Local Government",MHCLG,15/09/2020,Current (non AEF) Grants to Local Authorities,Economic and Business Response,BEDFORD UNITARY AUTHORITY,,,,225682160,3700069599,,Grant payable by the Exchequer,MK40 1SJ,"22,174.00",Yes
"Housing, Communities & Local Government",MHCLG,15/09/2020,Current (non AEF) Grants to Local Authorities,Economic and Business Response,CALDERDALE MBC,,,,,3700069595,,Grant payable by the Exchequer,HX1 1YP,"27,712.00",Yes
"Housing, Communities & Local Government",MHCLG,15/09/2020,Current (non AEF) Grants to Local Authorities,Economic and Business Response,CRAVEN DC (HSG),,,,,3700069594,,Grant payable by the Exchequer,BD23 1FJ,"7,992.00",Yes
"Housing, Communities & Local Government",MHCLG,15/09/2020,Current (non AEF) Grants to Local Authorities,Economic and Business Response,CRAWLEY BC,,,,211222500,3700069591,,Grant payable by the Exchequer,RH10 1UZ,"23,458.00",Yes
"Housing, Communities & Local Government",MHCLG,15/09/2020,Current (non AEF) Grants to Local Authorities,Economic and Business Response,DERBY CITY CNCL,,,,229641378,3700069604,,Grant payable by the Exchequer,DE1 2FS,"24,567.00",Yes
"Housing, Communities & Local Government",MHCLG,15/09/2020,Current (non AEF) Grants to Local Authorities,Economic and Business Response,ISLINGTON LB,,,,225716729,3700069590,,Grant payable by the Exchequer,N1 1XR,"52,185.00",Yes
"Housing, Communities & Local Government",MHCLG,15/09/2020,Current (non AEF) Grants to Local Authorities,Economic and Business Response,MERTON LB,,,,,3700069600,,Grant payable by the Exchequer,SM4 5DX,"7,767.00",Yes
"Housing, Communities & Local Government",MHCLG,15/09/2020,Current (non AEF) Grants to Local Authorities,Economic and Business Response,MILTON KEYNES BC,,,,,3700069593,,Grant payable by the Exchequer,MK9 3WJ,"51,429.00",Yes
"Housing, Communities & Local Government",MHCLG,15/09/2020,Current (non AEF) Grants to Local Authorities,Economic and Business Response,REDDITCH BC,,,,231421491,3700069601,,Grant payable by the Exchequer,B98 8AH,"12,016.00",Yes
"Housing, Communities & Local Government",MHCLG,15/09/2020,Current (non AEF) Grants to Local Authorities,Economic and Business Response,SHEFFIELD COMBINED AUTHORITY,,,,,2100307302,,Annual Investment Fund (RDEL),S1 2BQ,"12,000,000.00",Yes
"Housing, Communities & Local Government",MHCLG,15/09/2020,Current (non AEF) Grants to Local Authorities,Economic and Business Response,SLOUGH BOROUGH COUNCIL,,,,211027123,3700069598,,Grant payable by the Exchequer,SL1 3UF,"1,950.00",Yes
"Housing, Communities & Local Government",MHCLG,15/09/2020,Current (non AEF) Grants to Local Authorities,Economic and Business Response,STOCKTON-ON-TEES BC (HSG),,,,,3700069596,,Grant payable by the Exchequer,TS23 2YS,"10,340.00",Yes
"Housing, Communities & Local Government",MHCLG,15/09/2020,Current (non AEF) Grants to Local Authorities,Economic and Business Response,WINCHESTER CITY CNCL,,,,228838280,3700069603,,Grant payable by the Exchequer,SO23 9LJ,"30,175.00",Yes
"Housing, Communities & Local Government",MHCLG,15/09/2020,Current (non AEF) Grants to Local Authorities,Emergency Response,ADUR DC,,,,227472891,3700069802,,Grant payable by the Exchequer,BN11 1HA,"296,212.00",Yes
"Housing, Communities & Local Government",MHCLG,15/09/2020,Current (non AEF) Grants to Local Authorities,Emergency Response,ADUR DC,,,,227472891,3700070595,,Grant payable by the Exchequer,BN11 1HA,"296,213.00",Yes
"Housing, Communities & Local Government",MHCLG,15/09/2020,Current (non AEF) Grants to Local Authorities,Emergency Response,ADUR DC,,,,227472891,3700070683,,Grant payable by the Exchequer,BN11 1HA,"1,976.00",Yes
"Housing, Communities & Local Government",MHCLG,15/09/2020,Current (non AEF) Grants to Local Authorities,Emergency Response,ADUR DC,,,,227472891,3700071267,,Grant payable by the Exchequer,BN11 1HA,"1,975.00",Yes
"Housing, Communities & Local Government",MHCLG,15/09/2020,Current (non AEF) Grants to Local Authorities,Emergency Response,ALLERDALE BOROUGH COUNCIL,,,,230824120,3700069766,,Grant payable by the Exchequer,CA14 3YJ,"563,450.00",Yes
"Housing, Communities & Local Government",MHCLG,15/09/2020,Current (non AEF) Grants to Local Authorities,Emergency Response,ALLERDALE BOROUGH COUNCIL,,,,230824120,3700069804,,Grant payable by the Exchequer,CA14 3YJ,"563,450.00",Yes
"Housing, Communities & Local Government",MHCLG,15/09/2020,Current (non AEF) Grants to Local Authorities,Emergency Response,ALLERDALE BOROUGH COUNCIL,,,,230824120,3700070528,,Grant payable by the Exchequer,CA14 3YJ,"1,409.00",Yes
"Housing, Communities & Local Government",MHCLG,15/09/2020,Current (non AEF) Grants to Local Authorities,Emergency Response,ALLERDALE BOROUGH COUNCIL,,,,230824120,3700070740,,Grant payable by the Exchequer,CA14 3YJ,"1,410.00",Yes
"Housing, Communities & Local Government",MHCLG,15/09/2020,Current (non AEF) Grants to Local Authorities,Emergency Response,AMBER VALLEY BC,,,,,3700069738,,Grant payable by the Exchequer,DE5 3BT,"424,709.00",Yes
"Housing, Communities & Local Government",MHCLG,15/09/2020,Current (non AEF) Grants to Local Authorities,Emergency Response,AMBER VALLEY BC,,,,,3700069956,,Grant payable by the Exchequer,DE5 3BT,"4,760.00",Yes
"Housing, Communities & Local Government",MHCLG,15/09/2020,Current (non AEF) Grants to Local Authorities,Emergency Response,AMBER VALLEY BC,,,,,3700070914,,Grant payable by the Exchequer,DE5 3BT,"424,710.00",Yes
"Housing, Communities & Local Government",MHCLG,15/09/2020,Current (non AEF) Grants to Local Authorities,Emergency Response,AMBER VALLEY BC,,,,,3700071015,,Grant payable by the Exchequer,DE5 3BT,"4,761.00",Yes
"Housing, Communities & Local Government",MHCLG,15/09/2020,Current (non AEF) Grants to Local Authorities,Emergency Response,ARUN DC,,,,211217668,3700070586,,Grant payable by the Exchequer,BN17 5LF,"5,791.00",Yes
"Housing, Communities & Local Government",MHCLG,15/09/2020,Current (non AEF) Grants to Local Authorities,Emergency Response,ARUN DC,,,,211217668,3700070598,,Grant payable by the Exchequer,BN17 5LF,"754,805.00",Yes
"Housing, Communities & Local Government",MHCLG,15/09/2020,Current (non AEF) Grants to Local Authorities,Emergency Response,ARUN DC,,,,211217668,3700070716,,Grant payable by the Exchequer,BN17 5LF,"754,805.00",Yes
"Housing, Communities & Local Government",MHCLG,15/09/2020,Current (non AEF) Grants to Local Authorities,Emergency Response,ARUN DC,,,,211217668,3700071085,,Grant payable by the Exchequer,BN17 5LF,"5,792.00",Yes
"Housing, Communities & Local Government",MHCLG,15/09/2020,Current (non AEF) Grants to Local Authorities,Emergency Response,ASHFIELD DC,,,,235415296,3700069823,,Grant payable by the Exchequer,NG17 8DA,"5,757.00",Yes
"Housing, Communities & Local Government",MHCLG,15/09/2020,Current (non AEF) Grants to Local Authorities,Emergency Response,ASHFIELD DC,,,,235415296,3700070016,,Grant payable by the Exchequer,NG17 8DA,"5,758.00",Yes
"Housing, Communities & Local Government",MHCLG,15/09/2020,Current (non AEF) Grants to Local Authorities,Emergency Response,ASHFIELD DC,,,,235415296,3700070136,,Grant payable by the Exchequer,NG17 8DA,"382,140.00",Yes
"Housing, Communities & Local Government",MHCLG,15/09/2020,Current (non AEF) Grants to Local Authorities,Emergency Response,ASHFIELD DC,,,,235415296,3700070674,,Grant payable by the Exchequer,NG17 8DA,"382,140.00",Yes
"Housing, Communities & Local Government",MHCLG,15/09/2020,Current (non AEF) Grants to Local Authorities,Emergency Response,ASHFORD BC,,,,229467071,3700070381,,Grant payable by the Exchequer,TN23 1PL,"3,860.00",Yes
"Housing, Communities & Local Government",MHCLG,15/09/2020,Current (non AEF) Grants to Local Authorities,Emergency Response,ASHFORD BC,,,,229467071,3700070738,,Grant payable by the Exchequer,TN23 1PL,"3,861.00",Yes
"Housing, Communities & Local Government",MHCLG,15/09/2020,Current (non AEF) Grants to Local Authorities,Emergency Response,ASHFORD BC,,,,229467071,3700070872,,Grant payable by the Exchequer,TN23 1PL,"1,076,709.00",Yes
"Housing, Communities & Local Government",MHCLG,15/09/2020,Current (non AEF) Grants to Local Authorities,Emergency Response,ASHFORD BC,,,,229467071,3700070887,,Grant payable by the Exchequer,TN23 1PL,"1,076,708.00",Yes
"Housing, Communities & Local Government",MHCLG,15/09/2020,Current (non AEF) Grants to Local Authorities,Emergency Response,BABERGH DC,,,,232618405,3700069869,,Grant payable by the Exchequer,IP7 6SJ,"6,520.00",Yes
"Housing, Communities & Local Government",MHCLG,15/09/2020,Current (non AEF) Grants to Local Authorities,Emergency Response,BABERGH DC,,,,232618405,3700070365,,Grant payable by the Exchequer,IP7 6SJ,"407,638.00",Yes
"Housing, Communities & Local Government",MHCLG,15/09/2020,Current (non AEF) Grants to Local Authorities,Emergency Response,BABERGH DC,,,,232618405,3700070758,,Grant payable by the Exchequer,IP7 6SJ,"6,520.00",Yes
"Housing, Communities & Local Government",MHCLG,15/09/2020,Current (non AEF) Grants to Local Authorities,Emergency Response,BABERGH DC,,,,232618405,3700071225,,Grant payable by the Exchequer,IP7 6SJ,"407,638.00",Yes
"Housing, Communities & Local Government",MHCLG,15/09/2020,Current (non AEF) Grants to Local Authorities,Emergency Response,BARKING & DAGENHAM LB,,Public Bodies,,227419488,3700070396,,Grant payable by the Exchequer,RM10 7BY,"18,026.00",Yes
"Housing, Communities & Local Government",MHCLG,15/09/2020,Current (non AEF) Grants to Local Authorities,Emergency Response,BARKING & DAGENHAM LB,,Public Bodies,,227419488,3700070757,,Grant payable by the Exchequer,RM10 7BY,"343,957.00",Yes
"Housing, Communities & Local Government",MHCLG,15/09/2020,Current (non AEF) Grants to Local Authorities,Emergency Response,BARKING & DAGENHAM LB,,Public Bodies,,227419488,3700070853,,Grant payable by the Exchequer,RM10 7BY,"8,879.00",Yes
"Housing, Communities & Local Government",MHCLG,15/09/2020,Current (non AEF) Grants to Local Authorities,Emergency Response,BARKING & DAGENHAM LB,,Public Bodies,,227419488,3700070867,,Grant payable by the Exchequer,RM10 7BY,"698,337.00",Yes
"Housing, Communities & Local Government",MHCLG,15/09/2020,Current (non AEF) Grants to Local Authorities,Emergency Response,BARKING & DAGENHAM LB (HSG),,,,217142293,3700069856,,Grant payable by the Exchequer,RM10 7BY,"489,206.00",Yes
"Housing, Communities & Local Government",MHCLG,15/09/2020,Current (non AEF) Grants to Local Authorities,Emergency Response,BARKING & DAGENHAM LB (HSG),,,,217142293,3700070009,,Grant payable by the Exchequer,RM10 7BY,"865,980.00",Yes
"Housing, Communities & Local Government",MHCLG,15/09/2020,Current (non AEF) Grants to Local Authorities,Emergency Response,BARNET LBC,,,,211049507,3700070544,,Grant payable by the Exchequer,N11 1NP,"21,319.00",Yes
"Housing, Communities & Local Government",MHCLG,15/09/2020,Current (non AEF) Grants to Local Authorities,Emergency Response,BARNET LBC,,,,211049507,3700070582,,Grant payable by the Exchequer,N11 1NP,"1,126,912.00",Yes
"Housing, Communities & Local Government",MHCLG,15/09/2020,Current (non AEF) Grants to Local Authorities,Emergency Response,BARNET LBC,,,,211049507,3700070638,,Grant payable by the Exchequer,N11 1NP,"43,286.00",Yes
"Housing, Communities & Local Government",MHCLG,15/09/2020,Current (non AEF) Grants to Local Authorities,Emergency Response,BARNET LBC,,,,211049507,3700070912,,Grant payable by the Exchequer,N11 1NP,"3,895,389.00",Yes
"Housing, Communities & Local Government",MHCLG,15/09/2020,Current (non AEF) Grants to Local Authorities,Emergency Response,BARNSLEY MBC,,,,211178595,3700069854,,Grant payable by the Exchequer,S70 2AQ,"649,431.00",Yes
"Housing, Communities & Local Government",MHCLG,15/09/2020,Current (non AEF) Grants to Local Authorities,Emergency Response,BARNSLEY MBC,,,,211178595,3700069941,,Grant payable by the Exchequer,S70 2AQ,"1,087,881.00",Yes
"Housing, Communities & Local Government",MHCLG,15/09/2020,Current (non AEF) Grants to Local Authorities,Emergency Response,BARNSLEY MBC,,Public Bodies,,211178595,3700070169,,Grant payable by the Exchequer,S70 2AQ,"5,233.00",Yes
"Housing, Communities & Local Government",MHCLG,15/09/2020,Current (non AEF) Grants to Local Authorities,Emergency Response,BARNSLEY MBC,,Public Bodies,,211178595,3700070533,,Grant payable by the Exchequer,S70 2AQ,"732,062.00",Yes
"Housing, Communities & Local Government",MHCLG,15/09/2020,Current (non AEF) Grants to Local Authorities,Emergency Response,BARNSLEY MBC,,Public Bodies,,211178595,3700070689,,Grant payable by the Exchequer,S70 2AQ,"732,061.00",Yes
"Housing, Communities & Local Government",MHCLG,15/09/2020,Current (non AEF) Grants to Local Authorities,Emergency Response,BARNSLEY MBC,,Public Bodies,,211178595,3700070870,,Grant payable by the Exchequer,S70 2AQ,"5,232.00",Yes
"Housing, Communities & Local Government",MHCLG,15/09/2020,Current (non AEF) Grants to Local Authorities,Emergency Response,BARROW BC,,,,295632913,3700070634,,Grant payable by the Exchequer,LA14 2LD,"2,305.00",Yes
"Housing, Communities & Local Government",MHCLG,15/09/2020,Current (non AEF) Grants to Local Authorities,Emergency Response,BARROW BC,,,,295632913,3700070816,,Grant payable by the Exchequer,LA14 2LD,"172,235.00",Yes
"Housing, Communities & Local Government",MHCLG,15/09/2020,Current (non AEF) Grants to Local Authorities,Emergency Response,BARROW BC,,,,295632913,3700071038,,Grant payable by the Exchequer,LA14 2LD,"2,306.00",Yes
"Housing, Communities & Local Government",MHCLG,15/09/2020,Current (non AEF) Grants to Local Authorities,Emergency Response,BARROW BC,,,,295632913,3700071070,,Grant payable by the Exchequer,LA14 2LD,"172,235.00",Yes
"Housing, Communities & Local Government",MHCLG,15/09/2020,Current (non AEF) Grants to Local Authorities,Emergency Response,BASILDON DC,,,,,3700070473,,Grant payable by the Exchequer,SS14 0DF,"1,232,072.00",Yes
"Housing, Communities & Local Government",MHCLG,15/09/2020,Current (non AEF) Grants to Local Authorities,Emergency Response,BASILDON DC,,,,,3700070685,,Grant payable by the Exchequer,SS14 0DF,"1,232,071.00",Yes
"Housing, Communities & Local Government",MHCLG,15/09/2020,Current (non AEF) Grants to Local Authorities,Emergency Response,BASILDON DC,,,,,3700070775,,Grant payable by the Exchequer,SS14 0DF,"6,136.00",Yes
"Housing, Communities & Local Government",MHCLG,15/09/2020,Current (non AEF) Grants to Local Authorities,Emergency Response,BASILDON DC,,,,,3700070948,,Grant payable by the Exchequer,SS14 0DF,"6,137.00",Yes
"Housing, Communities & Local Government",MHCLG,15/09/2020,Current (non AEF) Grants to Local Authorities,Emergency Response,BASINGSTOKE & DEANE BC,,,,228328506,3700070175,,Grant payable by the Exchequer,RG21 2AJ,"1,053,230.00",Yes
"Housing, Communities & Local Government",MHCLG,15/09/2020,Current (non AEF) Grants to Local Authorities,Emergency Response,BASINGSTOKE & DEANE BC,,,,228328506,3700070681,,Grant payable by the Exchequer,RG21 2AJ,"24,817.00",Yes
"Housing, Communities & Local Government",MHCLG,15/09/2020,Current (non AEF) Grants to Local Authorities,Emergency Response,BASINGSTOKE & DEANE BC,,,,228328506,3700070711,,Grant payable by the Exchequer,RG21 2AJ,"1,066,930.00",Yes
"Housing, Communities & Local Government",MHCLG,15/09/2020,Current (non AEF) Grants to Local Authorities,Emergency Response,BASINGSTOKE & DEANE BC,,,,228328506,3700070971,,Grant payable by the Exchequer,RG21 2AJ,"24,818.00",Yes
"Housing, Communities & Local Government",MHCLG,15/09/2020,Current (non AEF) Grants to Local Authorities,Emergency Response,BASSETLAW DC,,,,230225054,3700070637,,Grant payable by the Exchequer,S80 2AH,"9,166.00",Yes
"Housing, Communities & Local Government",MHCLG,15/09/2020,Current (non AEF) Grants to Local Authorities,Emergency Response,BASSETLAW DC,,,,230225054,3700070980,,Grant payable by the Exchequer,S80 2AH,"487,861.00",Yes
"Housing, Communities & Local Government",MHCLG,15/09/2020,Current (non AEF) Grants to Local Authorities,Emergency Response,BASSETLAW DC,,,,230225054,3700071097,,Grant payable by the Exchequer,S80 2AH,"9,166.00",Yes
"Housing, Communities & Local Government",MHCLG,15/09/2020,Current (non AEF) Grants to Local Authorities,Emergency Response,BASSETLAW DC,,,,230225054,3700071153,,Grant payable by the Exchequer,S80 2AH,"487,860.00",Yes
"Housing, Communities & Local Government",MHCLG,15/09/2020,Current (non AEF) Grants to Local Authorities,Emergency Response,BATH & NE SOMERSET DC (HSG),,,,214502499,3700069767,,Grant payable by the Exchequer,BA1 5AW,"327,514.00",Yes
"Housing, Communities & Local Government",MHCLG,15/09/2020,Current (non AEF) Grants to Local Authorities,Emergency Response,BATH & NE SOMERSET DC (HSG),,,,214502499,3700069822,,Grant payable by the Exchequer,BA1 5AW,"396,556.00",Yes
"Housing, Communities & Local Government",MHCLG,15/09/2020,Current (non AEF) Grants to Local Authorities,Emergency Response,BATH & NORTH EAST SOMERSET DC,,,,214502499,3700069889,,Grant payable by the Exchequer,BA1 5AW,"18,520.00",Yes
"Housing, Communities & Local Government",MHCLG,15/09/2020,Current (non AEF) Grants to Local Authorities,Emergency Response,BATH & NORTH EAST SOMERSET DC,,,,214502499,3700071102,,Grant payable by the Exchequer,BA1 5AW,"3,406,037.00",Yes
"Housing, Communities & Local Government",MHCLG,15/09/2020,Current (non AEF) Grants to Local Authorities,Emergency Response,BEDFORD BOROUGH COUNCIL,,,,211166889,3700069853,,Grant payable by the Exchequer,MK40 1SJ,"11,720.00",Yes
"Housing, Communities & Local Government",MHCLG,15/09/2020,Current (non AEF) Grants to Local Authorities,Emergency Response,BEDFORD BOROUGH COUNCIL,,,,211166889,3700070154,,Grant payable by the Exchequer,MK40 1SJ,"11,721.00",Yes
"Housing, Communities & Local Government",MHCLG,15/09/2020,Current (non AEF) Grants to Local Authorities,Emergency Response,BEDFORD BOROUGH COUNCIL,,,,211166889,3700070309,,Grant payable by the Exchequer,MK40 1SJ,"1,018,304.00",Yes
"Housing, Communities & Local Government",MHCLG,15/09/2020,Current (non AEF) Grants to Local Authorities,Emergency Response,BEDFORD BOROUGH COUNCIL,,,,211166889,3700071043,,Grant payable by the Exchequer,MK40 1SJ,"1,018,304.00",Yes
"Housing, Communities & Local Government",MHCLG,15/09/2020,Current (non AEF) Grants to Local Authorities,Emergency Response,BEDFORD UNITARY AUTHORITY,,,,225682160,3700069947,,Grant payable by the Exchequer,MK40 1SJ,"275,382.00",Yes
"Housing, Communities & Local Government",MHCLG,15/09/2020,Current (non AEF) Grants to Local Authorities,Emergency Response,BEDFORD UNITARY AUTHORITY,,,,225682160,3700070025,,Grant payable by the Exchequer,MK40 1SJ,"271,594.00",Yes
"Housing, Communities & Local Government",MHCLG,15/09/2020,Current (non AEF) Grants to Local Authorities,Emergency Response,BEXLEY LB,,,,,3700070100,,Grant payable by the Exchequer,DA8 1TL,"15,509.00",Yes
"Housing, Communities & Local Government",MHCLG,15/09/2020,Current (non AEF) Grants to Local Authorities,Emergency Response,BEXLEY LB,,,,,3700070182,,Grant payable by the Exchequer,DA8 1TL,"760,473.00",Yes
"Housing, Communities & Local Government",MHCLG,15/09/2020,Current (non AEF) Grants to Local Authorities,Emergency Response,BEXLEY LB,,,,,3700070612,,Grant payable by the Exchequer,DA8 1TL,"1,543,990.00",Yes
"Housing, Communities & Local Government",MHCLG,15/09/2020,Current (non AEF) Grants to Local Authorities,Emergency Response,BEXLEY LB,,,,,3700071186,,Grant payable by the Exchequer,DA8 1TL,"7,639.00",Yes
"Housing, Communities & Local Government",MHCLG,15/09/2020,Current (non AEF) Grants to Local Authorities,Emergency Response,BEXLEY LB (HSG),,,,,3700069765,,Grant payable by the Exchequer,DA8 1TL,"425,533.00",Yes
"Housing, Communities & Local Government",MHCLG,15/09/2020,Current (non AEF) Grants to Local Authorities,Emergency Response,BEXLEY LB (HSG),,,,,3700069955,,Grant payable by the Exchequer,DA8 1TL,"535,113.00",Yes
"Housing, Communities & Local Government",MHCLG,15/09/2020,Current (non AEF) Grants to Local Authorities,Emergency Response,BIRMINGHAM CITY CNCL,,,,213780559,3700069743,,Grant payable by the Exchequer,B2 2AJ,"5,493,222.00",Yes
"Housing, Communities & Local Government",MHCLG,15/09/2020,Current (non AEF) Grants to Local Authorities,Emergency Response,BIRMINGHAM CITY CNCL,,,,213780559,3700070093,,Grant payable by the Exchequer,B2 2AJ,"3,062,071.00",Yes
"Housing, Communities & Local Government",MHCLG,15/09/2020,Current (non AEF) Grants to Local Authorities,Emergency Response,BIRMINGHAM CITY CNCL,,,,213780559,3700070240,,Grant payable by the Exchequer,B3 3AB,"203,766.00",Yes
"Housing, Communities & Local Government",MHCLG,15/09/2020,Current (non AEF) Grants to Local Authorities,Emergency Response,BIRMINGHAM CITY CNCL,,,,213780559,3700070864,,Grant payable by the Exchequer,B3 3AB,"13,583,975.00",Yes
"Housing, Communities & Local Government",MHCLG,15/09/2020,Current (non AEF) Grants to Local Authorities,Emergency Response,BLABY DC,,,,,3700069984,,Grant payable by the Exchequer,LE9 5EP,"817,768.00",Yes
"Housing, Communities & Local Government",MHCLG,15/09/2020,Current (non AEF) Grants to Local Authorities,Emergency Response,BLABY DC,,,,,3700070038,,Grant payable by the Exchequer,LE9 5EP,"8,702.00",Yes
"Housing, Communities & Local Government",MHCLG,15/09/2020,Current (non AEF) Grants to Local Authorities,Emergency Response,BLABY DC,,,,,3700070272,,Grant payable by the Exchequer,LE9 5EP,"8,701.00",Yes
"Housing, Communities & Local Government",MHCLG,15/09/2020,Current (non AEF) Grants to Local Authorities,Emergency Response,BLABY DC,,,,,3700070641,,Grant payable by the Exchequer,LE9 5EP,"817,769.00",Yes
"Housing, Communities & Local Government",MHCLG,15/09/2020,Current (non AEF) Grants to Local Authorities,Emergency Response,BLACKBURN WITH DARWEN BC,,,,,3700069640,,Grant payable by the Exchequer,BB1 7DY,"410,375.00",Yes
"Housing, Communities & Local Government",MHCLG,15/09/2020,Current (non AEF) Grants to Local Authorities,Emergency Response,BLACKBURN WITH DARWEN BC,,,,,3700069749,,Grant payable by the Exchequer,BB1 7DY,"675,272.00",Yes
"Housing, Communities & Local Government",MHCLG,15/09/2020,Current (non AEF) Grants to Local Authorities,Emergency Response,BLACKBURN WITH DARWEN BC,,,,,3700070164,,Grant payable by the Exchequer,BB1 7DY,"9,618.00",Yes
"Housing, Communities & Local Government",MHCLG,15/09/2020,Current (non AEF) Grants to Local Authorities,Emergency Response,BLACKBURN WITH DARWEN BC,,,,,3700070253,,Grant payable by the Exchequer,BB1 7DY,"9,619.00",Yes
"Housing, Communities & Local Government",MHCLG,15/09/2020,Current (non AEF) Grants to Local Authorities,Emergency Response,BLACKBURN WITH DARWEN BC,,,,,3700070432,,Grant payable by the Exchequer,BB1 7DY,"670,470.00",Yes
"Housing, Communities & Local Government",MHCLG,15/09/2020,Current (non AEF) Grants to Local Authorities,Emergency Response,BLACKBURN WITH DARWEN BC,,,,,3700070556,,Grant payable by the Exchequer,BB1 7DY,"670,470.00",Yes
"Housing, Communities & Local Government",MHCLG,15/09/2020,Current (non AEF) Grants to Local Authorities,Emergency Response,BLACKPOOL BC,,,,,3700069656,,Grant payable by the Exchequer,FY1 1NA,"879,593.00",Yes
"Housing, Communities & Local Government",MHCLG,15/09/2020,Current (non AEF) Grants to Local Authorities,Emergency Response,BLACKPOOL BC,,,,,3700069878,,Grant payable by the Exchequer,FY1 1NA,"493,465.00",Yes
"Housing, Communities & Local Government",MHCLG,15/09/2020,Current (non AEF) Grants to Local Authorities,Emergency Response,BLACKPOOL BC,,,,,3700070229,,Grant payable by the Exchequer,FY1 1NA,"1,189,922.00",Yes
"Housing, Communities & Local Government",MHCLG,15/09/2020,Current (non AEF) Grants to Local Authorities,Emergency Response,BLACKPOOL BC,,,,,3700070625,,Grant payable by the Exchequer,FY1 1NA,"5,464.00",Yes
"Housing, Communities & Local Government",MHCLG,15/09/2020,Current (non AEF) Grants to Local Authorities,Emergency Response,BLACKPOOL BC,,,,,3700070778,,Grant payable by the Exchequer,FY1 1NA,"5,463.00",Yes
"Housing, Communities & Local Government",MHCLG,15/09/2020,Current (non AEF) Grants to Local Authorities,Emergency Response,BLACKPOOL BC,,,,,3700071149,,Grant payable by the Exchequer,FY1 1NA,"1,175,882.00",Yes
"Housing, Communities & Local Government",MHCLG,15/09/2020,Current (non AEF) Grants to Local Authorities,Emergency Response,BOLSOVER DC,,Large,,235516523,3700070062,,Grant payable by the Exchequer,S43 4JY,"1,978.00",Yes
"Housing, Communities & Local Government",MHCLG,15/09/2020,Current (non AEF) Grants to Local Authorities,Emergency Response,BOLSOVER DC,,Large,,235516523,3700070143,,Grant payable by the Exchequer,S43 4JY,"282,797.00",Yes
"Housing, Communities & Local Government",MHCLG,15/09/2020,Current (non AEF) Grants to Local Authorities,Emergency Response,BOLSOVER DC,,Large,,235516523,3700070455,,Grant payable by the Exchequer,S43 4JY,"282,798.00",Yes
"Housing, Communities & Local Government",MHCLG,15/09/2020,Current (non AEF) Grants to Local Authorities,Emergency Response,BOLSOVER DC,,Large,,235516523,3700070703,,Grant payable by the Exchequer,S43 4JY,"1,977.00",Yes
"Housing, Communities & Local Government",MHCLG,15/09/2020,Current (non AEF) Grants to Local Authorities,Emergency Response,BOLTON MBC,,,,,3700069652,,Grant payable by the Exchequer,BL1 1RU,"1,203,101.00",Yes
"Housing, Communities & Local Government",MHCLG,15/09/2020,Current (non AEF) Grants to Local Authorities,Emergency Response,BOLTON MBC,,,,,3700069735,,Grant payable by the Exchequer,BL1 1RU,"720,049.00",Yes
"Housing, Communities & Local Government",MHCLG,15/09/2020,Current (non AEF) Grants to Local Authorities,Emergency Response,BOLTON MBC,,,,,3700070325,,Grant payable by the Exchequer,BL1 1RU,"2,978,454.00",Yes
"Housing, Communities & Local Government",MHCLG,15/09/2020,Current (non AEF) Grants to Local Authorities,Emergency Response,BOLTON MBC,,,,,3700070357,,Grant payable by the Exchequer,BL1 1RU,"33,897.00",Yes
"Housing, Communities & Local Government",MHCLG,15/09/2020,Current (non AEF) Grants to Local Authorities,Emergency Response,BOSTON BC,,,,236417713,3700070733,,Grant payable by the Exchequer,PE21 8QR,"4,910.00",Yes
"Housing, Communities & Local Government",MHCLG,15/09/2020,Current (non AEF) Grants to Local Authorities,Emergency Response,BOSTON BC,,,,236417713,3700070802,,Grant payable by the Exchequer,PE21 8QR,"365,843.00",Yes
"Housing, Communities & Local Government",MHCLG,15/09/2020,Current (non AEF) Grants to Local Authorities,Emergency Response,BOSTON BC,,,,236417713,3700070862,,Grant payable by the Exchequer,PE21 8QR,"365,843.00",Yes
"Housing, Communities & Local Government",MHCLG,15/09/2020,Current (non AEF) Grants to Local Authorities,Emergency Response,BOSTON BC,,,,236417713,3700071193,,Grant payable by the Exchequer,PE21 8QR,"4,910.00",Yes
"Housing, Communities & Local Government",MHCLG,15/09/2020,Current (non AEF) Grants to Local Authorities,Emergency Response,"Bournemouth, Christchurch and Poole",,,,,3700070293,,Grant payable by the Exchequer,BH2 6DY,"3,237,725.00",Yes
"Housing, Communities & Local Government",MHCLG,15/09/2020,Current (non AEF) Grants to Local Authorities,Emergency Response,"Bournemouth, Christchurch and Poole",,,,,3700070320,,Grant payable by the Exchequer,BH2 6DY,"23,647.00",Yes
"Housing, Communities & Local Government",MHCLG,15/09/2020,Current (non AEF) Grants to Local Authorities,Emergency Response,"Bournemouth, Christchurch and Poole",,,,,3700070658,,Grant payable by the Exchequer,BH2 6DY,"23,647.00",Yes
"Housing, Communities & Local Government",MHCLG,15/09/2020,Current (non AEF) Grants to Local Authorities,Emergency Response,"Bournemouth, Christchurch and Poole",,,,,3700071228,,Grant payable by the Exchequer,BH2 6DY,"3,237,724.00",Yes
"Housing, Communities & Local Government",MHCLG,15/09/2020,Current (non AEF) Grants to Local Authorities,Emergency Response,"Bournemouth, Christchurch and Poole",,,,,3700069686,,Grant payable by the Exchequer,BH2 6DY,"802,423.00",Yes
"Housing, Communities & Local Government",MHCLG,15/09/2020,Current (non AEF) Grants to Local Authorities,Emergency Response,"Bournemouth, Christchurch and Poole",,,,,3700070029,,Grant payable by the Exchequer,BH2 6DY,"1,086,926.00",Yes
"Housing, Communities & Local Government",MHCLG,15/09/2020,Current (non AEF) Grants to Local Authorities,Emergency Response,BRACKNELL FOREST DC,,,,236184867,3700069775,,Grant payable by the Exchequer,RG12 1AQ,"123,333.00",Yes
"Housing, Communities & Local Government",MHCLG,15/09/2020,Current (non AEF) Grants to Local Authorities,Emergency Response,BRACKNELL FOREST DC,,,,236184867,3700070065,,Grant payable by the Exchequer,RG12 1AQ,"158,297.00",Yes
"Housing, Communities & Local Government",MHCLG,15/09/2020,Current (non AEF) Grants to Local Authorities,Emergency Response,BRACKNELL FOREST DC,,,,236184867,3700069724,,Grant payable by the Exchequer,RG12 1JD,"9,952.00",Yes
"Housing, Communities & Local Government",MHCLG,15/09/2020,Current (non AEF) Grants to Local Authorities,Emergency Response,BRACKNELL FOREST DC,,,,236184867,3700070235,,Grant payable by the Exchequer,RG12 1JD,"1,076,597.00",Yes
"Housing, Communities & Local Government",MHCLG,15/09/2020,Current (non AEF) Grants to Local Authorities,Emergency Response,BRACKNELL FOREST DC,,,,236184867,3700070509,,Grant payable by the Exchequer,RG12 1JD,"1,076,597.00",Yes
"Housing, Communities & Local Government",MHCLG,15/09/2020,Current (non AEF) Grants to Local Authorities,Emergency Response,BRACKNELL FOREST DC,,,,236184867,3700070737,,Grant payable by the Exchequer,RG12 1JD,"9,952.00",Yes
"Housing, Communities & Local Government",MHCLG,15/09/2020,Current (non AEF) Grants to Local Authorities,Emergency Response,BRADFORD MBC,,,,,3700069759,,Grant payable by the Exchequer,BD1 1HX,"1,173,703.00",Yes
"Housing, Communities & Local Government",MHCLG,15/09/2020,Current (non AEF) Grants to Local Authorities,Emergency Response,BRADFORD MBC,,,,,3700070041,,Grant payable by the Exchequer,BD1 1HX,"1,891,642.00",Yes
"Housing, Communities & Local Government",MHCLG,15/09/2020,Current (non AEF) Grants to Local Authorities,Emergency Response,BRADFORD MBC,,,,,3700069829,,Grant payable by the Exchequer,BD1 1HX,"40,831.00",Yes
"Housing, Communities & Local Government",MHCLG,15/09/2020,Current (non AEF) Grants to Local Authorities,Emergency Response,BRADFORD MBC,,,,,3700070200,,Grant payable by the Exchequer,BD1 1HX,"40,832.00",Yes
"Housing, Communities & Local Government",MHCLG,15/09/2020,Current (non AEF) Grants to Local Authorities,Emergency Response,BRADFORD MBC,,,,,3700070266,,Grant payable by the Exchequer,BD1 1HX,"1,848,645.00",Yes
"Housing, Communities & Local Government",MHCLG,15/09/2020,Current (non AEF) Grants to Local Authorities,Emergency Response,BRADFORD MBC,,,,,3700070936,,Grant payable by the Exchequer,BD1 1HX,"1,848,645.00",Yes
"Housing, Communities & Local Government",MHCLG,15/09/2020,Current (non AEF) Grants to Local Authorities,Emergency Response,BRAINTREE DC,,,,226941730,3700069708,,Grant payable by the Exchequer,CM7 9HB,"8,145.00",Yes
"Housing, Communities & Local Government",MHCLG,15/09/2020,Current (non AEF) Grants to Local Authorities,Emergency Response,BRAINTREE DC,,,,226941730,3700070020,,Grant payable by the Exchequer,CM7 9HB,"8,145.00",Yes
"Housing, Communities & Local Government",MHCLG,15/09/2020,Current (non AEF) Grants to Local Authorities,Emergency Response,BRAINTREE DC,,,,226941730,3700070940,,Grant payable by the Exchequer,CM7 9HB,"645,869.00",Yes
"Housing, Communities & Local Government",MHCLG,15/09/2020,Current (non AEF) Grants to Local Authorities,Emergency Response,BRAINTREE DC,,,,226941730,3700071237,,Grant payable by the Exchequer,CM7 9HB,"645,869.00",Yes
"Housing, Communities & Local Government",MHCLG,15/09/2020,Current (non AEF) Grants to Local Authorities,Emergency Response,BRECKLAND DC,,,,232611384,3700070052,,Grant payable by the Exchequer,NR19 1EE,"506,235.00",Yes
"Housing, Communities & Local Government",MHCLG,15/09/2020,Current (non AEF) Grants to Local Authorities,Emergency Response,BRECKLAND DC,,,,232611384,3700070388,,Grant payable by the Exchequer,NR19 1EE,"6,275.00",Yes
"Housing, Communities & Local Government",MHCLG,15/09/2020,Current (non AEF) Grants to Local Authorities,Emergency Response,BRECKLAND DC,,,,232611384,3700070721,,Grant payable by the Exchequer,NR19 1EE,"6,275.00",Yes
"Housing, Communities & Local Government",MHCLG,15/09/2020,Current (non AEF) Grants to Local Authorities,Emergency Response,BRECKLAND DC,,,,232611384,3700070729,,Grant payable by the Exchequer,NR19 1EE,"506,234.00",Yes
"Housing, Communities & Local Government",MHCLG,15/09/2020,Current (non AEF) Grants to Local Authorities,Emergency Response,BRENT LB,,,,,3700070108,,Grant payable by the Exchequer,HA9 9EZ,"1,288,976.00",Yes
"Housing, Communities & Local Government",MHCLG,15/09/2020,Current (non AEF) Grants to Local Authorities,Emergency Response,BRENT LB,,,,,3700070319,,Grant payable by the Exchequer,HA9 9EZ,"2,617,012.00",Yes
"Housing, Communities & Local Government",MHCLG,15/09/2020,Current (non AEF) Grants to Local Authorities,Emergency Response,BRENT LB,,,,,3700070962,,Grant payable by the Exchequer,HA9 9EZ,"9,462.00",Yes
"Housing, Communities & Local Government",MHCLG,15/09/2020,Current (non AEF) Grants to Local Authorities,Emergency Response,BRENT LB,,,,,3700071258,,Grant payable by the Exchequer,HA9 9EZ,"19,211.00",Yes
"Housing, Communities & Local Government",MHCLG,15/09/2020,Current (non AEF) Grants to Local Authorities,Emergency Response,BRENT LB (HSG),,,,,3700069651,,Grant payable by the Exchequer,HA9 0FJ,"1,079,317.00",Yes
"Housing, Communities & Local Government",MHCLG,15/09/2020,Current (non AEF) Grants to Local Authorities,Emergency Response,BRENT LB (HSG),,,,,3700069685,,Grant payable by the Exchequer,HA9 0FJ,"670,896.00",Yes
"Housing, Communities & Local Government",MHCLG,15/09/2020,Current (non AEF) Grants to Local Authorities,Emergency Response,BRENTWOOD BC,,,,227473188,3700070040,,Grant payable by the Exchequer,CM15 8AY,"436,784.00",Yes
"Housing, Communities & Local Government",MHCLG,15/09/2020,Current (non AEF) Grants to Local Authorities,Emergency Response,BRENTWOOD BC,,,,227473188,3700070271,,Grant payable by the Exchequer,CM15 8AY,"436,784.00",Yes
"Housing, Communities & Local Government",MHCLG,15/09/2020,Current (non AEF) Grants to Local Authorities,Emergency Response,BRENTWOOD BC,,,,227473188,3700070601,,Grant payable by the Exchequer,CM15 8AY,"5,660.00",Yes
"Housing, Communities & Local Government",MHCLG,15/09/2020,Current (non AEF) Grants to Local Authorities,Emergency Response,BRENTWOOD BC,,,,227473188,3700071187,,Grant payable by the Exchequer,CM15 8AY,"5,660.00",Yes
"Housing, Communities & Local Government",MHCLG,15/09/2020,Current (non AEF) Grants to Local Authorities,Emergency Response,BRIGHTON & HOVE CITY COUNCIL,,Large,,228455218,3700069707,,Grant payable by the Exchequer,BN1 3JE,"765,053.00",Yes
"Housing, Communities & Local Government",MHCLG,15/09/2020,Current (non AEF) Grants to Local Authorities,Emergency Response,BRIGHTON & HOVE CITY COUNCIL,,Large,,228455218,3700069850,,Grant payable by the Exchequer,BN1 3JE,"567,882.00",Yes
"Housing, Communities & Local Government",MHCLG,15/09/2020,Current (non AEF) Grants to Local Authorities,Emergency Response,BRIGHTON & HOVE CITY COUNCIL,,Large,,228455218,3700070356,,Grant payable by the Exchequer,BN1 3JE,"2,659,960.00",Yes
"Housing, Communities & Local Government",MHCLG,15/09/2020,Current (non AEF) Grants to Local Authorities,Emergency Response,BRIGHTON & HOVE CITY COUNCIL,,Large,,228455218,3700070902,,Grant payable by the Exchequer,BN1 3JE,"33,531.00",Yes
"Housing, Communities & Local Government",MHCLG,15/09/2020,Current (non AEF) Grants to Local Authorities,Emergency Response,BRIGHTON & HOVE CITY COUNCIL,,Large,,228455218,3700071218,,Grant payable by the Exchequer,BN1 3JE,"2,659,960.00",Yes
"Housing, Communities & Local Government",MHCLG,15/09/2020,Current (non AEF) Grants to Local Authorities,Emergency Response,BRIGHTON & HOVE CITY COUNCIL,,Large,,228455218,3700071248,,Grant payable by the Exchequer,BN1 3JE,"33,531.00",Yes
"Housing, Communities & Local Government",MHCLG,15/09/2020,Current (non AEF) Grants to Local Authorities,Emergency Response,BRISTOL CITY CNCL,,,,211103882,3700070379,,Grant payable by the Exchequer,BS99 7BL,"5,889,373.00",Yes
"Housing, Communities & Local Government",MHCLG,15/09/2020,Current (non AEF) Grants to Local Authorities,Emergency Response,BRISTOL CITY CNCL,,,,211103882,3700070987,,Grant payable by the Exchequer,BS99 7BL,"72,838.00",Yes
"Housing, Communities & Local Government",MHCLG,15/09/2020,Current (non AEF) Grants to Local Authorities,Emergency Response,BRISTOL CITY COUNCIL (HSG),,,,211103882,3700069611,,Grant payable by the Exchequer,BS3 9FS,"972,888.00",Yes
"Housing, Communities & Local Government",MHCLG,15/09/2020,Current (non AEF) Grants to Local Authorities,Emergency Response,BRISTOL CITY COUNCIL (HSG),,,,211103882,3700069830,,Grant payable by the Exchequer,BS3 9FS,"1,376,231.00",Yes
"Housing, Communities & Local Government",MHCLG,15/09/2020,Current (non AEF) Grants to Local Authorities,Emergency Response,BROADLAND DC,,,,219737785,3700069740,,Grant payable by the Exchequer,NR7 0DU,"529,994.00",Yes
"Housing, Communities & Local Government",MHCLG,15/09/2020,Current (non AEF) Grants to Local Authorities,Emergency Response,BROADLAND DC,,,,219737785,3700070475,,Grant payable by the Exchequer,NR7 0DU,"5,456.00",Yes
"Housing, Communities & Local Government",MHCLG,15/09/2020,Current (non AEF) Grants to Local Authorities,Emergency Response,BROADLAND DC,,,,219737785,3700070928,,Grant payable by the Exchequer,NR7 0DU,"529,994.00",Yes
"Housing, Communities & Local Government",MHCLG,15/09/2020,Current (non AEF) Grants to Local Authorities,Emergency Response,BROADLAND DC,,,,219737785,3700071211,,Grant payable by the Exchequer,NR7 0DU,"5,456.00",Yes
"Housing, Communities & Local Government",MHCLG,15/09/2020,Current (non AEF) Grants to Local Authorities,Emergency Response,BROMLEY LB,,,,211331954,3700069876,,Grant payable by the Exchequer,BR1 3UH,"520,804.00",Yes
"Housing, Communities & Local Government",MHCLG,15/09/2020,Current (non AEF) Grants to Local Authorities,Emergency Response,BROMLEY LB,,,,211331954,3700069989,,Grant payable by the Exchequer,BR1 3UH,"625,244.00",Yes
"Housing, Communities & Local Government",MHCLG,15/09/2020,Current (non AEF) Grants to Local Authorities,Emergency Response,BROMLEY LB,,,,211331954,3700070261,,Grant payable by the Exchequer,BR1 3UH,"22,642.00",Yes
"Housing, Communities & Local Government",MHCLG,15/09/2020,Current (non AEF) Grants to Local Authorities,Emergency Response,BROMLEY LB,,,,211331954,3700070335,,Grant payable by the Exchequer,BR1 3UH,"45,970.00",Yes
"Housing, Communities & Local Government",MHCLG,15/09/2020,Current (non AEF) Grants to Local Authorities,Emergency Response,BROMLEY LB,,,,211331954,3700070546,,Grant payable by the Exchequer,BR1 3UH,"2,809,105.00",Yes
"Housing, Communities & Local Government",MHCLG,15/09/2020,Current (non AEF) Grants to Local Authorities,Emergency Response,BROMLEY LB,,,,211331954,3700070656,,Grant payable by the Exchequer,BR1 3UH,"1,383,589.00",Yes
"Housing, Communities & Local Government",MHCLG,15/09/2020,Current (non AEF) Grants to Local Authorities,Emergency Response,BROMSGROVE DC,,,,236654745,3700069784,,Grant payable by the Exchequer,B60 1AA,"390,518.00",Yes
"Housing, Communities & Local Government",MHCLG,15/09/2020,Current (non AEF) Grants to Local Authorities,Emergency Response,BROMSGROVE DC,,,,236654745,3700070196,,Grant payable by the Exchequer,B60 1AA,"9,256.00",Yes
"Housing, Communities & Local Government",MHCLG,15/09/2020,Current (non AEF) Grants to Local Authorities,Emergency Response,BROMSGROVE DC,,,,236654745,3700070881,,Grant payable by the Exchequer,B60 1AA,"9,255.00",Yes
"Housing, Communities & Local Government",MHCLG,15/09/2020,Current (non AEF) Grants to Local Authorities,Emergency Response,BROMSGROVE DC,,,,236654745,3700071054,,Grant payable by the Exchequer,B60 1AA,"390,517.00",Yes
"Housing, Communities & Local Government",MHCLG,15/09/2020,Current (non AEF) Grants to Local Authorities,Emergency Response,BROXBOURNE BOROUGH COUNCIL,,,,239931918,3700070760,,Grant payable by the Exchequer,EN8 9XQ,"511,896.00",Yes
"Housing, Communities & Local Government",MHCLG,15/09/2020,Current (non AEF) Grants to Local Authorities,Emergency Response,BROXBOURNE BOROUGH COUNCIL,,,,239931918,3700071051,,Grant payable by the Exchequer,EN8 9XQ,"6,439.00",Yes
"Housing, Communities & Local Government",MHCLG,15/09/2020,Current (non AEF) Grants to Local Authorities,Emergency Response,BROXBOURNE BOROUGH COUNCIL,,,,239931918,3700071103,,Grant payable by the Exchequer,EN8 9XQ,"6,439.00",Yes
"Housing, Communities & Local Government",MHCLG,15/09/2020,Current (non AEF) Grants to Local Authorities,Emergency Response,BROXBOURNE BOROUGH COUNCIL,,,,239931918,3700071229,,Grant payable by the Exchequer,EN8 9XQ,"511,896.00",Yes
"Housing, Communities & Local Government",MHCLG,15/09/2020,Current (non AEF) Grants to Local Authorities,Emergency Response,BROXTOWE BC,,,,239877640,3700070461,,Grant payable by the Exchequer,NG9 1AB,"8,499.00",Yes
"Housing, Communities & Local Government",MHCLG,15/09/2020,Current (non AEF) Grants to Local Authorities,Emergency Response,BROXTOWE BC,,,,239877640,3700070720,,Grant payable by the Exchequer,NG9 1AB,"662,272.00",Yes
"Housing, Communities & Local Government",MHCLG,15/09/2020,Current (non AEF) Grants to Local Authorities,Emergency Response,BROXTOWE BC,,,,239877640,3700070794,,Grant payable by the Exchequer,NG9 1AB,"8,499.00",Yes
"Housing, Communities & Local Government",MHCLG,15/09/2020,Current (non AEF) Grants to Local Authorities,Emergency Response,BROXTOWE BC,,,,239877640,3700071240,,Grant payable by the Exchequer,NG9 1AB,"662,272.00",Yes
"Housing, Communities & Local Government",MHCLG,15/09/2020,Current (non AEF) Grants to Local Authorities,Emergency Response,Buckinghamshire Council,,,,,3700070245,,Grant payable by the Exchequer,HP19 8FF,"3,037,978.00",Yes
"Housing, Communities & Local Government",MHCLG,15/09/2020,Current (non AEF) Grants to Local Authorities,Emergency Response,Buckinghamshire Council,,,,,3700070382,,Grant payable by the Exchequer,HP19 8FF,"3,037,979.00",Yes
"Housing, Communities & Local Government",MHCLG,15/09/2020,Current (non AEF) Grants to Local Authorities,Emergency Response,Buckinghamshire Council,,,,,3700071024,,Grant payable by the Exchequer,HP19 8FF,"61,150.00",Yes
"Housing, Communities & Local Government",MHCLG,15/09/2020,Current (non AEF) Grants to Local Authorities,Emergency Response,Buckinghamshire Council,,,,,3700071251,,Grant payable by the Exchequer,HP19 8FF,"61,151.00",Yes
"Housing, Communities & Local Government",MHCLG,15/09/2020,Current (non AEF) Grants to Local Authorities,Emergency Response,BUCKINGHAMSHIRE UA,,,,,3700069692,,Grant payable by the Exchequer,HP19 8FF,"731,172.00",Yes
"Housing, Communities & Local Government",MHCLG,15/09/2020,Current (non AEF) Grants to Local Authorities,Emergency Response,BUCKINGHAMSHIRE UA,,,,,3700069755,,Grant payable by the Exchequer,HP19 8FF,"407,707.00",Yes
"Housing, Communities & Local Government",MHCLG,15/09/2020,Current (non AEF) Grants to Local Authorities,Emergency Response,BURNLEY BC,,,,229413281,3700069918,,Grant payable by the Exchequer,BB11 1JA,"4,125.00",Yes
"Housing, Communities & Local Government",MHCLG,15/09/2020,Current (non AEF) Grants to Local Authorities,Emergency Response,BURNLEY BC,,,,229413281,3700070160,,Grant payable by the Exchequer,BB11 1JA,"458,288.00",Yes
"Housing, Communities & Local Government",MHCLG,15/09/2020,Current (non AEF) Grants to Local Authorities,Emergency Response,BURNLEY BC,,,,229413281,3700070307,,Grant payable by the Exchequer,BB11 1JA,"4,125.00",Yes
"Housing, Communities & Local Government",MHCLG,15/09/2020,Current (non AEF) Grants to Local Authorities,Emergency Response,BURNLEY BC,,,,229413281,3700070479,,Grant payable by the Exchequer,BB11 1JA,"458,289.00",Yes
"Housing, Communities & Local Government",MHCLG,15/09/2020,Current (non AEF) Grants to Local Authorities,Emergency Response,BURY MBC,,,,,3700069630,,Grant payable by the Exchequer,BL9 0SW,"616,988.00",Yes
"Housing, Communities & Local Government",MHCLG,15/09/2020,Current (non AEF) Grants to Local Authorities,Emergency Response,BURY MBC,,,,,3700070039,,Grant payable by the Exchequer,BL9 0SW,"397,442.00",Yes
"Housing, Communities & Local Government",MHCLG,15/09/2020,Current (non AEF) Grants to Local Authorities,Emergency Response,BURY MBC,,,,236491114,3700069768,,Grant payable by the Exchequer,BL9 0SP,"28,868.00",Yes
"Housing, Communities & Local Government",MHCLG,15/09/2020,Current (non AEF) Grants to Local Authorities,Emergency Response,BURY MBC,,,,236491114,3700070096,,Grant payable by the Exchequer,BL9 0SP,"1,856,061.00",Yes
"Housing, Communities & Local Government",MHCLG,15/09/2020,Current (non AEF) Grants to Local Authorities,Emergency Response,CALDERDALE MBC,,,,,3700069632,,Grant payable by the Exchequer,HX1 1YP,"682,336.00",Yes
"Housing, Communities & Local Government",MHCLG,15/09/2020,Current (non AEF) Grants to Local Authorities,Emergency Response,CALDERDALE MBC,,,,,3700069961,,Grant payable by the Exchequer,HX1 1YP,"449,591.00",Yes
"Housing, Communities & Local Government",MHCLG,15/09/2020,Current (non AEF) Grants to Local Authorities,Emergency Response,CALDERDALE MBC,,Public Bodies,,,3700069944,,Grant payable by the Exchequer,HX1 1YP,"8,485.00",Yes
"Housing, Communities & Local Government",MHCLG,15/09/2020,Current (non AEF) Grants to Local Authorities,Emergency Response,CALDERDALE MBC,,Public Bodies,,,3700069976,,Grant payable by the Exchequer,HX1 1YP,"222,511.00",Yes
"Housing, Communities & Local Government",MHCLG,15/09/2020,Current (non AEF) Grants to Local Authorities,Emergency Response,CALDERDALE MBC,,Public Bodies,,,3700070107,,Grant payable by the Exchequer,HX1 1YP,"8,486.00",Yes
"Housing, Communities & Local Government",MHCLG,15/09/2020,Current (non AEF) Grants to Local Authorities,Emergency Response,CALDERDALE MBC,,Public Bodies,,,3700071118,,Grant payable by the Exchequer,HX1 1YP,"222,512.00",Yes
"Housing, Communities & Local Government",MHCLG,15/09/2020,Current (non AEF) Grants to Local Authorities,Emergency Response,CAMBRIDGE CITY COUNCIL,,,,210357534,3700069861,,Grant payable by the Exchequer,CB1 0JH,"23,999.00",Yes
"Housing, Communities & Local Government",MHCLG,15/09/2020,Current (non AEF) Grants to Local Authorities,Emergency Response,CAMBRIDGE CITY COUNCIL,,,,210357534,3700070283,,Grant payable by the Exchequer,CB1 0JH,"2,066,703.00",Yes
"Housing, Communities & Local Government",MHCLG,15/09/2020,Current (non AEF) Grants to Local Authorities,Emergency Response,CAMBRIDGE CITY COUNCIL,,,,210357534,3700070606,,Grant payable by the Exchequer,CB1 0JH,"23,999.00",Yes
"Housing, Communities & Local Government",MHCLG,15/09/2020,Current (non AEF) Grants to Local Authorities,Emergency Response,CAMBRIDGE CITY COUNCIL,,,,210357534,3700070828,,Grant payable by the Exchequer,CB1 0JH,"2,066,704.00",Yes
"Housing, Communities & Local Government",MHCLG,15/09/2020,Current (non AEF) Grants to Local Authorities,Emergency Response,CAMBRIDGESHIRE COUNTY CNCL,,,,219047347,3700069917,,Grant payable by the Exchequer,CB3 0AP,"1,035,209.00",Yes
"Housing, Communities & Local Government",MHCLG,15/09/2020,Current (non AEF) Grants to Local Authorities,Emergency Response,CAMBRIDGESHIRE COUNTY CNCL,,,,219047347,3700070005,,Grant payable by the Exchequer,CB3 0AP,"1,227,057.00",Yes
"Housing, Communities & Local Government",MHCLG,15/09/2020,Current (non AEF) Grants to Local Authorities,Emergency Response,CAMDEN LB,,,,211651836,3700069637,,Grant payable by the Exchequer,N1C 4AG,"653,257.00",Yes
"Housing, Communities & Local Government",MHCLG,15/09/2020,Current (non AEF) Grants to Local Authorities,Emergency Response,CAMDEN LB,,,,211651836,3700070043,,Grant payable by the Exchequer,N1C 4AG,"1,041,252.00",Yes
"Housing, Communities & Local Government",MHCLG,15/09/2020,Current (non AEF) Grants to Local Authorities,Emergency Response,CAMDEN LONDON BOROUGH,,,,,3700070305,,Grant payable by the Exchequer,N1C 4AG,"26,243.00",Yes
"Housing, Communities & Local Government",MHCLG,15/09/2020,Current (non AEF) Grants to Local Authorities,Emergency Response,CAMDEN LONDON BOROUGH,,,,,3700070517,,Grant payable by the Exchequer,N1C 4AG,"5,115,623.00",Yes
"Housing, Communities & Local Government",MHCLG,15/09/2020,Current (non AEF) Grants to Local Authorities,Emergency Response,CAMDEN LONDON BOROUGH,,,,,3700071078,,Grant payable by the Exchequer,N1C 4AG,"12,926.00",Yes
"Housing, Communities & Local Government",MHCLG,15/09/2020,Current (non AEF) Grants to Local Authorities,Emergency Response,CAMDEN LONDON BOROUGH,,,,,3700071247,,Grant payable by the Exchequer,N1C 4AG,"10,386,265.00",Yes
"Housing, Communities & Local Government",MHCLG,15/09/2020,Current (non AEF) Grants to Local Authorities,Emergency Response,CANNOCK CHASE DC,,,,215064770,3700069780,,Grant payable by the Exchequer,WS11 1BG,"569,212.00",Yes
"Housing, Communities & Local Government",MHCLG,15/09/2020,Current (non AEF) Grants to Local Authorities,Emergency Response,CANNOCK CHASE DC,,,,215064770,3700070702,,Grant payable by the Exchequer,WS11 1BG,"1,654.00",Yes
"Housing, Communities & Local Government",MHCLG,15/09/2020,Current (non AEF) Grants to Local Authorities,Emergency Response,CANNOCK CHASE DC,,,,215064770,3700071100,,Grant payable by the Exchequer,WS11 1BG,"569,213.00",Yes
"Housing, Communities & Local Government",MHCLG,15/09/2020,Current (non AEF) Grants to Local Authorities,Emergency Response,CANNOCK CHASE DC,,,,215064770,3700071191,,Grant payable by the Exchequer,WS11 1BG,"1,653.00",Yes
"Housing, Communities & Local Government",MHCLG,15/09/2020,Current (non AEF) Grants to Local Authorities,Emergency Response,CANTERBURY CITY CNCL,,,,,3700070347,,Grant payable by the Exchequer,CT1 1YW,"4,421.00",Yes
"Housing, Communities & Local Government",MHCLG,15/09/2020,Current (non AEF) Grants to Local Authorities,Emergency Response,CANTERBURY CITY CNCL,,,,,3700070434,,Grant payable by the Exchequer,CT1 1YW,"4,422.00",Yes
"Housing, Communities & Local Government",MHCLG,15/09/2020,Current (non AEF) Grants to Local Authorities,Emergency Response,CANTERBURY CITY CNCL,,,,,3700070591,,Grant payable by the Exchequer,CT1 1YW,"1,338,925.00",Yes
"Housing, Communities & Local Government",MHCLG,15/09/2020,Current (non AEF) Grants to Local Authorities,Emergency Response,CANTERBURY CITY CNCL,,,,,3700071162,,Grant payable by the Exchequer,CT1 1YW,"1,338,924.00",Yes
"Housing, Communities & Local Government",MHCLG,15/09/2020,Current (non AEF) Grants to Local Authorities,Emergency Response,CARLISLE CITY CNCL,,,,227471059,3700070216,,Grant payable by the Exchequer,CA3 8QG,"898,863.00",Yes
"Housing, Communities & Local Government",MHCLG,15/09/2020,Current (non AEF) Grants to Local Authorities,Emergency Response,CARLISLE CITY CNCL,,,,227471059,3700070520,,Grant payable by the Exchequer,CA3 8QG,"880,517.00",Yes
"Housing, Communities & Local Government",MHCLG,15/09/2020,Current (non AEF) Grants to Local Authorities,Emergency Response,CARLISLE CITY CNCL,,,,227471059,3700070671,,Grant payable by the Exchequer,CA3 8QG,"4,032.00",Yes
"Housing, Communities & Local Government",MHCLG,15/09/2020,Current (non AEF) Grants to Local Authorities,Emergency Response,CARLISLE CITY CNCL,,,,227471059,3700070910,,Grant payable by the Exchequer,CA3 8QG,"4,031.00",Yes
"Housing, Communities & Local Government",MHCLG,15/09/2020,Current (non AEF) Grants to Local Authorities,Emergency Response,CASTLE POINT BC,,Public Bodies,,228217931,3700070267,,Grant payable by the Exchequer,SS7 1TF,"324,053.00",Yes
"Housing, Communities & Local Government",MHCLG,15/09/2020,Current (non AEF) Grants to Local Authorities,Emergency Response,CASTLE POINT BC,,Public Bodies,,228217931,3700070814,,Grant payable by the Exchequer,SS7 1TF,"324,054.00",Yes
"Housing, Communities & Local Government",MHCLG,15/09/2020,Current (non AEF) Grants to Local Authorities,Emergency Response,CASTLE POINT BC,,Public Bodies,,228217931,3700070890,,Grant payable by the Exchequer,SS7 1TF,"3,198.00",Yes
"Housing, Communities & Local Government",MHCLG,15/09/2020,Current (non AEF) Grants to Local Authorities,Emergency Response,CASTLE POINT BC,,Public Bodies,,228217931,3700070925,,Grant payable by the Exchequer,SS7 1TF,"3,199.00",Yes
"Housing, Communities & Local Government",MHCLG,15/09/2020,Current (non AEF) Grants to Local Authorities,Emergency Response,CENTRAL BEDFORDSHIRE COUNCIL,,,,232624882,3700070397,,Grant payable by the Exchequer,SG17 5TQ,"1,003,424.00",Yes
"Housing, Communities & Local Government",MHCLG,15/09/2020,Current (non AEF) Grants to Local Authorities,Emergency Response,CENTRAL BEDFORDSHIRE COUNCIL,,,,232624882,3700070526,,Grant payable by the Exchequer,SG17 5TQ,"16,101.00",Yes
"Housing, Communities & Local Government",MHCLG,15/09/2020,Current (non AEF) Grants to Local Authorities,Emergency Response,CENTRAL BEDFORDSHIRE COUNCIL,,,,232624882,3700071142,,Grant payable by the Exchequer,SG17 5TQ,"1,003,424.00",Yes
"Housing, Communities & Local Government",MHCLG,15/09/2020,Current (non AEF) Grants to Local Authorities,Emergency Response,CENTRAL BEDFORDSHIRE COUNCIL,,,,232624882,3700071271,,Grant payable by the Exchequer,SG17 5TQ,"16,100.00",Yes
"Housing, Communities & Local Government",MHCLG,15/09/2020,Current (non AEF) Grants to Local Authorities,Emergency Response,CENTRAL BEDFORDSHIRE COUNCIL,,,,232624882,3700069900,,Grant payable by the Exchequer,SG17 5TQ,"225,034.00",Yes
"Housing, Communities & Local Government",MHCLG,15/09/2020,Current (non AEF) Grants to Local Authorities,Emergency Response,CENTRAL BEDFORDSHIRE COUNCIL,,,,232624882,3700069921,,Grant payable by the Exchequer,SG17 5TQ,"378,848.00",Yes
"Housing, Communities & Local Government",MHCLG,15/09/2020,Current (non AEF) Grants to Local Authorities,Emergency Response,CHARNWOOD BC,,,,,3700070308,,Grant payable by the Exchequer,LE11 2TU,"8,106.00",Yes
"Housing, Communities & Local Government",MHCLG,15/09/2020,Current (non AEF) Grants to Local Authorities,Emergency Response,CHARNWOOD BC,,,,,3700070917,,Grant payable by the Exchequer,LE11 2TU,"720,535.00",Yes
"Housing, Communities & Local Government",MHCLG,15/09/2020,Current (non AEF) Grants to Local Authorities,Emergency Response,CHARNWOOD BC,,,,,3700071083,,Grant payable by the Exchequer,LE11 2TU,"8,106.00",Yes
"Housing, Communities & Local Government",MHCLG,15/09/2020,Current (non AEF) Grants to Local Authorities,Emergency Response,CHARNWOOD BC,,,,,3700071148,,Grant payable by the Exchequer,LE11 2TU,"720,536.00",Yes
"Housing, Communities & Local Government",MHCLG,15/09/2020,Current (non AEF) Grants to Local Authorities,Emergency Response,CHELMSFORD BC,,,,,3700070618,,Grant payable by the Exchequer,CM1 1JE,"2,793.00",Yes
"Housing, Communities & Local Government",MHCLG,15/09/2020,Current (non AEF) Grants to Local Authorities,Emergency Response,CHELMSFORD BC,,,,,3700070640,,Grant payable by the Exchequer,CM1 1JE,"1,296,429.00",Yes
"Housing, Communities & Local Government",MHCLG,15/09/2020,Current (non AEF) Grants to Local Authorities,Emergency Response,CHELMSFORD BC,,,,,3700070787,,Grant payable by the Exchequer,CM1 1JE,"1,296,428.00",Yes
"Housing, Communities & Local Government",MHCLG,15/09/2020,Current (non AEF) Grants to Local Authorities,Emergency Response,CHELMSFORD BC,,,,,3700071219,,Grant payable by the Exchequer,CM1 1JE,"2,793.00",Yes
"Housing, Communities & Local Government",MHCLG,15/09/2020,Current (non AEF) Grants to Local Authorities,Emergency Response,CHELTENHAM BC,,,,,3700070318,,Grant payable by the Exchequer,GL50 1PW,"4,316.00",Yes
"Housing, Communities & Local Government",MHCLG,15/09/2020,Current (non AEF) Grants to Local Authorities,Emergency Response,CHELTENHAM BC,,,,,3700070442,,Grant payable by the Exchequer,GL50 1PW,"1,266,558.00",Yes
"Housing, Communities & Local Government",MHCLG,15/09/2020,Current (non AEF) Grants to Local Authorities,Emergency Response,CHELTENHAM BC,,,,,3700070449,,Grant payable by the Exchequer,GL50 1PW,"1,266,558.00",Yes
"Housing, Communities & Local Government",MHCLG,15/09/2020,Current (non AEF) Grants to Local Authorities,Emergency Response,CHELTENHAM BC,,,,,3700070487,,Grant payable by the Exchequer,GL50 1PW,"4,315.00",Yes
"Housing, Communities & Local Government",MHCLG,15/09/2020,Current (non AEF) Grants to Local Authorities,Emergency Response,CHERWELL DC,,,,,3700070258,,Grant payable by the Exchequer,OX15 4AA,"9,559.00",Yes
"Housing, Communities & Local Government",MHCLG,15/09/2020,Current (non AEF) Grants to Local Authorities,Emergency Response,CHERWELL DC,,,,,3700070344,,Grant payable by the Exchequer,OX15 4AA,"2,148,727.00",Yes
"Housing, Communities & Local Government",MHCLG,15/09/2020,Current (non AEF) Grants to Local Authorities,Emergency Response,CHERWELL DC,,,,,3700070929,,Grant payable by the Exchequer,OX15 4AA,"9,558.00",Yes
"Housing, Communities & Local Government",MHCLG,15/09/2020,Current (non AEF) Grants to Local Authorities,Emergency Response,CHERWELL DC,,,,,3700070969,,Grant payable by the Exchequer,OX15 4AA,"2,148,727.00",Yes
"Housing, Communities & Local Government",MHCLG,15/09/2020,Current (non AEF) Grants to Local Authorities,Emergency Response,CHESHIRE EAST BOROUGH COUNCIL,,,,293699450,3700070192,,Grant payable by the Exchequer,CW11 1HZ,"2,408,831.00",Yes
"Housing, Communities & Local Government",MHCLG,15/09/2020,Current (non AEF) Grants to Local Authorities,Emergency Response,CHESHIRE EAST BOROUGH COUNCIL,,,,293699450,3700070374,,Grant payable by the Exchequer,CW11 1HZ,"2,408,831.00",Yes
"Housing, Communities & Local Government",MHCLG,15/09/2020,Current (non AEF) Grants to Local Authorities,Emergency Response,CHESHIRE EAST BOROUGH COUNCIL,,,,293699450,3700070903,,Grant payable by the Exchequer,CW11 1HZ,"40,410.00",Yes
"Housing, Communities & Local Government",MHCLG,15/09/2020,Current (non AEF) Grants to Local Authorities,Emergency Response,CHESHIRE EAST BOROUGH COUNCIL,,,,293699450,3700071107,,Grant payable by the Exchequer,CW11 1HZ,"40,411.00",Yes
"Housing, Communities & Local Government",MHCLG,15/09/2020,Current (non AEF) Grants to Local Authorities,Emergency Response,CHESHIRE EAST COUNCIL,,Large,,,3700069631,,Grant payable by the Exchequer,CW11 1HZ,"634,629.00",Yes
"Housing, Communities & Local Government",MHCLG,15/09/2020,Current (non AEF) Grants to Local Authorities,Emergency Response,CHESHIRE EAST COUNCIL,,Large,,,3700070057,,Grant payable by the Exchequer,CW11 1HZ,"704,133.00",Yes
"Housing, Communities & Local Government",MHCLG,15/09/2020,Current (non AEF) Grants to Local Authorities,Emergency Response,CHESHIRE WEST & CHESTER UA,,Large,,215584383,3700069803,,Grant payable by the Exchequer,CH1 2NP,"875,526.00",Yes
"Housing, Communities & Local Government",MHCLG,15/09/2020,Current (non AEF) Grants to Local Authorities,Emergency Response,CHESHIRE WEST & CHESTER UA,,Large,,215584383,3700070031,,Grant payable by the Exchequer,CH1 2NP,"657,209.00",Yes
"Housing, Communities & Local Government",MHCLG,15/09/2020,Current (non AEF) Grants to Local Authorities,Emergency Response,CHESHIRE WEST AND CHESTER,,Large,,215584383,3700070584,,Grant payable by the Exchequer,CH1 2NP,"25,033.00",Yes
"Housing, Communities & Local Government",MHCLG,15/09/2020,Current (non AEF) Grants to Local Authorities,Emergency Response,CHESHIRE WEST AND CHESTER,,Large,,215584383,3700070824,,Grant payable by the Exchequer,CH1 2NP,"25,032.00",Yes
"Housing, Communities & Local Government",MHCLG,15/09/2020,Current (non AEF) Grants to Local Authorities,Emergency Response,CHESHIRE WEST AND CHESTER,,Large,,215584383,3700071151,,Grant payable by the Exchequer,CH1 2NP,"2,970,666.00",Yes
"Housing, Communities & Local Government",MHCLG,15/09/2020,Current (non AEF) Grants to Local Authorities,Emergency Response,CHESHIRE WEST AND CHESTER,,Large,,215584383,3700071262,,Grant payable by the Exchequer,CH1 2NP,"2,970,667.00",Yes
"Housing, Communities & Local Government",MHCLG,15/09/2020,Current (non AEF) Grants to Local Authorities,Emergency Response,CHESTERFIELD BC,,,,232102301,3700069835,,Grant payable by the Exchequer,S40 1LP,"675,154.00",Yes
"Housing, Communities & Local Government",MHCLG,15/09/2020,Current (non AEF) Grants to Local Authorities,Emergency Response,CHESTERFIELD BC,,,,232102301,3700070494,,Grant payable by the Exchequer,S40 1LP,"2,839.00",Yes
"Housing, Communities & Local Government",MHCLG,15/09/2020,Current (non AEF) Grants to Local Authorities,Emergency Response,CHESTERFIELD BC,,,,232102301,3700070846,,Grant payable by the Exchequer,S40 1LP,"2,838.00",Yes
"Housing, Communities & Local Government",MHCLG,15/09/2020,Current (non AEF) Grants to Local Authorities,Emergency Response,CHESTERFIELD BC,,,,232102301,3700071128,,Grant payable by the Exchequer,S40 1LP,"675,155.00",Yes
"Housing, Communities & Local Government",MHCLG,15/09/2020,Current (non AEF) Grants to Local Authorities,Emergency Response,CHICHESTER DC,,,,739800998,3700070254,,Grant payable by the Exchequer,PO19 1TY,"1,066,308.00",Yes
"Housing, Communities & Local Government",MHCLG,15/09/2020,Current (non AEF) Grants to Local Authorities,Emergency Response,CHICHESTER DC,,,,739800998,3700070990,,Grant payable by the Exchequer,PO19 1TY,"10,256.00",Yes
"Housing, Communities & Local Government",MHCLG,15/09/2020,Current (non AEF) Grants to Local Authorities,Emergency Response,CHICHESTER DC,,,,739800998,3700071055,,Grant payable by the Exchequer,PO19 1TY,"10,256.00",Yes
"Housing, Communities & Local Government",MHCLG,15/09/2020,Current (non AEF) Grants to Local Authorities,Emergency Response,CHICHESTER DC,,,,739800998,3700071159,,Grant payable by the Exchequer,PO19 1TY,"1,066,308.00",Yes
"Housing, Communities & Local Government",MHCLG,15/09/2020,Current (non AEF) Grants to Local Authorities,Emergency Response,CHORLEY DC,,,,236415576,3700070125,,Grant payable by the Exchequer,PR7 1DP,"8,834.00",Yes
"Housing, Communities & Local Government",MHCLG,15/09/2020,Current (non AEF) Grants to Local Authorities,Emergency Response,CHORLEY DC,,,,236415576,3700070195,,Grant payable by the Exchequer,PR7 1DP,"412,501.00",Yes
"Housing, Communities & Local Government",MHCLG,15/09/2020,Current (non AEF) Grants to Local Authorities,Emergency Response,CHORLEY DC,,,,236415576,3700070378,,Grant payable by the Exchequer,PR7 1DP,"412,501.00",Yes
"Housing, Communities & Local Government",MHCLG,15/09/2020,Current (non AEF) Grants to Local Authorities,Emergency Response,CHORLEY DC,,,,236415576,3700070474,,Grant payable by the Exchequer,PR7 1DP,"8,834.00",Yes
"Housing, Communities & Local Government",MHCLG,15/09/2020,Current (non AEF) Grants to Local Authorities,Emergency Response,CITY OF LINCOLN COUNCIL,,,,,3700070128,,Grant payable by the Exchequer,LN1 1DB,"6,299.00",Yes
"Housing, Communities & Local Government",MHCLG,15/09/2020,Current (non AEF) Grants to Local Authorities,Emergency Response,CITY OF LINCOLN COUNCIL,,,,,3700070485,,Grant payable by the Exchequer,LN1 1DB,"1,028,191.00",Yes
"Housing, Communities & Local Government",MHCLG,15/09/2020,Current (non AEF) Grants to Local Authorities,Emergency Response,CITY OF LINCOLN COUNCIL,,,,,3700070708,,Grant payable by the Exchequer,LN1 1DB,"1,028,190.00",Yes
"Housing, Communities & Local Government",MHCLG,15/09/2020,Current (non AEF) Grants to Local Authorities,Emergency Response,CITY OF LINCOLN COUNCIL,,,,,3700070714,,Grant payable by the Exchequer,LN1 1DB,"6,298.00",Yes
"Housing, Communities & Local Government",MHCLG,15/09/2020,Current (non AEF) Grants to Local Authorities,Emergency Response,CITY OF LONDON (HSG),,,,217471460,3700069894,,Grant payable by the Exchequer,EC2P 2EJ,"26,178.00",Yes
"Housing, Communities & Local Government",MHCLG,15/09/2020,Current (non AEF) Grants to Local Authorities,Emergency Response,CITY OF LONDON (HSG),,,,217471460,3700069913,,Grant payable by the Exchequer,EC2P 2EJ,"21,345.00",Yes
"Housing, Communities & Local Government",MHCLG,15/09/2020,Current (non AEF) Grants to Local Authorities,Emergency Response,CITY OF SUNDERLAND (HSG),,,,215599312,3700069663,,Grant payable by the Exchequer,SR2 7DN,"1,511,141.00",Yes
"Housing, Communities & Local Government",MHCLG,15/09/2020,Current (non AEF) Grants to Local Authorities,Emergency Response,CITY OF SUNDERLAND (HSG),,,,215599312,3700069997,,Grant payable by the Exchequer,SR2 7DN,"854,035.00",Yes
"Housing, Communities & Local Government",MHCLG,15/09/2020,Current (non AEF) Grants to Local Authorities,Emergency Response,CITY OF WAKEFIELD MDC,,,,,3700069866,,Grant payable by the Exchequer,WF1 2QW,"1,409,128.00",Yes
"Housing, Communities & Local Government",MHCLG,15/09/2020,Current (non AEF) Grants to Local Authorities,Emergency Response,CITY OF WAKEFIELD MDC,,,,,3700069886,,Grant payable by the Exchequer,WF1 2QW,"840,920.00",Yes
"Housing, Communities & Local Government",MHCLG,15/09/2020,Current (non AEF) Grants to Local Authorities,Emergency Response,CITY OF WAKEFIELD MDC,,,,,3700070402,,Grant payable by the Exchequer,WF1 2QW,"1,709,274.00",Yes
"Housing, Communities & Local Government",MHCLG,15/09/2020,Current (non AEF) Grants to Local Authorities,Emergency Response,CITY OF WAKEFIELD MDC,,,,,3700070539,,Grant payable by the Exchequer,WF1 2QW,"14,508.00",Yes
"Housing, Communities & Local Government",MHCLG,15/09/2020,Current (non AEF) Grants to Local Authorities,Emergency Response,CITY OF WAKEFIELD MDC,,,,,3700070992,,Grant payable by the Exchequer,WF1 2QW,"14,508.00",Yes
"Housing, Communities & Local Government",MHCLG,15/09/2020,Current (non AEF) Grants to Local Authorities,Emergency Response,CITY OF WAKEFIELD MDC,,,,,3700071068,,Grant payable by the Exchequer,WF1 2QW,"1,709,274.00",Yes
"Housing, Communities & Local Government",MHCLG,15/09/2020,Current (non AEF) Grants to Local Authorities,Emergency Response,COLCHESTER BC,,,,,3700069986,,Grant payable by the Exchequer,CO3 3WG,"1,331,994.00",Yes
"Housing, Communities & Local Government",MHCLG,15/09/2020,Current (non AEF) Grants to Local Authorities,Emergency Response,COLCHESTER BC,,,,,3700070499,,Grant payable by the Exchequer,CO3 3WG,"18,772.00",Yes
"Housing, Communities & Local Government",MHCLG,15/09/2020,Current (non AEF) Grants to Local Authorities,Emergency Response,COLCHESTER BC,,,,,3700070837,,Grant payable by the Exchequer,CO3 3WG,"1,331,994.00",Yes
"Housing, Communities & Local Government",MHCLG,15/09/2020,Current (non AEF) Grants to Local Authorities,Emergency Response,COLCHESTER BC,,,,,3700071053,,Grant payable by the Exchequer,CO3 3WG,"18,771.00",Yes
"Housing, Communities & Local Government",MHCLG,15/09/2020,Current (non AEF) Grants to Local Authorities,Emergency Response,COPELAND BC,,,,236414827,3700070202,,Grant payable by the Exchequer,CA28 7NY,"2,262.00",Yes
"Housing, Communities & Local Government",MHCLG,15/09/2020,Current (non AEF) Grants to Local Authorities,Emergency Response,COPELAND BC,,,,236414827,3700070669,,Grant payable by the Exchequer,CA28 7NY,"2,263.00",Yes
"Housing, Communities & Local Government",MHCLG,15/09/2020,Current (non AEF) Grants to Local Authorities,Emergency Response,COPELAND BC,,,,236414827,3700070678,,Grant payable by the Exchequer,CA28 7NY,"205,557.00",Yes
"Housing, Communities & Local Government",MHCLG,15/09/2020,Current (non AEF) Grants to Local Authorities,Emergency Response,COPELAND BC,,,,236414827,3700071260,,Grant payable by the Exchequer,CA28 7NY,"205,556.00",Yes
"Housing, Communities & Local Government",MHCLG,15/09/2020,Current (non AEF) Grants to Local Authorities,Emergency Response,CORBY BC,,,,,3700069772,,Grant payable by the Exchequer,NN17 1GD,"4,207.00",Yes
"Housing, Communities & Local Government",MHCLG,15/09/2020,Current (non AEF) Grants to Local Authorities,Emergency Response,CORBY BC,,,,,3700070137,,Grant payable by the Exchequer,NN17 1GD,"4,208.00",Yes
"Housing, Communities & Local Government",MHCLG,15/09/2020,Current (non AEF) Grants to Local Authorities,Emergency Response,CORBY BC,,,,,3700070322,,Grant payable by the Exchequer,NN17 1GD,"158,108.00",Yes
"Housing, Communities & Local Government",MHCLG,15/09/2020,Current (non AEF) Grants to Local Authorities,Emergency Response,CORBY BC,,,,,3700070661,,Grant payable by the Exchequer,NN17 1GD,"158,107.00",Yes
"Housing, Communities & Local Government",MHCLG,15/09/2020,Current (non AEF) Grants to Local Authorities,Emergency Response,CORNWALL COUNCIL,,,,211334404,3700070129,,Grant payable by the Exchequer,TR1 3AY,625.00,Yes
"Housing, Communities & Local Government",MHCLG,15/09/2020,Current (non AEF) Grants to Local Authorities,Emergency Response,CORNWALL COUNCIL,,,,211334404,3700070945,,Grant payable by the Exchequer,TR1 3AY,"7,581,201.00",Yes
"Housing, Communities & Local Government",MHCLG,15/09/2020,Current (non AEF) Grants to Local Authorities,Emergency Response,CORNWALL COUNCIL,,,,211334404,3700071131,,Grant payable by the Exchequer,TR1 3AY,"36,407.00",Yes
"Housing, Communities & Local Government",MHCLG,15/09/2020,Current (non AEF) Grants to Local Authorities,Emergency Response,CORNWALL UNITARY AUTHORITY,,,,211334404,3700069737,,Grant payable by the Exchequer,TR1 3AY,"1,969,941.00",Yes
"Housing, Communities & Local Government",MHCLG,15/09/2020,Current (non AEF) Grants to Local Authorities,Emergency Response,CORNWALL UNITARY AUTHORITY,,,,211334404,3700070097,,Grant payable by the Exchequer,TR1 3AY,"1,336,901.00",Yes
"Housing, Communities & Local Government",MHCLG,15/09/2020,Current (non AEF) Grants to Local Authorities,Emergency Response,CORPORATION OF LONDON,,,,225438175,3700070028,,Grant payable by the Exchequer,EC2P 2EJ,"6,347,741.00",Yes
"Housing, Communities & Local Government",MHCLG,15/09/2020,Current (non AEF) Grants to Local Authorities,Emergency Response,CORPORATION OF LONDON,,,,225438175,3700070405,,Grant payable by the Exchequer,EC2P 2EJ,"5,414.00",Yes
"Housing, Communities & Local Government",MHCLG,15/09/2020,Current (non AEF) Grants to Local Authorities,Emergency Response,CORPORATION OF LONDON,,,,225438175,3700070734,,Grant payable by the Exchequer,EC2P 2EJ,"3,126,499.00",Yes
"Housing, Communities & Local Government",MHCLG,15/09/2020,Current (non AEF) Grants to Local Authorities,Emergency Response,CORPORATION OF LONDON,,,,225438175,3700070984,,Grant payable by the Exchequer,EC2P 2EJ,"10,992.00",Yes
"Housing, Communities & Local Government",MHCLG,15/09/2020,Current (non AEF) Grants to Local Authorities,Emergency Response,COTSWOLD DC,,,,232462085,3700070058,,Grant payable by the Exchequer,GL7 1PX,"659,061.00",Yes
"Housing, Communities & Local Government",MHCLG,15/09/2020,Current (non AEF) Grants to Local Authorities,Emergency Response,COTSWOLD DC,,,,232462085,3700070585,,Grant payable by the Exchequer,GL7 1PX,"659,061.00",Yes
"Housing, Communities & Local Government",MHCLG,15/09/2020,Current (non AEF) Grants to Local Authorities,Emergency Response,COTSWOLD DC,,,,232462085,3700071080,,Grant payable by the Exchequer,GL7 1PX,"2,963.00",Yes
"Housing, Communities & Local Government",MHCLG,15/09/2020,Current (non AEF) Grants to Local Authorities,Emergency Response,COTSWOLD DC,,,,232462085,3700071182,,Grant payable by the Exchequer,GL7 1PX,"2,963.00",Yes
"Housing, Communities & Local Government",MHCLG,15/09/2020,Current (non AEF) Grants to Local Authorities,Emergency Response,COVENTRY CITY CNCL,,,,210384802,3700069669,,Grant payable by the Exchequer,CV1 2QL,"1,276,877.00",Yes
"Housing, Communities & Local Government",MHCLG,15/09/2020,Current (non AEF) Grants to Local Authorities,Emergency Response,COVENTRY CITY CNCL,,,,210384802,3700070053,,Grant payable by the Exchequer,CV1 2QL,"785,871.00",Yes
"Housing, Communities & Local Government",MHCLG,15/09/2020,Current (non AEF) Grants to Local Authorities,Emergency Response,COVENTRY CITY CNCL,,,,210384802,3700070935,,Grant payable by the Exchequer,CV1 2QL,"41,233.00",Yes
"Housing, Communities & Local Government",MHCLG,15/09/2020,Current (non AEF) Grants to Local Authorities,Emergency Response,COVENTRY CITY CNCL,,,,210384802,3700071104,,Grant payable by the Exchequer,CV1 2QL,"3,884,820.00",Yes
"Housing, Communities & Local Government",MHCLG,15/09/2020,Current (non AEF) Grants to Local Authorities,Emergency Response,CRAVEN DISTRICT COUNCIL,,,,215577851,3700069954,,Grant payable by the Exchequer,BD23 1PS,"85,289.00",Yes
"Housing, Communities & Local Government",MHCLG,15/09/2020,Current (non AEF) Grants to Local Authorities,Emergency Response,CRAVEN DISTRICT COUNCIL,,,,215577851,3700070368,,Grant payable by the Exchequer,BD23 1PS,"1,926.00",Yes
"Housing, Communities & Local Government",MHCLG,15/09/2020,Current (non AEF) Grants to Local Authorities,Emergency Response,CRAVEN DISTRICT COUNCIL,,,,215577851,3700070430,,Grant payable by the Exchequer,BD23 1PS,"85,288.00",Yes
"Housing, Communities & Local Government",MHCLG,15/09/2020,Current (non AEF) Grants to Local Authorities,Emergency Response,CRAVEN DISTRICT COUNCIL,,,,215577851,3700070518,,Grant payable by the Exchequer,BD23 1PS,"1,925.00",Yes
"Housing, Communities & Local Government",MHCLG,15/09/2020,Current (non AEF) Grants to Local Authorities,Emergency Response,CRAWLEY BOROUGH COUNCIL,,,,211222500,3700069752,,Grant payable by the Exchequer,RH10 1UZ,"1,395,064.00",Yes
"Housing, Communities & Local Government",MHCLG,15/09/2020,Current (non AEF) Grants to Local Authorities,Emergency Response,CRAWLEY BOROUGH COUNCIL,,,,211222500,3700069966,,Grant payable by the Exchequer,RH10 1UZ,"14,818.00",Yes
"Housing, Communities & Local Government",MHCLG,15/09/2020,Current (non AEF) Grants to Local Authorities,Emergency Response,CRAWLEY BOROUGH COUNCIL,,,,211222500,3700070629,,Grant payable by the Exchequer,RH10 1UZ,"14,819.00",Yes
"Housing, Communities & Local Government",MHCLG,15/09/2020,Current (non AEF) Grants to Local Authorities,Emergency Response,CRAWLEY BOROUGH COUNCIL,,,,211222500,3700070754,,Grant payable by the Exchequer,RH10 1UZ,"1,395,065.00",Yes
"Housing, Communities & Local Government",MHCLG,15/09/2020,Current (non AEF) Grants to Local Authorities,Emergency Response,CROYDON LB,,,,212419973,3700069658,,Grant payable by the Exchequer,CR0 1EA,"807,030.00",Yes
"Housing, Communities & Local Government",MHCLG,15/09/2020,Current (non AEF) Grants to Local Authorities,Emergency Response,CROYDON LB,,,,212419973,3700069664,,Grant payable by the Exchequer,CR0 1EA,"619,320.00",Yes
"Housing, Communities & Local Government",MHCLG,15/09/2020,Current (non AEF) Grants to Local Authorities,Emergency Response,CROYDON LB,,,,212419973,3700070300,,Grant payable by the Exchequer,CR0 1EA,"63,058.00",Yes
"Housing, Communities & Local Government",MHCLG,15/09/2020,Current (non AEF) Grants to Local Authorities,Emergency Response,CROYDON LB,,,,212419973,3700070367,,Grant payable by the Exchequer,CR0 1EA,"3,160,386.00",Yes
"Housing, Communities & Local Government",MHCLG,15/09/2020,Current (non AEF) Grants to Local Authorities,Emergency Response,CROYDON LB,,,,212419973,3700070438,,Grant payable by the Exchequer,CR0 1EA,"29,472.00",Yes
"Housing, Communities & Local Government",MHCLG,15/09/2020,Current (non AEF) Grants to Local Authorities,Emergency Response,CROYDON LB,,,,212419973,3700070998,,Grant payable by the Exchequer,CR0 1EA,"1,199,684.00",Yes
"Housing, Communities & Local Government",MHCLG,15/09/2020,Current (non AEF) Grants to Local Authorities,Emergency Response,CUMBRIA COUNTY CNCL,,,,211316542,3700069783,,Grant payable by the Exchequer,CA3 8NA,"1,248,119.00",Yes
"Housing, Communities & Local Government",MHCLG,15/09/2020,Current (non AEF) Grants to Local Authorities,Emergency Response,CUMBRIA COUNTY CNCL,,,,211316542,3700070049,,Grant payable by the Exchequer,CA3 8NA,"1,934,668.00",Yes
"Housing, Communities & Local Government",MHCLG,15/09/2020,Current (non AEF) Grants to Local Authorities,Emergency Response,DACORUM BC,,,,236448643,3700069841,,Grant payable by the Exchequer,HP1 1DN,"1,072,980.00",Yes
"Housing, Communities & Local Government",MHCLG,15/09/2020,Current (non AEF) Grants to Local Authorities,Emergency Response,DACORUM BC,,,,236448643,3700070223,,Grant payable by the Exchequer,HP1 1DN,"12,250.00",Yes
"Housing, Communities & Local Government",MHCLG,15/09/2020,Current (non AEF) Grants to Local Authorities,Emergency Response,DACORUM BC,,,,236448643,3700070273,,Grant payable by the Exchequer,HP1 1DN,"12,249.00",Yes
"Housing, Communities & Local Government",MHCLG,15/09/2020,Current (non AEF) Grants to Local Authorities,Emergency Response,DACORUM BC,,,,236448643,3700070538,,Grant payable by the Exchequer,HP1 1DN,"1,072,981.00",Yes
"Housing, Communities & Local Government",MHCLG,15/09/2020,Current (non AEF) Grants to Local Authorities,Emergency Response,DARLINGTON BC,,,,,3700069711,,Grant payable by the Exchequer,TS19 1JA,"363,000.00",Yes
"Housing, Communities & Local Government",MHCLG,15/09/2020,Current (non AEF) Grants to Local Authorities,Emergency Response,DARLINGTON BC,,,,,3700069890,,Grant payable by the Exchequer,TS19 1JA,"246,015.00",Yes
"Housing, Communities & Local Government",MHCLG,15/09/2020,Current (non AEF) Grants to Local Authorities,Emergency Response,DARLINGTON BC,,,,,3700070042,,Grant payable by the Exchequer,TS19 1JA,"641,564.00",Yes
"Housing, Communities & Local Government",MHCLG,15/09/2020,Current (non AEF) Grants to Local Authorities,Emergency Response,DARLINGTON BC,,,,,3700070842,,Grant payable by the Exchequer,TS19 1JA,"5,489.00",Yes
"Housing, Communities & Local Government",MHCLG,15/09/2020,Current (non AEF) Grants to Local Authorities,Emergency Response,DARLINGTON BC,,,,,3700070951,,Grant payable by the Exchequer,TS19 1JA,"5,488.00",Yes
"Housing, Communities & Local Government",MHCLG,15/09/2020,Current (non AEF) Grants to Local Authorities,Emergency Response,DARLINGTON BC,,,,,3700071006,,Grant payable by the Exchequer,TS19 1JA,"641,710.00",Yes
"Housing, Communities & Local Government",MHCLG,15/09/2020,Current (non AEF) Grants to Local Authorities,Emergency Response,DARTFORD BC,,,,225694942,3700069885,,Grant payable by the Exchequer,DA1 1DR,"2,412,246.00",Yes
"Housing, Communities & Local Government",MHCLG,15/09/2020,Current (non AEF) Grants to Local Authorities,Emergency Response,DARTFORD BC,,,,225694942,3700069982,,Grant payable by the Exchequer,DA1 1DR,"13,550.00",Yes
"Housing, Communities & Local Government",MHCLG,15/09/2020,Current (non AEF) Grants to Local Authorities,Emergency Response,DARTFORD BC,,,,225694942,3700070653,,Grant payable by the Exchequer,DA1 1DR,"2,412,246.00",Yes
"Housing, Communities & Local Government",MHCLG,15/09/2020,Current (non AEF) Grants to Local Authorities,Emergency Response,DARTFORD BC,,,,225694942,3700070750,,Grant payable by the Exchequer,DA1 1DR,"13,551.00",Yes
"Housing, Communities & Local Government",MHCLG,15/09/2020,Current (non AEF) Grants to Local Authorities,Emergency Response,DAVENTRY DC,,,,239859333,3700070231,,Grant payable by the Exchequer,NN11 5AF,"5,791.00",Yes
"Housing, Communities & Local Government",MHCLG,15/09/2020,Current (non AEF) Grants to Local Authorities,Emergency Response,DAVENTRY DC,,,,239859333,3700070476,,Grant payable by the Exchequer,NN11 5AF,"144,923.00",Yes
"Housing, Communities & Local Government",MHCLG,15/09/2020,Current (non AEF) Grants to Local Authorities,Emergency Response,DAVENTRY DC,,,,239859333,3700071045,,Grant payable by the Exchequer,NN11 5AF,"144,923.00",Yes
"Housing, Communities & Local Government",MHCLG,15/09/2020,Current (non AEF) Grants to Local Authorities,Emergency Response,DAVENTRY DC,,,,239859333,3700071144,,Grant payable by the Exchequer,NN11 5AF,"5,791.00",Yes
"Housing, Communities & Local Government",MHCLG,15/09/2020,Current (non AEF) Grants to Local Authorities,Emergency Response,DERBY CITY CNCL,,,,229641378,3700069840,,Grant payable by the Exchequer,DE1 2FS,"587,485.00",Yes
"Housing, Communities & Local Government",MHCLG,15/09/2020,Current (non AEF) Grants to Local Authorities,Emergency Response,DERBY CITY CNCL,,,,229641378,3700070063,,Grant payable by the Exchequer,DE1 2FS,"974,199.00",Yes
"Housing, Communities & Local Government",MHCLG,15/09/2020,Current (non AEF) Grants to Local Authorities,Emergency Response,DERBY CITY CNCL,,,,229641378,3700069909,,Grant payable by the Exchequer,DE1 2FS,"1,383,939.00",Yes
"Housing, Communities & Local Government",MHCLG,15/09/2020,Current (non AEF) Grants to Local Authorities,Emergency Response,DERBY CITY CNCL,,,,229641378,3700070157,,Grant payable by the Exchequer,DE1 2FS,"18,686.00",Yes
"Housing, Communities & Local Government",MHCLG,15/09/2020,Current (non AEF) Grants to Local Authorities,Emergency Response,DERBY CITY CNCL,,,,229641378,3700070898,,Grant payable by the Exchequer,DE1 2FS,"18,686.00",Yes
"Housing, Communities & Local Government",MHCLG,15/09/2020,Current (non AEF) Grants to Local Authorities,Emergency Response,DERBY CITY CNCL,,,,229641378,3700071180,,Grant payable by the Exchequer,DE1 2FS,"1,383,938.00",Yes
"Housing, Communities & Local Government",MHCLG,15/09/2020,Current (non AEF) Grants to Local Authorities,Emergency Response,DERBYSHIRE COUNTYCOUNCIL,,,,232152967,3700069682,,Grant payable by the Exchequer,DE4 3AG,"2,890,054.00",Yes
"Housing, Communities & Local Government",MHCLG,15/09/2020,Current (non AEF) Grants to Local Authorities,Emergency Response,DERBYSHIRE COUNTYCOUNCIL,,,,232152967,3700069818,,Grant payable by the Exchequer,DE4 3AG,"1,828,318.00",Yes
"Housing, Communities & Local Government",MHCLG,15/09/2020,Current (non AEF) Grants to Local Authorities,Emergency Response,DERBYSHIRE DALES DC,,,,,3700070094,,Grant payable by the Exchequer,DE4 3NN,"1,465.00",Yes
"Housing, Communities & Local Government",MHCLG,15/09/2020,Current (non AEF) Grants to Local Authorities,Emergency Response,DERBYSHIRE DALES DC,,,,,3700070259,,Grant payable by the Exchequer,DE4 3NN,"289,633.00",Yes
"Housing, Communities & Local Government",MHCLG,15/09/2020,Current (non AEF) Grants to Local Authorities,Emergency Response,DERBYSHIRE DALES DC,,,,,3700070692,,Grant payable by the Exchequer,DE4 3NN,"289,634.00",Yes
"Housing, Communities & Local Government",MHCLG,15/09/2020,Current (non AEF) Grants to Local Authorities,Emergency Response,DERBYSHIRE DALES DC,,,,,3700071032,,Grant payable by the Exchequer,DE4 3NN,"1,465.00",Yes
"Housing, Communities & Local Government",MHCLG,15/09/2020,Current (non AEF) Grants to Local Authorities,Emergency Response,DEVON COUNTY CNCL,,,,213754018,3700069610,,Grant payable by the Exchequer,EX2 4QJ,"2,355,779.00",Yes
"Housing, Communities & Local Government",MHCLG,15/09/2020,Current (non AEF) Grants to Local Authorities,Emergency Response,DEVON COUNTY CNCL,,,,213754018,3700069676,,Grant payable by the Exchequer,EX2 4QJ,"1,679,942.00",Yes
"Housing, Communities & Local Government",MHCLG,15/09/2020,Current (non AEF) Grants to Local Authorities,Emergency Response,DONCASTER MBC,,,,,3700069805,,Grant payable by the Exchequer,DN1 3QA,"796,811.00",Yes
"Housing, Communities & Local Government",MHCLG,15/09/2020,Current (non AEF) Grants to Local Authorities,Emergency Response,DONCASTER MBC,,,,,3700070037,,Grant payable by the Exchequer,DN1 3QA,"1,319,182.00",Yes
"Housing, Communities & Local Government",MHCLG,15/09/2020,Current (non AEF) Grants to Local Authorities,Emergency Response,DONCASTER MBC,,,,,3700069746,,Grant payable by the Exchequer,DN1 3QA,"1,531,029.00",Yes
"Housing, Communities & Local Government",MHCLG,15/09/2020,Current (non AEF) Grants to Local Authorities,Emergency Response,DONCASTER MBC,,,,,3700070247,,Grant payable by the Exchequer,DN1 3QA,"11,582.00",Yes
"Housing, Communities & Local Government",MHCLG,15/09/2020,Current (non AEF) Grants to Local Authorities,Emergency Response,DONCASTER MBC,,,,,3700070277,,Grant payable by the Exchequer,DN1 3QA,"1,531,029.00",Yes
"Housing, Communities & Local Government",MHCLG,15/09/2020,Current (non AEF) Grants to Local Authorities,Emergency Response,DONCASTER MBC,,,,,3700070609,,Grant payable by the Exchequer,DN1 3QA,"11,581.00",Yes
"Housing, Communities & Local Government",MHCLG,15/09/2020,Current (non AEF) Grants to Local Authorities,Emergency Response,DORSET COUNCIL,,,,,3700069744,,Grant payable by the Exchequer,DT1 1UZ,"1,870,626.00",Yes
"Housing, Communities & Local Government",MHCLG,15/09/2020,Current (non AEF) Grants to Local Authorities,Emergency Response,DORSET COUNCIL,,,,,3700070056,,Grant payable by the Exchequer,DT1 1UZ,"1,870,625.00",Yes
"Housing, Communities & Local Government",MHCLG,15/09/2020,Current (non AEF) Grants to Local Authorities,Emergency Response,DORSET COUNCIL,,,,,3700070786,,Grant payable by the Exchequer,DT1 1UZ,"17,854.00",Yes
"Housing, Communities & Local Government",MHCLG,15/09/2020,Current (non AEF) Grants to Local Authorities,Emergency Response,DORSET COUNCIL,,,,,3700070878,,Grant payable by the Exchequer,DT1 1UZ,"17,854.00",Yes
"Housing, Communities & Local Government",MHCLG,15/09/2020,Current (non AEF) Grants to Local Authorities,Emergency Response,DORSET COUNCIL,,,,,3700069636,,Grant payable by the Exchequer,DT1 1UZ,"1,007,003.00",Yes
"Housing, Communities & Local Government",MHCLG,15/09/2020,Current (non AEF) Grants to Local Authorities,Emergency Response,DORSET COUNCIL,,,,,3700069868,,Grant payable by the Exchequer,DT1 1UZ,"746,963.00",Yes
"Housing, Communities & Local Government",MHCLG,15/09/2020,Current (non AEF) Grants to Local Authorities,Emergency Response,DOVER DC,,,,,3700069863,,Grant payable by the Exchequer,CT16 3PD,"4,128.00",Yes
"Housing, Communities & Local Government",MHCLG,15/09/2020,Current (non AEF) Grants to Local Authorities,Emergency Response,DOVER DC,,,,,3700070086,,Grant payable by the Exchequer,CT16 3PD,"4,128.00",Yes
"Housing, Communities & Local Government",MHCLG,15/09/2020,Current (non AEF) Grants to Local Authorities,Emergency Response,DOVER DC,,,,,3700070836,,Grant payable by the Exchequer,CT16 3PD,"478,494.00",Yes
"Housing, Communities & Local Government",MHCLG,15/09/2020,Current (non AEF) Grants to Local Authorities,Emergency Response,DOVER DC,,,,,3700070979,,Grant payable by the Exchequer,CT16 3PD,"478,495.00",Yes
"Housing, Communities & Local Government",MHCLG,15/09/2020,Current (non AEF) Grants to Local Authorities,Emergency Response,DUDLEY MBC,,,,,3700069649,,Grant payable by the Exchequer,DY1 1HF,"814,334.00",Yes
"Housing, Communities & Local Government",MHCLG,15/09/2020,Current (non AEF) Grants to Local Authorities,Emergency Response,DUDLEY MBC,,,,,3700069769,,Grant payable by the Exchequer,DY1 1HF,"1,344,846.00",Yes
"Housing, Communities & Local Government",MHCLG,15/09/2020,Current (non AEF) Grants to Local Authorities,Emergency Response,DUDLEY MBC,,,,,3700071198,,Grant payable by the Exchequer,DY1 1HF,"14,571.00",Yes
"Housing, Communities & Local Government",MHCLG,15/09/2020,Current (non AEF) Grants to Local Authorities,Emergency Response,DUDLEY MBC,,,,,3700071221,,Grant payable by the Exchequer,DY1 1HF,"3,590,277.00",Yes
"Housing, Communities & Local Government",MHCLG,15/09/2020,Current (non AEF) Grants to Local Authorities,Emergency Response,DURHAM COUNTY COUNCIL,,,,228453601,3700070109,,Grant payable by the Exchequer,DH1 5UE,"1,970,983.00",Yes
"Housing, Communities & Local Government",MHCLG,15/09/2020,Current (non AEF) Grants to Local Authorities,Emergency Response,DURHAM COUNTY COUNCIL,,,,228453601,3700070418,,Grant payable by the Exchequer,DH1 5UE,"15,556.00",Yes
"Housing, Communities & Local Government",MHCLG,15/09/2020,Current (non AEF) Grants to Local Authorities,Emergency Response,DURHAM COUNTY COUNCIL,,,,228453601,3700070973,,Grant payable by the Exchequer,DH1 5UE,"1,970,984.00",Yes
"Housing, Communities & Local Government",MHCLG,15/09/2020,Current (non AEF) Grants to Local Authorities,Emergency Response,DURHAM COUNTY COUNCIL,,,,228453601,3700071094,,Grant payable by the Exchequer,DH1 5UE,"15,556.00",Yes
"Housing, Communities & Local Government",MHCLG,15/09/2020,Current (non AEF) Grants to Local Authorities,Emergency Response,DURHAM COUNTY COUNCIL,,,,224004882,3700069635,,Grant payable by the Exchequer,DH1 5UE,"2,496,507.00",Yes
"Housing, Communities & Local Government",MHCLG,15/09/2020,Current (non AEF) Grants to Local Authorities,Emergency Response,DURHAM COUNTY COUNCIL,,,,224004882,3700069969,,Grant payable by the Exchequer,DH1 5UE,"1,470,864.00",Yes
"Housing, Communities & Local Government",MHCLG,15/09/2020,Current (non AEF) Grants to Local Authorities,Emergency Response,EALING LB,,,,,3700069733,,Grant payable by the Exchequer,W5 2HL,"697,190.00",Yes
"Housing, Communities & Local Government",MHCLG,15/09/2020,Current (non AEF) Grants to Local Authorities,Emergency Response,EALING LB,,,,,3700069892,,Grant payable by the Exchequer,W5 2HL,"1,025,519.00",Yes
"Housing, Communities & Local Government",MHCLG,15/09/2020,Current (non AEF) Grants to Local Authorities,Emergency Response,EALING LB,,,,,3700070066,,Grant payable by the Exchequer,W5 2HL,"1,414,733.00",Yes
"Housing, Communities & Local Government",MHCLG,15/09/2020,Current (non AEF) Grants to Local Authorities,Emergency Response,EALING LB,,,,,3700070569,,Grant payable by the Exchequer,W5 2HL,"25,772.00",Yes
"Housing, Communities & Local Government",MHCLG,15/09/2020,Current (non AEF) Grants to Local Authorities,Emergency Response,EALING LB,,,,,3700070593,,Grant payable by the Exchequer,W5 2HL,"2,872,337.00",Yes
"Housing, Communities & Local Government",MHCLG,15/09/2020,Current (non AEF) Grants to Local Authorities,Emergency Response,EALING LB,,,,,3700071233,,Grant payable by the Exchequer,W5 2HL,"52,324.00",Yes
"Housing, Communities & Local Government",MHCLG,15/09/2020,Current (non AEF) Grants to Local Authorities,Emergency Response,EAST CAMBRIDGESHIRE DC,,,,236472023,3700070026,,Grant payable by the Exchequer,CB7 4PL,"5,023.00",Yes
"Housing, Communities & Local Government",MHCLG,15/09/2020,Current (non AEF) Grants to Local Authorities,Emergency Response,EAST CAMBRIDGESHIRE DC,,,,236472023,3700070827,,Grant payable by the Exchequer,CB7 4PL,"254,715.00",Yes
"Housing, Communities & Local Government",MHCLG,15/09/2020,Current (non AEF) Grants to Local Authorities,Emergency Response,EAST CAMBRIDGESHIRE DC,,,,236472023,3700071146,,Grant payable by the Exchequer,CB7 4PL,"254,714.00",Yes
"Housing, Communities & Local Government",MHCLG,15/09/2020,Current (non AEF) Grants to Local Authorities,Emergency Response,EAST CAMBRIDGESHIRE DC,,,,236472023,3700071163,,Grant payable by the Exchequer,CB7 4PL,"5,024.00",Yes
"Housing, Communities & Local Government",MHCLG,15/09/2020,Current (non AEF) Grants to Local Authorities,Emergency Response,EAST DEVON DC,,,,,3700069849,,Grant payable by the Exchequer,EX10 8HL,"4,932.00",Yes
"Housing, Communities & Local Government",MHCLG,15/09/2020,Current (non AEF) Grants to Local Authorities,Emergency Response,EAST DEVON DC,,,,,3700069988,,Grant payable by the Exchequer,EX10 8HL,"702,618.00",Yes
"Housing, Communities & Local Government",MHCLG,15/09/2020,Current (non AEF) Grants to Local Authorities,Emergency Response,EAST DEVON DC,,,,,3700070295,,Grant payable by the Exchequer,EX10 8HL,"698,757.00",Yes
"Housing, Communities & Local Government",MHCLG,15/09/2020,Current (non AEF) Grants to Local Authorities,Emergency Response,EAST DEVON DC,,,,,3700070975,,Grant payable by the Exchequer,EX10 8HL,"4,932.00",Yes
"Housing, Communities & Local Government",MHCLG,15/09/2020,Current (non AEF) Grants to Local Authorities,Emergency Response,EAST HAMPSHIRE DC,,,,,3700070012,,Grant payable by the Exchequer,GU31 4EX,"5,667.00",Yes
"Housing, Communities & Local Government",MHCLG,15/09/2020,Current (non AEF) Grants to Local Authorities,Emergency Response,EAST HAMPSHIRE DC,,,,,3700070181,,Grant payable by the Exchequer,GU31 4EX,"5,666.00",Yes
"Housing, Communities & Local Government",MHCLG,15/09/2020,Current (non AEF) Grants to Local Authorities,Emergency Response,EAST HAMPSHIRE DC,,,,,3700070211,,Grant payable by the Exchequer,GU31 4EX,"520,465.00",Yes
"Housing, Communities & Local Government",MHCLG,15/09/2020,Current (non AEF) Grants to Local Authorities,Emergency Response,EAST HAMPSHIRE DC,,,,,3700070242,,Grant payable by the Exchequer,GU31 4EX,"520,465.00",Yes
"Housing, Communities & Local Government",MHCLG,15/09/2020,Current (non AEF) Grants to Local Authorities,Emergency Response,EAST HERTFORDSHIRE DC,,,,236176954,3700069701,,Grant payable by the Exchequer,SG13 8EQ,"11,195.00",Yes
"Housing, Communities & Local Government",MHCLG,15/09/2020,Current (non AEF) Grants to Local Authorities,Emergency Response,EAST HERTFORDSHIRE DC,,,,236176954,3700070209,,Grant payable by the Exchequer,SG13 8EQ,"11,196.00",Yes
"Housing, Communities & Local Government",MHCLG,15/09/2020,Current (non AEF) Grants to Local Authorities,Emergency Response,EAST HERTFORDSHIRE DC,,,,236176954,3700070457,,Grant payable by the Exchequer,SG13 8EQ,"688,912.00",Yes
"Housing, Communities & Local Government",MHCLG,15/09/2020,Current (non AEF) Grants to Local Authorities,Emergency Response,EAST HERTFORDSHIRE DC,,,,236176954,3700070723,,Grant payable by the Exchequer,SG13 8EQ,"688,912.00",Yes
"Housing, Communities & Local Government",MHCLG,15/09/2020,Current (non AEF) Grants to Local Authorities,Emergency Response,EAST LINDSEY DC,,,,,3700070337,,Grant payable by the Exchequer,LN11 8UP,"5,238.00",Yes
"Housing, Communities & Local Government",MHCLG,15/09/2020,Current (non AEF) Grants to Local Authorities,Emergency Response,EAST LINDSEY DC,,,,,3700070349,,Grant payable by the Exchequer,LN11 8UP,"814,244.00",Yes
"Housing, Communities & Local Government",MHCLG,15/09/2020,Current (non AEF) Grants to Local Authorities,Emergency Response,EAST LINDSEY DC,,,,,3700071009,,Grant payable by the Exchequer,LN11 8UP,"814,243.00",Yes
"Housing, Communities & Local Government",MHCLG,15/09/2020,Current (non AEF) Grants to Local Authorities,Emergency Response,EAST LINDSEY DC,,,,,3700071124,,Grant payable by the Exchequer,LN11 8UP,"5,238.00",Yes
"Housing, Communities & Local Government",MHCLG,15/09/2020,Current (non AEF) Grants to Local Authorities,Emergency Response,EAST NORTHAMPTONSHIRE COUNCIL,,,,227475290,3700070651,,Grant payable by the Exchequer,NN14 4LZ,"464,579.00",Yes
"Housing, Communities & Local Government",MHCLG,15/09/2020,Current (non AEF) Grants to Local Authorities,Emergency Response,EAST NORTHAMPTONSHIRE COUNCIL,,,,227475290,3700070806,,Grant payable by the Exchequer,NN14 4LZ,"5,708.00",Yes
"Housing, Communities & Local Government",MHCLG,15/09/2020,Current (non AEF) Grants to Local Authorities,Emergency Response,EAST NORTHAMPTONSHIRE COUNCIL,,,,227475290,3700070958,,Grant payable by the Exchequer,NN14 4LZ,"464,579.00",Yes
"Housing, Communities & Local Government",MHCLG,15/09/2020,Current (non AEF) Grants to Local Authorities,Emergency Response,EAST NORTHAMPTONSHIRE COUNCIL,,,,227475290,3700071081,,Grant payable by the Exchequer,NN14 4LZ,"5,708.00",Yes
"Housing, Communities & Local Government",MHCLG,15/09/2020,Current (non AEF) Grants to Local Authorities,Emergency Response,EAST RIDING OF YORKS,,,,,3700070147,,Grant payable by the Exchequer,HU17 9AB,"16,502.00",Yes
"Housing, Communities & Local Government",MHCLG,15/09/2020,Current (non AEF) Grants to Local Authorities,Emergency Response,EAST RIDING OF YORKS,,,,,3700070417,,Grant payable by the Exchequer,HU17 9AB,"1,395,837.00",Yes
"Housing, Communities & Local Government",MHCLG,15/09/2020,Current (non AEF) Grants to Local Authorities,Emergency Response,EAST RIDING OF YORKS,,,,,3700070450,,Grant payable by the Exchequer,HU17 9AB,"16,503.00",Yes
"Housing, Communities & Local Government",MHCLG,15/09/2020,Current (non AEF) Grants to Local Authorities,Emergency Response,EAST RIDING OF YORKS,,,,,3700070906,,Grant payable by the Exchequer,HU17 9AB,"1,395,836.00",Yes
"Housing, Communities & Local Government",MHCLG,15/09/2020,Current (non AEF) Grants to Local Authorities,Emergency Response,EAST RIDING OF YORKS (HSG),,,,423159987,3700069619,,Grant payable by the Exchequer,HU17 9BA,"669,217.00",Yes
"Housing, Communities & Local Government",MHCLG,15/09/2020,Current (non AEF) Grants to Local Authorities,Emergency Response,EAST RIDING OF YORKS (HSG),,,,423159987,3700069959,,Grant payable by the Exchequer,HU17 9BA,"939,921.00",Yes
"Housing, Communities & Local Government",MHCLG,15/09/2020,Current (non AEF) Grants to Local Authorities,Emergency Response,EAST STAFFORDSHIRE BC,,,,226778033,3700070285,,Grant payable by the Exchequer,DE14 2EB,"9,674.00",Yes
"Housing, Communities & Local Government",MHCLG,15/09/2020,Current (non AEF) Grants to Local Authorities,Emergency Response,EAST STAFFORDSHIRE BC,,,,226778033,3700070373,,Grant payable by the Exchequer,DE14 2EB,"715,984.00",Yes
"Housing, Communities & Local Government",MHCLG,15/09/2020,Current (non AEF) Grants to Local Authorities,Emergency Response,EAST STAFFORDSHIRE BC,,,,226778033,3700071105,,Grant payable by the Exchequer,DE14 2EB,"715,985.00",Yes
"Housing, Communities & Local Government",MHCLG,15/09/2020,Current (non AEF) Grants to Local Authorities,Emergency Response,EAST STAFFORDSHIRE BC,,,,226778033,3700071266,,Grant payable by the Exchequer,DE14 2EB,"9,673.00",Yes
"Housing, Communities & Local Government",MHCLG,15/09/2020,Current (non AEF) Grants to Local Authorities,Emergency Response,EAST SUFFOLK COUNCIL,,,,,3700070592,,Grant payable by the Exchequer,IP12 1RT,"9,483.00",Yes
"Housing, Communities & Local Government",MHCLG,15/09/2020,Current (non AEF) Grants to Local Authorities,Emergency Response,EAST SUFFOLK COUNCIL,,,,,3700070652,,Grant payable by the Exchequer,IP12 1RT,"1,167,008.00",Yes
"Housing, Communities & Local Government",MHCLG,15/09/2020,Current (non AEF) Grants to Local Authorities,Emergency Response,EAST SUFFOLK COUNCIL,,,,,3700071069,,Grant payable by the Exchequer,IP12 1RT,"9,484.00",Yes
"Housing, Communities & Local Government",MHCLG,15/09/2020,Current (non AEF) Grants to Local Authorities,Emergency Response,EAST SUFFOLK COUNCIL,,,,,3700071214,,Grant payable by the Exchequer,IP12 1RT,"1,167,007.00",Yes
"Housing, Communities & Local Government",MHCLG,15/09/2020,Current (non AEF) Grants to Local Authorities,Emergency Response,EAST SUSSEX COUNTY CNCL,,,,,3700069757,,Grant payable by the Exchequer,BN7 1SF,"1,219,161.00",Yes
"Housing, Communities & Local Government",MHCLG,15/09/2020,Current (non AEF) Grants to Local Authorities,Emergency Response,EAST SUSSEX COUNTY CNCL,,,,,3700070011,,Grant payable by the Exchequer,BN7 1SF,"1,761,292.00",Yes
"Housing, Communities & Local Government",MHCLG,15/09/2020,Current (non AEF) Grants to Local Authorities,Emergency Response,EASTBOURNE BC,,,,229896428,3700069758,,Grant payable by the Exchequer,BN21 4TW,"10,818.00",Yes
"Housing, Communities & Local Government",MHCLG,15/09/2020,Current (non AEF) Grants to Local Authorities,Emergency Response,EASTBOURNE BC,,,,229896428,3700069990,,Grant payable by the Exchequer,BN21 4TW,"10,819.00",Yes
"Housing, Communities & Local Government",MHCLG,15/09/2020,Current (non AEF) Grants to Local Authorities,Emergency Response,EASTBOURNE BC,,,,229896428,3700070480,,Grant payable by the Exchequer,BN21 4TW,"977,825.00",Yes
"Housing, Communities & Local Government",MHCLG,15/09/2020,Current (non AEF) Grants to Local Authorities,Emergency Response,EASTBOURNE BC,,,,229896428,3700071138,,Grant payable by the Exchequer,BN21 4TW,"977,825.00",Yes
"Housing, Communities & Local Government",MHCLG,15/09/2020,Current (non AEF) Grants to Local Authorities,Emergency Response,EASTLEIGH BOROUGH COUNCIL,,,,232669911,3700070138,,Grant payable by the Exchequer,SO5 9YN,"875,365.00",Yes
"Housing, Communities & Local Government",MHCLG,15/09/2020,Current (non AEF) Grants to Local Authorities,Emergency Response,EASTLEIGH BOROUGH COUNCIL,,,,232669911,3700070170,,Grant payable by the Exchequer,SO5 9YN,"8,522.00",Yes
"Housing, Communities & Local Government",MHCLG,15/09/2020,Current (non AEF) Grants to Local Authorities,Emergency Response,EASTLEIGH BOROUGH COUNCIL,,,,232669911,3700070425,,Grant payable by the Exchequer,SO5 9YN,"8,522.00",Yes
"Housing, Communities & Local Government",MHCLG,15/09/2020,Current (non AEF) Grants to Local Authorities,Emergency Response,EASTLEIGH BOROUGH COUNCIL,,,,232669911,3700070967,,Grant payable by the Exchequer,SO5 9YN,"875,365.00",Yes
"Housing, Communities & Local Government",MHCLG,15/09/2020,Current (non AEF) Grants to Local Authorities,Emergency Response,EDEN DC,,,,,3700070409,,Grant payable by the Exchequer,CA11 7QF,"1,928.00",Yes
"Housing, Communities & Local Government",MHCLG,15/09/2020,Current (non AEF) Grants to Local Authorities,Emergency Response,EDEN DC,,,,,3700070464,,Grant payable by the Exchequer,CA11 7QF,"555,803.00",Yes
"Housing, Communities & Local Government",MHCLG,15/09/2020,Current (non AEF) Grants to Local Authorities,Emergency Response,EDEN DC,,,,,3700070574,,Grant payable by the Exchequer,CA11 7QF,"1,928.00",Yes
"Housing, Communities & Local Government",MHCLG,15/09/2020,Current (non AEF) Grants to Local Authorities,Emergency Response,EDEN DC,,,,,3700071047,,Grant payable by the Exchequer,CA11 7QF,"555,803.00",Yes
"Housing, Communities & Local Government",MHCLG,15/09/2020,Current (non AEF) Grants to Local Authorities,Emergency Response,ELMBRIDGE BOROUGH COUNCIL,,Large,,236082442,3700069950,,Grant payable by the Exchequer,KT10 9SD,"1,121,633.00",Yes
"Housing, Communities & Local Government",MHCLG,15/09/2020,Current (non AEF) Grants to Local Authorities,Emergency Response,ELMBRIDGE BOROUGH COUNCIL,,Large,,236082442,3700070145,,Grant payable by the Exchequer,KT10 9SD,"24,411.00",Yes
"Housing, Communities & Local Government",MHCLG,15/09/2020,Current (non AEF) Grants to Local Authorities,Emergency Response,ELMBRIDGE BOROUGH COUNCIL,,Large,,236082442,3700070626,,Grant payable by the Exchequer,KT10 9SD,"1,121,633.00",Yes
"Housing, Communities & Local Government",MHCLG,15/09/2020,Current (non AEF) Grants to Local Authorities,Emergency Response,ELMBRIDGE BOROUGH COUNCIL,,Large,,236082442,3700071120,,Grant payable by the Exchequer,KT10 9SD,"24,412.00",Yes
"Housing, Communities & Local Government",MHCLG,15/09/2020,Current (non AEF) Grants to Local Authorities,Emergency Response,ENFIELD LB,,,,,3700069828,,Grant payable by the Exchequer,EN1 3XF,"948,400.00",Yes
"Housing, Communities & Local Government",MHCLG,15/09/2020,Current (non AEF) Grants to Local Authorities,Emergency Response,ENFIELD LB,,,,,3700069973,,Grant payable by the Exchequer,EN1 3XF,"638,853.00",Yes
"Housing, Communities & Local Government",MHCLG,15/09/2020,Current (non AEF) Grants to Local Authorities,Emergency Response,ENFIELD LB,,,,,3700070176,,Grant payable by the Exchequer,EN1 3XF,"2,224,830.00",Yes
"Housing, Communities & Local Government",MHCLG,15/09/2020,Current (non AEF) Grants to Local Authorities,Emergency Response,ENFIELD LB,,,,,3700070411,,Grant payable by the Exchequer,EN1 3XF,"1,095,812.00",Yes
"Housing, Communities & Local Government",MHCLG,15/09/2020,Current (non AEF) Grants to Local Authorities,Emergency Response,ENFIELD LB,,,,,3700070540,,Grant payable by the Exchequer,EN1 3XF,"14,686.00",Yes
"Housing, Communities & Local Government",MHCLG,15/09/2020,Current (non AEF) Grants to Local Authorities,Emergency Response,ENFIELD LB,,,,,3700070602,,Grant payable by the Exchequer,EN1 3XF,"29,816.00",Yes
"Housing, Communities & Local Government",MHCLG,15/09/2020,Current (non AEF) Grants to Local Authorities,Emergency Response,EPPING FOREST DC,,,,775876360,3700069705,,Grant payable by the Exchequer,CM16 4BZ,"11,129.00",Yes
"Housing, Communities & Local Government",MHCLG,15/09/2020,Current (non AEF) Grants to Local Authorities,Emergency Response,EPPING FOREST DC,,,,775876360,3700069883,,Grant payable by the Exchequer,CM16 4BZ,"575,547.00",Yes
"Housing, Communities & Local Government",MHCLG,15/09/2020,Current (non AEF) Grants to Local Authorities,Emergency Response,EPPING FOREST DC,,,,775876360,3700070244,,Grant payable by the Exchequer,CM16 4BZ,"11,129.00",Yes
